Workbook

Sheet Licence Agreement Wording (hidden)
B2: 1
B3: 1 | C3: GAS NETWORKS IRELAND
B4: =B3+1 -> 2
B5: 3 | C5: =CONCATENATE("THE ",Home!C5," TRANSMISSION TARIFF MATRIX RPM MODEL") -> THE 2023/24 TRANSMISSION TARIFF MATRIX RPM MODEL
B6: 4 | C6: LICENCE AGREEMENT
B7: 5
B8: 6 | C8: TERMS & CONDITIONS
B9: 7
B10: 8 | C10: =CONCATENATE(" Gas Networks Ireland refers to the owner of the ",Home!C5," Transmission Tariff Matrix RPM") -> Gas Networks Ireland refers to the owner of the 2023/24 Transmission Tariff Matrix RPM
B11: 9 | C11: Model whose registered office is Gasworks Road, Cork, Ireland with registration number
B12: 10 | C12: 555744 (the “Licensor”).
B13: 11
B14: 12 | C14: =CONCATENATE(" The “Licensee” or “you” refers to those who access the ",Home!C5," Transmission Tariff Matrix") -> The “Licensee” or “you” refers to those who access the 2023/24 Transmission Tariff Matrix
B15: 13 | C15: =CONCATENATE(" RPM Model. Any person accepting the Terms & Conditions of the ",Home!C5," Transmission") -> RPM Model. Any person accepting the Terms & Conditions of the 2023/24 Transmission
B16: 14 | C16: Tariff Matrix RPM Model on behalf of an entity confirms that they are authorised to do so.
B17: 15
B18: 16 | C18: =CONCATENATE(" GNI has produced the ",Home!C5," Transmission Tariff Matrix RPM Model to enable parties to") -> GNI has produced the 2023/24 Transmission Tariff Matrix RPM Model to enable parties to
B19: 17 | C19: calculate estimated Entry and Exit Tariffs in the Republic of Ireland. The Licensor has agreed
B20: 18 | C20: =CONCATENATE(" to make the ",Home!C5," Transmission Tariff Matrix RPM Model, together with relevant input") -> to make the 2023/24 Transmission Tariff Matrix RPM Model, together with relevant input
B21: 19 | C21: data, available to the Licensee on the terms and conditions of this Agreement.
B22: 20
B23: 21 | C23: =CONCATENATE(" By accessing and using the ",Home!C5," Transmission Tariff Matrix RPM Model, the Licensee") -> By accessing and using the 2023/24 Transmission Tariff Matrix RPM Model, the Licensee
B24: 22 | C24: agrees to be bound by these Terms & Conditions (the “Terms”). If you disagree with any part
B25: 23 | C25: =CONCATENATE(" of the Terms then you should not access the ",Home!C5," Transmission Tariff Matrix RPM") -> of the Terms then you should not access the 2023/24 Transmission Tariff Matrix RPM
B26: 24 | C26: Model.
B27: 25
B28: 26 | C28: NOW IT IS AGREED as follows:
B29: 27
B30: 28 | C30: 1. INTERPRETATION
B31: 29 | C31: 1.1 The following definitions apply:
B32: 30 | C32: =CONCATENATE(" “Agreement” means this ",Home!C5," Transmission Tariff Matrix RPM Model Licence") -> “Agreement” means this 2023/24 Transmission Tariff Matrix RPM Model Licence
B33: 31 | C33: Agreement.
B34: 32 | C34: “CRU” means the Commission for Regulation of Utilities, established pursuant to section
B35: 33 | C35: 8 of the Electricity Regulation Act 1999.
B36: 34 | C36: “Entry and Exit Tariffs” means the capacity and commodity elements of the entry and
B37: 35 | C37: exit charges to access the GNI Transportation System calculated and published by the
B38: 36 | C38: Licensor in accordance with its Transmission System Operator Licence.
B39: 37 | C39: “GNI Transportation System” means the natural gas transportation network operated by
B40: 38 | C40: GNI across the Republic of Ireland.
B41: 39 | C41: =CONCATENATE(" “",Home!C5," Transmission Tariff Matrix RPM Model” means the Licensor's spreadsheet,") -> “2023/24 Transmission Tariff Matrix RPM Model” means the Licensor's spreadsheet,
B42: 40 | C42: enabling logic and the input data used for calculating Entry and Exit Tariffs including any
B43: 41 | C43: associated user documentation that are licensed to the Licensor in this Agreement for the
B44: 42 | C44: purpose of calculating estimated Entry and Exit Tariffs.
B45: 43 | C45: “Transmission System Operator Licence” means the transmission system operator
B46: 44 | C46: licence granted to and held by the Licensor under section 16(1)(c) of the Gas (Interim)
B47: 45 | C47: (Regulation) Act 2002 (as amended).
B48: 46 | C48: 1.2 In this Agreement:
B49: 47 | C49: 1.2.1 references to persons includes individuals, bodies corporate (wherever
B50: 48 | C50: incorporated), joint ventures, unincorporated associations and partnerships or
B51: 49 | C51: any state body;
B52: 50 | C52: 1.2.2 the headings are inserted for convenience only and do not affect the
B53: 51 | C53: construction of the Agreement;
B54: 52 | C54: 1.2.3 references to one gender includes all genders;
B55: 53 | C55: 1.2.4 any reference to any applicable law or other enactment or statutory provision
B56: 54 | C56: is a reference to it as it may have been, or may from time to time be amended,
B57: 55 | C57: modified, consolidated, re-enacted, supplemented or replaced;
B58: 56 | C58: 1.2.5 any phrase introduced by the words “including”, “includes”, “in particular”, “for
B59: 57 | C59: example” or similar shall be construed as illustrative and without limitation to
B60: 58 | C60: the generality of the related general words;
B61: 59 | C61: 1.2.6 any reference to a document shall include all authorised amendments of,
B62: 60 | C62: supplements to and replacements of that document;
B63: 61 | C63: 1.2.7 any obligation not to do anything shall include an obligation not to suffer,
B64: 62 | C64: permit or cause that thing to be done;
B65: 63 | C65: 1.2.8 a reference to any body shall, if that body is replaced by another organisation,
B66: 64 | C66: be deemed to refer to that replacement organisation and if that body ceases to
B67: 65 | C67: exist, be deemed to refer to the organisation which most or substantially
B68: 66 | C68: serves the same purpose or functions as that body;
B69: 67 | C69: 1.2.9 words such as “hereunder”, “hereto”, “hereof” and “herein” and other words
B70: =B69+1 -> 68 | C70: commencing with “here” shall, unless the context clearly indicates the
B71: 69 | C71: contrary, refer to the whole of this Agreement and not to any particular clause,
B72: 70 | C72: sub-clause or paragraph hereof; and
B73: 71 | C73: 1.2.10 any reference to any clause, sub-clause or paragraph shall be a reference to
B74: 72 | C74: the clause, sub-clause or paragraph of this Agreement in which the reference
B75: 73 | C75: occurs unless it is indicated that reference to some other provision is intended.
B76: 74
B77: 75 | C77: 2. LICENCE GRANTED
B78: 76 | C78: 2.1 The Licensor grants to the Licensee a non-exclusive, non-transferable licence to use
B79: 77 | C79: =CONCATENATE(" the ",Home!C5," Transmission Tariff Matrix RPM Model in the Republic of Ireland in accordance") -> the 2023/24 Transmission Tariff Matrix RPM Model in the Republic of Ireland in accordance
B80: 78 | C80: with the terms of this Agreement.
B81: 79 | C81: 2.2 The Licence is granted to the Licensee for an unlimited period until terminated by the
B82: 80 | C82: Licensor in accordance with this Agreement.
B83: 81 | C83: 2.3 The Licensee acknowledges and agrees that the Licensor shall not provide any other
B84: 82 | C84: =CONCATENATE(" support services after delivery of the ",Home!C5," Transmission Tariff Matrix RPM Model.") -> support services after delivery of the 2023/24 Transmission Tariff Matrix RPM Model.
B85: 83
B86: 84 | C86: 3. LICENCE RESTRICTIONS, SECURITY AND ENFORCEMENT
B87: 85 | C87: =CONCATENATE("3.1 The following restrictions shall apply to the Licensee's use of the ",Home!C5," Transmission") -> 3.1 The following restrictions shall apply to the Licensee's use of the 2023/24 Transmission
B88: 86 | C88: Tariff Matrix RPM Model:
B89: 87 | C89: =CONCATENATE(" 3.1.1 the Licensee is restricted to using the ",Home!C5," Transmission Tariff Matrix RPM") -> 3.1.1 the Licensee is restricted to using the 2023/24 Transmission Tariff Matrix RPM
B90: 88 | C90: Model for calculating estimated Entry and Exit Tariffs in the Republic of Ireland
B91: 89 | C91: only;
B92: 90 | C92: 3.1.2 the Licensee agrees not to copy, modify, adapt, translate, disassemble,
B93: 91 | C93: decompile, reverse engineer or otherwise recreate the enabling logic and/or any
B94: 92 | C94: =CONCATENATE(" input data embedded in the ",Home!C5," Transmission Tariff Matrix RPM Model; and") -> input data embedded in the 2023/24 Transmission Tariff Matrix RPM Model; and
B95: =B94+1 -> 93 | C95: =CONCATENATE(" 3.1.3 the Licensee must not reproduce the ",Home!C5," Transmission Tariff Matrix RPM") -> 3.1.3 the Licensee must not reproduce the 2023/24 Transmission Tariff Matrix RPM
B96: 94 | C96: Model for sale or otherwise without the prior written agreement of the Licensor.
B97: 95 | C97: 3.2 During the continuance of the Licence the Licensee shall:
B98: 96 | C98: =CONCATENATE(" 3.2.1 effect and maintain adequate security measures to safeguard the ",Home!C5) -> 3.2.1 effect and maintain adequate security measures to safeguard the 2023/24
B99: 97 | C99: Transmission Tariff Matrix RPM Model from access or use by any unauthorised
B100: =B99+1 -> 98 | C100: person;
B101: =B100+1 -> 99 | C101: =CONCATENATE(" 3.2.2 retain the ",Home!C5," Transmission Tariff Matrix RPM Model and all copies thereof") -> 3.2.2 retain the 2023/24 Transmission Tariff Matrix RPM Model and all copies thereof
B102: =B101+1 -> 100 | C102: under the Licensee's effective control;
B103: =B102+1 -> 101 | C103: 3.2.3 maintain a full and accurate record of the Licensee's copying and disclosure of
B104: 102 | C104: =CONCATENATE(" the ",Home!C5," Transmission Tariff Matrix RPM Model and shall produce such record") -> the 2023/24 Transmission Tariff Matrix RPM Model and shall produce such record
B105: 103 | C105: to the Licensor on request from time to time; and
B106: 104 | C106: 3.2.4 ensure that appropriate environmental conditions and infrastructure are
B107: 105 | C107: =CONCATENATE(" maintained for the ",Home!C5," Transmission Tariff Matrix RPM Model and shall take") -> maintained for the 2023/24 Transmission Tariff Matrix RPM Model and shall take
B108: 106 | C108: =CONCATENATE(" all reasonable steps to ensure that the ",Home!C5," Transmission Tariff Matrix RPM") -> all reasonable steps to ensure that the 2023/24 Transmission Tariff Matrix RPM
B109: 107 | C109: Model is operated in a proper manner by the Licensee.
B110: 108 | C110: =CONCATENATE("3.3 The Licensee shall allow the Licensor, at any reasonable time, to check that the ",Home!C5) -> 3.3 The Licensee shall allow the Licensor, at any reasonable time, to check that the 2023/24
B111: 109 | C111: Transmission Tariff Matrix RPM Model is not being used outside the terms of this Agreement.
B112: 110
B113: 111 | C113: 4. INTELLECTUAL PROPERTY
B114: 112 | C114: 4.1 The Licensor has and shall retain exclusive ownership of all intellectual property rights in
B115: 113 | C115: =CONCATENATE(" or relating to the ",Home!C5," Transmission Tariff Matrix RPM Model including the copyright") -> or relating to the 2023/24 Transmission Tariff Matrix RPM Model including the copyright
B116: 114 | C116: and all other protected intellectual property rights (including any patent, registered design,
B117: 115 | C117: =CONCATENATE(" trademark or name) subsisting throughout the world in the ",Home!C5," Transmission Tariff") -> trademark or name) subsisting throughout the world in the 2023/24 Transmission Tariff
B118: 116 | C118: Matrix RPM Model.
B119: 117 | C119: 4.2 The Licensee acknowledges and agrees that the structure, organisation and enabling
B120: 118 | C120: =CONCATENATE(" logic of the ",Home!C5," Transmission Tariff Matrix RPM Model are the valuable trade secrets") -> logic of the 2023/24 Transmission Tariff Matrix RPM Model are the valuable trade secrets
B121: 119 | C121: of the Licensor, and that this Agreement does not grant the Licensee any intellectual property
B122: =B121+1 -> 120 | C122: =CONCATENATE(" ownership rights in or relating to the ",Home!C5," Transmission Tariff Matrix RPM Model.") -> ownership rights in or relating to the 2023/24 Transmission Tariff Matrix RPM Model.
B123: 121
B124: 122 | C124: 5. RISK AND TITLE
B125: 123 | C125: 5.1 Risk in and title to any media or documentation or other information that the Licensor
B126: 124 | C126: may from time to time supply to the Licensee under this Agreement shall pass to the
B127: 125 | C127: Licensee on acceptance by the Licensee.
B128: 126
B129: 127 | C129: 6. LIABILITY
B130: 128 | C130: =CONCATENATE("6.1 The Licensee acknowledges that the ",Home!C5," Transmission Tariff Matrix RPM Model is") -> 6.1 The Licensee acknowledges that the 2023/24 Transmission Tariff Matrix RPM Model is
B131: 129 | C131: being provided by the Licensor “as is”.
B132: 130 | C132: 6.2 The Licensee indemnifies the Licensor against all liability, proceedings, claims (including
B133: 131 | C133: claims by third parties), expenses, losses, damages and costs that the Licensor may
B134: 132 | C134: sustain or incur as a result, whether directly or indirectly or immediate or consequential,
B135: 133 | C135: =CONCATENATE(" of the Licensee’s use or misuse of the Licence or the ",Home!C5," Transmission Tariff Matrix") -> of the Licensee’s use or misuse of the Licence or the 2023/24 Transmission Tariff Matrix
B136: 134 | C136: RPM Model or its breach of this Agreement.
B137: =B136+1 -> 135 | C137: 6.3 The Licensee agrees that, to the fullest extent permissible at law:
B138: 136 | C138: 6.3.1 the Licensor makes no, and excludes, any representations, warranties or duty
B139: 137 | C139: of care to the Licensee of any kind, express or implied, in connection with the
B140: 138 | C140: =CONCATENATE(" ",Home!C5," Transmission Tariff Matrix RPM Model, and any reliance placed by the") -> 2023/24 Transmission Tariff Matrix RPM Model, and any reliance placed by the
B141: 139 | C141: =CONCATENATE(" Licensee on the ",Home!C5," Transmission Tariff Matrix RPM Model is strictly and") -> Licensee on the 2023/24 Transmission Tariff Matrix RPM Model is strictly and
B142: 140 | C142: wholly at the Licensee’s risk;
B143: 141 | C143: 6.3.2 the Licensor shall have no liability to the Licensee howsoever arising under or
B144: 142 | C144: =CONCATENATE(" in connection with this Agreement, the Licence, the ",Home!C5," Transmission") -> in connection with this Agreement, the Licence, the 2023/24 Transmission
B145: 143 | C145: Tariff Matrix RPM Model or the Licensee’s use thereof, whether in contract,
B146: 144 | C146: tort (including negligence), equity, common law, statute or otherwise; and
B147: 145 | C147: 6.3.3 for the avoidance of doubt, the Licensor shall have no liability for any losses or
B148: 146 | C148: damages which may be suffered, sustained or incurred by the Licensee (or
B149: 147 | C149: any person claiming under or through the Licensee), whether the same are
B150: 148 | C150: suffered directly or indirectly or are immediate or consequential or fall within
B151: 149 | C151: the following categories:
B152: 150 | C152: (a) special damage, even though the Licensor was aware of the
B153: 151 | C153: circumstances in which such special damage could arise; or
B154: 152 | C154: (b) loss of profits, anticipated savings, business opportunity or goodwill; or
B155: 153 | C155: (c) loss of, or damage to, data.
B156: 154
B157: 155 | C157: 7. TERMINATION
B158: 156 | C158: 7.1 The Licensor may terminate the Licence and this Agreement by giving notice in writing to
B159: 157 | C159: the Licensee if:
B160: 158 | C160: 7.1.1 the Licensor so determines in its sole discretion upon 30 days’ written notice
B161: 159 | C161: to the Licensee;
B162: 160 | C162: =CONCATENATE(" 7.1.2 the Licensee permanently discontinues the use of the ",Home!C5," Transmission") -> 7.1.2 the Licensee permanently discontinues the use of the 2023/24 Transmission
B163: 161 | C163: Tariff Matrix RPM Model;
B164: 162 | C164: 7.1.3 the Licensee commits any material breach of any term of this Agreement and
B165: 163 | C165: (in the case of a breach capable of being remedied) fails to remedy the breach
B166: 164 | C166: within 30 days after the receipt of such a request in writing from the Licensor;
B167: 165 | C167: 7.1.4 the Licensee has a receiver, administrative receiver, examiner, liquidator,
B168: 166 | C168: provisional liquidator or other similar official appointed over it or over any part
B169: 167 | C169: of its undertaking or assets or shall pass a resolution for winding up (otherwise
B170: 168 | C170: than for the purpose of a bona fide scheme of solvent amalgamation or
B171: 169 | C171: reconstruction) or a court of competent jurisdiction shall make an order to that
B172: 170 | C172: effect or if the Licensee shall enter into any voluntary arrangement with its
B173: 171 | C173: creditors or shall become subject to an administration order or shall cease to
B174: 172 | C174: carry on business; or
B175: 173 | C175: 7.1.5 the Licensee suffers or undergoes any procedure analogous to any of those
B176: 174 | C176: specified in sub-clause 7.1.4 or any other procedure available in the country in
B177: 175 | C177: which the other party is constituted, established or domiciled against or to an
B178: 176 | C178: insolvent debtor or available to the creditors of such a debtor.
B179: 177 | C179: 7.2 If requested by the Licensor, the Licensee shall, upon the termination of the Licence and
B180: 178 | C180: this Agreement and in the Licensor’s sole discretion:
B181: 179 | C181: =CONCATENATE(" 7.2.1 return to the Licensor the ",Home!C5," Transmission Tariff Matrix RPM Model and") -> 7.2.1 return to the Licensor the 2023/24 Transmission Tariff Matrix RPM Model and
B182: 180 | C182: all copies of the whole or any part thereof; or
B183: 181 | C183: 7.2.2 destroy the same and certify in writing to the Licensor that they have been
B184: 182 | C184: destroyed.
B185: 183 | C185: 7.3 The parties acknowledge that any termination of the Licence and this Agreement
B186: 184 | C186: (howsoever occasioned) shall not affect any accrued rights or liabilities of either party,
B187: 185 | C187: nor shall it affect the coming into force or the continuance in force of any provision hereof
B188: 186 | C188: which is expressly or by implication intended to come into or continue in force on or after
B189: 187 | C189: such termination.
B190: 188
B191: 189 | C191: 8. ASSIGNMENT AND THIRD PARTIES
B192: 190 | C192: 8.1 The Licensee shall not assign, sub-licence or transfer the Licence or this Agreement (or
B193: 191 | C193: any part of it) at any time.
B194: 192 | C194: 8.2 The Licensee acknowledges and agrees that neither the Licence nor any term of this
B195: 193 | C195: Agreement is intended to confer a benefit on, or to be enforceable by, any person who is
B196: 194 | C196: not a party to it.
B197: 195
B198: 196 | C198: 9. CONFIDENTIALITY
B199: 197 | C199: 9.1 Each party shall, during the term of this Agreement and thereafter, keep confidential, and
B200: 198 | C200: shall not use for its own purposes, nor without the prior written consent of the other,
B201: =B200+1 -> 199 | C201: disclose to any third party any and all information of a confidential nature (including trade
... 53 more rows

Sheet Licence Agreement
E1: 2023/24 Transmission Tariff
E2: Matrix RPM Model
B3: Terms & Conditions
C8: =IF(INDEX('Licence Agreement Wording'!C$3:C$254,'Licence Agreement Wording'!$B$2+ROWS($B$8:$B8)-1,1)=0,"",INDEX('Licence Agreement Wording'!C$3:C$254,'Licence Agreement Wording'!$B$2+ROWS($B$8:$B8)-1,1)) -> GAS NETWORKS IRELAND
C9: =IF(INDEX('Licence Agreement Wording'!C$3:C$254,'Licence Agreement Wording'!$B$2+ROWS($B$8:$B9)-1,1)=0,"",INDEX('Licence Agreement Wording'!C$3:C$254,'Licence Agreement Wording'!$B$2+ROWS($B$8:$B9)-1,1)) -> 
C10: =IF(INDEX('Licence Agreement Wording'!C$3:C$254,'Licence Agreement Wording'!$B$2+ROWS($B$8:$B10)-1,1)=0,"",INDEX('Licence Agreement Wording'!C$3:C$254,'Licence Agreement Wording'!$B$2+ROWS($B$8:$B10)-1,1)) -> THE 2023/24 TRANSMISSION TARIFF MATRIX RPM MODEL
C11: =IF(INDEX('Licence Agreement Wording'!C$3:C$254,'Licence Agreement Wording'!$B$2+ROWS($B$8:$B11)-1,1)=0,"",INDEX('Licence Agreement Wording'!C$3:C$254,'Licence Agreement Wording'!$B$2+ROWS($B$8:$B11)-1,1)) -> LICENCE AGREEMENT
C12: =IF(INDEX('Licence Agreement Wording'!C$3:C$254,'Licence Agreement Wording'!$B$2+ROWS($B$8:$B12)-1,1)=0,"",INDEX('Licence Agreement Wording'!C$3:C$254,'Licence Agreement Wording'!$B$2+ROWS($B$8:$B12)-1,1)) -> 
C13: =IF(INDEX('Licence Agreement Wording'!C$3:C$254,'Licence Agreement Wording'!$B$2+ROWS($B$8:$B13)-1,1)=0,"",INDEX('Licence Agreement Wording'!C$3:C$254,'Licence Agreement Wording'!$B$2+ROWS($B$8:$B13)-1,1)) -> TERMS & CONDITIONS
C14: =IF(INDEX('Licence Agreement Wording'!C$3:C$254,'Licence Agreement Wording'!$B$2+ROWS($B$8:$B14)-1,1)=0,"",INDEX('Licence Agreement Wording'!C$3:C$254,'Licence Agreement Wording'!$B$2+ROWS($B$8:$B14)-1,1)) -> 
C15: =IF(INDEX('Licence Agreement Wording'!C$3:C$254,'Licence Agreement Wording'!$B$2+ROWS($B$8:$B15)-1,1)=0,"",INDEX('Licence Agreement Wording'!C$3:C$254,'Licence Agreement Wording'!$B$2+ROWS($B$8:$B15)-1,1)) -> Gas Networks Ireland refers to the owner of the 2023/24 Transmission Tariff Matrix RPM
C16: =IF(INDEX('Licence Agreement Wording'!C$3:C$254,'Licence Agreement Wording'!$B$2+ROWS($B$8:$B16)-1,1)=0,"",INDEX('Licence Agreement Wording'!C$3:C$254,'Licence Agreement Wording'!$B$2+ROWS($B$8:$B16)-1,1)) -> Model whose registered office is Gasworks Road, Cork, Ireland with registration number
C17: =IF(INDEX('Licence Agreement Wording'!C$3:C$254,'Licence Agreement Wording'!$B$2+ROWS($B$8:$B17)-1,1)=0,"",INDEX('Licence Agreement Wording'!C$3:C$254,'Licence Agreement Wording'!$B$2+ROWS($B$8:$B17)-1,1)) -> 555744 (the “Licensor”).
C18: =IF(INDEX('Licence Agreement Wording'!C$3:C$254,'Licence Agreement Wording'!$B$2+ROWS($B$8:$B18)-1,1)=0,"",INDEX('Licence Agreement Wording'!C$3:C$254,'Licence Agreement Wording'!$B$2+ROWS($B$8:$B18)-1,1)) -> 

Sheet Introduction (hidden)
B1: Introduction
B2: This model calculates annualised tariffs for the GNI transmission network. It is based on decisions as per CRU/19/060.
B14: The model is an implementation of the matrix methodology, which we summarise below:

Sheet Legend (hidden)
B1: Legend
B2: Throughout this model data is formatted in the following way
B4: Format | C4: Description
B5: Input | C5: Input that can be changed by user
B6: Calculations | C6: Calculations in the model or normal cells that contain links
B7: Results | C7: Final results, e.g. tariffs
B8: Crosscheck | C8: Used to mark cells used to check the model is working properly
B9: Help cells | C9: Cells that do not contain crucial calculations, but are helpful in other ways
B10: Automated values | C10: Values that are calculated by solvers and goal-seekers
B11: Reference | C11: A reference to a source of information or calculation
B12: Comments/explanation | C12: Comments to inform the user

Sheet Excel settings-solver (hidden)
B1: Excel settings - Solver
B2: Please ensure that the excel solver is enabled
B4: for Excel 2010
B5: 1. go into the Visual Basics window: tab developer, click visual basic
B15: 2. open references: tab tools, click references
B27: 3. Enable solver by ticking the box

Sheet Excel settings-protected cells (hidden)
B1: Excel settings - Protected cells
B2: The model allows the user to change dedicated inputs, and protects the user from changing anything else.
B4: If the user wishes to change the model, the user has to unprotect the sheets.
B11: Note that the macro will enable protection after any run. To change this the user has to adjust the macro, which is clearly commented.

Sheet Versioning (hidden)
B1: Versioning
B2: This sheet contains a list of the changes made to the GNI tariff model
B4: Current version
B6: History
B7: Version | C7: Date | D7: Description
D8: Tariff 2023_24 in line with TAR NC decisions

Sheet Legal Disclaimer (hidden)
B1: =CONCATENATE(Home!C5," Transmission Tariff Matrix RPM Model Disclaimer") -> 2023/24 Transmission Tariff Matrix RPM Model Disclaimer
B3: Disclaimer
B4: =CONCATENATE("This ",Home!C5," Transmission Tariff Matrix RPM Model (including the enabling logic and input data contained therein) is made available ") -> This 2023/24 Transmission Tariff Matrix RPM Model (including the enabling logic and input data contained therein) is made available
B5: upon acknowledgement of the terms that are expressed herein. GNI has and shall retain exclusive ownership of the
B6: =CONCATENATE(Home!C5," Transmission Tariff Matrix RPM Model and all intellectual property rights in or relating to it, including the copyright and all other ") -> 2023/24 Transmission Tariff Matrix RPM Model and all intellectual property rights in or relating to it, including the copyright and all other
B7: =CONCATENATE("protected intellectual property rights. The information contained in the ",Home!C5," Transmission Tariff Matrix RPM Model is provided by GNI ") -> protected intellectual property rights. The information contained in the 2023/24 Transmission Tariff Matrix RPM Model is provided by GNI
B8: “as is” and GNI reserves the right to amend the information at any time at its discretion. GNI makes no representations or
B9: warranties of any kind, express or implied, in relation to the information and hereby excludes all such representations or
B10: warranties, express or implied, to the fullest extent permitted by law. GNI does not accept any responsibility, liability or duty
B11: of care to you or to any other person in respect of the information, and any reliance you or any other person places on such
B12: information is therefore strictly at your own or their own risk. In no event will GNI be liable for any loss or damage including,
B13: without limitation, indirect or consequential loss or damage of any nature, arising out of or in connection with the use of the
B14: =CONCATENATE(Home!C5," Transmission Tariff Matrix RPM Model or any information contained in it.") -> 2023/24 Transmission Tariff Matrix RPM Model or any information contained in it.

Sheet Home (hidden)
B1: Home
B2: Review/insert key inputs and run the model to generate charges
B4: Input values
B5: Year | C5: 2023/24
B7: Revenue | F7: Splits
B8: Total Transmission Services Revenue | C8: =INDEX(Inputs!$C$2:$E$145,MATCH(B8,Inputs!$C$2:$C$145,0),MATCH(Home!$C$5,Inputs!$C$2:$E$2,0)) -> 290127332.9 | G8: Capacity | H8: Commodity
B9: Non-Transmission Services Revenue | C9: =INDEX(Inputs!$C$2:$E$145,MATCH(B9,Inputs!$C$2:$C$145,0),MATCH(Home!$C$5,Inputs!$C$2:$E$2,0)) -> 239602.8433 | D9: as per CRU/19/060 B.2 "Allowed Revenue" | F9: Capacity/commodity split | G9: =INDEX(Inputs!$C$2:$E$145,MATCH(F9,Inputs!$C$2:$C$145,0),MATCH(Home!$C$5,Inputs!$C$2:$E$2,0)) -> 0.9 | H9: =1-G9 -> 0.1 | I9: as per CRU/19/060 decision 5
B11: Unit costs onshore network | G11: Entry | H11: Exit
B12: Dry expansion constant €/GWh/km | C12: =INDEX(Inputs!$C$2:$E$145,MATCH(B12,Inputs!$C$2:$C$145,0),MATCH(Home!$C$5,Inputs!$C$2:$E$2,0)) -> 7809.617123 | D12: as per CRU/19/060 decision 6 | F12: Entry/exit split | G12: =INDEX(Inputs!$C$2:$E$145,MATCH(F12,Inputs!$C$2:$C$145,0),MATCH(Home!$C$5,Inputs!$C$2:$E$2,0)) -> 0.33 | H12: =1-G12 -> 0.67 | I12: as per CRU/19/060 decision 4
B13: Annuitisation factor | C13: =INDEX(Inputs!$C$2:$E$145,MATCH(B13,Inputs!$C$2:$C$145,0),MATCH(Home!$C$5,Inputs!$C$2:$E$2,0)) -> 0.098 | D13: as per CRU/19/060 decision 7
B14: Unit costs €/MWh/km | C14: =C13*C12/(1*10^3) -> 0.7653424781
B16: Unit costs offshore network
B17: Wet expansion constant €/GWh/km | C17: =INDEX(Inputs!$C$2:$E$145,MATCH(B17,Inputs!$C$2:$C$145,0),MATCH(Home!$C$5,Inputs!$C$2:$E$2,0)) -> 8783 | D17: as per CRU/19/060 decision 6
B18: Annuitisation factor | C18: =C13 -> 0.098
B19: Unit costs €/MWh/km | C19: =C18*C17/(1*10^3) -> 0.860734
B21: Corrib Linkline element
B22: €/MWh/y | C22: =INDEX(Inputs!$C$2:$E$145,MATCH(B21,Inputs!$C$2:$C$145,0),MATCH(Home!$C$5,Inputs!$C$2:$E$2,0)) -> 587.6451924 | D22: PC4 Corrib Linkline Model
B24: VRF adjustment (%)
B25: Moffat (VRF) | C25: =INDEX(Inputs!$C$2:$E$145,MATCH(B25,Inputs!$C$2:$C$145,0),MATCH(Home!$C$5,Inputs!$C$2:$E$2,0)) -> 0.48 | D25: as per CRU/19/060 decision 14
B26: Gormanston (VRF) | C26: =INDEX(Inputs!$C$2:$E$145,MATCH(B26,Inputs!$C$2:$C$145,0),MATCH(Home!$C$5,Inputs!$C$2:$E$2,0)) -> 0.18 | D26: as per CRU/19/060 decision 14
B29: Results
B31: Errors | C31: =IF('Error report'!$C$23=TRUE,"No", "Error occurred, please refer to the error report for more detail") -> No
H38: SvH

Sheet Inputs (hidden)
B2: Transmission Demand | E2: 2023/24
C4: Entry commodity | D4: MWh | E4: 64621281
C5: Exit commodity | D5: MWh | E5: 63014761.13
C7: Bellanaboy | D7: MWh | E7: 31244.81547
C8: Moffat | D8: MWh | E8: 198486.9026
C9: Inch | D9: MWh | E9: 0
C10: Biogas | D10: MWh | E10: 471.2192783
C11: Gormanston VRF | D11: MWh | E11: 0
C12: Total Entry bookings | D12: MWh | E12: =SUM(E7:E11) -> 230202.9373
C14: Gormanston | D14: (4/15) | E14: 0
C15: Exit1 | E15: 2748.216653
C16: Exit2 | E16: 50.22405992
C17: Exit3 | E17: 907.0699397
C18: Exit5 | E18: 15494.42615
C19: Exit6 | E19: 1133.290941
C20: Exit7 | E20: 62.12677899
C21: Exit8 | E21: 19312.78071
C22: Exit9 | E22: 905.4433674
C23: Exit10 | E23: 3.807693368
C24: Exit11 | E24: 1575.437602
C25: Exit12 | E25: 619.7155896
C26: Exit13 | E26: 1925.04952
C27: Exit14 | E27: 1376.113779
C28: Exit16 | E28: 1953.683671
C29: Exit17 | E29: 30217.82713
C30: Exit18 | E30: 21.49432025
C31: Exit19 | E31: 207.7515876
C32: Exit20 | E32: 1751.859042
C33: Exit21 | E33: 2357.136013
C34: Exit22 | E34: 778.7591555
C35: Exit23 | E35: 315.4115526
C36: Exit24 | E36: 4310.76608
C37: Exit25 | E37: 2479.658963
C38: Exit26 | E38: 453.1280758
C39: Exit27 | E39: 17682.77429
C40: Exit28 | E40: 1452.717108
C41: Exit29 | E41: 1162.95092
C42: Exit30 | E42: 333.8585795
C43: Exit33 | E43: 1870.015494
C44: Exit34 | E44: 1136.871232
C45: Exit35 | E45: 302.7709867
C46: Exit36 | E46: 126.7928819
C47: Exit37 | E47: 804.5117481
C48: Exit38 | E48: 3.216561599
C49: Exit39 | E49: 80.37947199
C50: Exit40 | E50: 1701.64381
C51: Exit41 | E51: 17804.75757
C52: Exit42 | E52: 16130.45666
C53: Exit43 | E53: 257.3177563
C54: Exit44 | E54: 4011.332002
C55: Exit45 | E55: 1264.331448
C56: Exit46 | E56: 2342.113771
C57: Exit47 | E57: 21.30091815
C58: Exit48 | E58: 627.6306757
C59: Exit49 | E59: 1997.705147
C60: Exit50 | E60: 2829.094913
C61: Exit51 | E61: 492.3513862
C62: Exit52 | E62: 168.7939483
C63: Exit53 | E63: 1399.144965
C64: Exit54 | E64: 1836.262351
C65: Exit55 | E65: 3357.981977
C66: Exit57 | E66: 1725.769271
C67: Exit58 | E67: 1674.751354
C68: Exit59 | E68: 623.1715425
C69: Exit60 | E69: 997.7854222
C70: Exit61 | E70: 98.14367214
C71: Exit62 | E71: 382.5312566
C72: Exit63 | E72: 479.8541399
C73: Exit64 | E73: 641.2404406
C74: Exit65 | E74: 1041.324739
C75: Exit66 | E75: 429.7631874
C76: Exit67 | E76: 14.26694936
C77: Exit68 | E77: 38.05704807
C78: Exit69 | E78: 584.8294928
C79: Exit70 | E79: 2445.407742
C80: Exit71 | E80: 17.87797328
C81: Exit72 | E81: 595.9857787
C82: Exit73 | E82: 149.8120623
C83: Exit74 | E83: 2932.104076
C84: Exit75 | E84: 360.7961523
C85: Exit76 | E85: 7327.004757
C86: Exit77 | E86: 45.37485174
C87: Exit78 | E87: 11124.7114
C88: Exit79 | E88: 2938.438187
C89: Exit80 | E89: 160.8613341
C90: Exit81 | E90: 534.7023371
C91: Exit82 | E91: 1890.168218
C92: Exit83 | E92: 1645.32246
C93: Exit84 | E93: 3034.58284
C94: Exit86 | E94: 8040.6445
C95: Exit87 | E95: 636.0066559
C96: Exit88 | E96: 1148.16001
C97: Exit89 | E97: 7049.145771
C98: Exit90 | E98: 981.8147991
C99: Exit91 | E99: 130.6891663
C100: Exit92 | E100: 1188.595125
C101: Exit93 | E101: 1065.845863
C102: Exit94 | E102: 0.09358787961
C103: Exit95 | E103: 3669.454085
C104: Exit96 | E104: 129.0492602
C105: Exit97 | E105: 181.9148198
C106: Exit98 | E106: 379.801115
C107: Exit99 | E107: 843.2242754
C108: Exit100 | E108: 156.2091997
C109: Exit101 | E109: 2130.622942
C110: Exit102 | E110: 153.224477
C111: Exit103 | E111: 19164.59095
C112: Exit104 | E112: 14.79104316
C113: Exit105 | E113: 668.4000182
C114: Exit106 | E114: 269.9850445
C115: Exit107 | E115: 2387.412955
C116: Exit108 | E116: 1376.113779
C117: Exit109 | E117: 14.43308143
C118: Exit110 | E118: 4722.852203
C119: Exit111 | E119: 2361.426102
C120: Exit112 | E120: 4722.852203
C121: Exit113 | E121: 5903.565254
C122: Moffat VRF | E122: 0
C123: Total Exit bookings | D123: MWh | E123: =SUM(E14:E122) -> 285585.8139
E125: =E2 -> 2023/24
C126: Transmission Services Revenue (ex Shrinkage) | E126: 253662633.6
C127: Shrinkage | E127: 36464699.32
C128: Total Transmission Services Revenue | E128: =SUM(E126:E127) -> 290127332.9
C129: Non-Transmission Services Revenue | E129: 239602.8433
C130: Allowed Revenue | E130: =SUM(E128:E129) -> 290366935.8
C132: Corrib Linkline element | E132: 587.6451924
C134: Dry expansion constant €/GWh/km | E134: 7809.617123
C135: Wet expansion constant €/GWh/km | E135: 8783
C137: Annuitisation factor | E137: 0.098
C139: Capacity/commodity split | E139: 0.9
C140: Entry/exit split | E140: 0.33
C142: VRF adjustment (%)
C143: Moffat (VRF) | E143: 0.48
C144: Gormanston (VRF) | E144: 0.18

Sheet Error report (hidden)
B1: Error report
B2: This sheet contains verification of inputs and outputs
B4: Input checks | C4: Results
B5: Offshore and onshore routes sum up to total route | C5: =AND('Input-Network'!AF13:AJ121) -> TRUE
B6: Routes all positive | C6: =AND(MIN('Input-Network'!$N$13:$R$121)>=0,MIN('Input-Network'!$W$13:$AA$121)>=0) -> TRUE
B8: Intermediate input checks | C8: Results
B9: Budget distribution ok | C9: ='Calc-Budget'!C13=Home!C8 -> TRUE
B11: Calculation checks | C11: Results
B12: Revenue recovery entry | C12: =ABS('Calc-Cap-Tariffs'!N21)<0.0001 -> TRUE
B13: Revenue recovery exit | C13: =ABS('Calc-Cap-Tariffs'!N140)<0.0001 -> TRUE
B14: Unique solution check | C14: ='Calc-Cap-Paths'!V17 -> TRUE
B16: Output checks | C16: Results
B17: All revenue recovered | C17: =ABS('Calc-Cap-Tariffs'!Q17+'Calc-Cap-Tariffs'!T136+'Calc-Com'!E7*'Input-Throughput and bookings'!D5+'Calc-Com'!E8*'Input-Throughput and bookings'!D6-Home!C8)<0.00001 -> TRUE
B19: Exit Bookings | C19: Results
B20: Individual Exit Bookings sum up to Total Exit Bookings | C20: ='Input-Throughput and bookings'!D127 -> TRUE
B22: Overall check | C22: Results
B23: All checks ok | C23: =AND(C5:C6,C9,C12:C14,C17,C20) -> TRUE

Sheet Input-Network (hidden)
B1: Input-Network
B2: The matrices below represent the GNI network for the purpose of the required revenue element, i.e. the Bellenaboy distance excludes the Linkline element
B3: GNI information
C5: Shortest route (km) | L5: Offshore element of shortest route (km) | U5: Onshore element of shortest route (km) | AD5: Route verification | AM5: Declaration of domestic exit points
B6: This matrix represents the shortest route from each | K6: This matrix represents the distance gas will travel | T6: This matrix represents the distance gas will travel | AC6: This matrix checks whether the onshore and | AL6: In this matrix we consider if exit points are domestic
B7: entry to each exit point | K7: through offshore pipelines, taking the shortest path | T7: through onshore pipelines, taking the shortest path | AC7: offshore distances add up to the total distance | AL7: exit points, used for postalisation later
K8: from each entry to each exit point | T8: from each entry to each exit point | AC8: travelled
E10: Entry points | N10: Entry points | W10: Entry points | AF10: Entry points | AO10: Domestic | AP10: Non-Domestic
C11: Name | E11: Bellanaboy | F11: Corracunna | G11: Gormanston VRF | H11: Inch | I11: Moffat | L11: Name | N11: =E11 -> Bellanaboy | O11: Corracunna | P11: Gormanston VRF | Q11: Inch | R11: Moffat | U11: Name | W11: =E11 -> Bellanaboy | X11: =F11 -> Corracunna | Y11: Gormanston VRF | Z11: Inch | AA11: =I11 -> Moffat | AD11: Name | AF11: =E11 -> Bellanaboy | AG11: =F11 -> Corracunna | AH11: Gormanston VRF | AI11: Inch | AJ11: =I11 -> Moffat | AN11: Count | AO11: =COUNTIF($AO$13:$AO$121,AO10) -> 107 | AP11: =COUNTIF($AO$13:$AO$121,AP10) -> 2
D12: Code | E12: BELL | F12: CORR | G12: GVRF | H12: INCH | I12: MOFF | M12: Code | N12: BELL | O12: CORR | P12: GVRF | Q12: INCH | R12: MOFF | V12: Code | W12: =E12 -> BELL | X12: CORR | Y12: GVRF | Z12: INCH | AA12: =I12 -> MOFF | AE12: Code | AF12: =E12 -> BELL | AG12: CORR | AH12: GVRF | AI12: INCH | AJ12: =I12 -> MOFF | AM12: Name | AN12: Code
B13: Exit points | C13: Gormanston | D13: GMTN | E13: 200.5 | F13: 231.274 | G13: 0 | H13: 279.73 | I13: 271.48 | K13: Exit points | L13: =C13 -> Gormanston | M13: =D13 -> GMTN | N13: 0 | O13: 0 | P13: 0 | Q13: 0 | R13: 192.004 | T13: Exit points | U13: =C13 -> Gormanston | V13: =D13 -> GMTN | W13: 200.5 | X13: 231.274 | Y13: 0 | Z13: 279.73 | AA13: 79.476 | AC13: Exit points | AD13: =C13 -> Gormanston | AE13: =D13 -> GMTN | AF13: =E13=(N13+W13) -> TRUE | AG13: =F13=(O13+X13) -> TRUE | AH13: =G13=(P13+Y13) -> TRUE | AI13: =H13=(Q13+Z13) -> TRUE | AJ13: =I13=(R13+AA13) -> TRUE | AL13: Exit points | AM13: =C13 -> Gormanston | AN13: =D13 -> GMTN | AO13: Non-Domestic
C14: EXIT1 | D14: EXIT1 | E14: 229.79 | F14: 190.549 | G14: 55.14 | H14: 241.6 | I14: 326.62 | L14: EXIT1 | M14: EXIT1 | N14: 0 | O14: 0 | P14: 0 | Q14: 0 | R14: 192.004 | U14: EXIT1 | V14: EXIT1 | W14: 229.79 | X14: 190.549 | Y14: 55.14 | Z14: 241.6 | AA14: 134.616 | AD14: EXIT1 | AE14: EXIT1 | AF14: TRUE | AG14: TRUE | AH14: TRUE | AI14: TRUE | AJ14: TRUE | AM14: EXIT1 | AN14: EXIT1 | AO14: Domestic
C15: EXIT2 | D15: EXIT2 | E15: 225.93 | F15: 199.525 | G15: 51.28 | H15: 251.64 | I15: 322.76 | L15: EXIT2 | M15: EXIT2 | N15: 0 | O15: 0 | P15: 0 | Q15: 0 | R15: 192.004 | U15: EXIT2 | V15: EXIT2 | W15: 225.93 | X15: 199.525 | Y15: 51.28 | Z15: 251.64 | AA15: 130.756 | AD15: EXIT2 | AE15: EXIT2 | AF15: TRUE | AG15: TRUE | AH15: TRUE | AI15: TRUE | AJ15: TRUE | AM15: EXIT2 | AN15: EXIT2 | AO15: Domestic
C16: EXIT3 | D16: EXIT3 | E16: 230.12 | F16: 194.372 | G16: 55.47 | H16: 245.44 | I16: 326.95 | L16: EXIT3 | M16: EXIT3 | N16: 0 | O16: 0 | P16: 0 | Q16: 0 | R16: 192.004 | U16: EXIT3 | V16: EXIT3 | W16: 230.12 | X16: 194.372 | Y16: 55.47 | Z16: 245.44 | AA16: 134.946 | AD16: EXIT3 | AE16: EXIT3 | AF16: TRUE | AG16: TRUE | AH16: TRUE | AI16: TRUE | AJ16: TRUE | AM16: EXIT3 | AN16: EXIT3 | AO16: Domestic
C17: EXIT5 | D17: EXIT5 | E17: 35.49 | F17: 199.735 | G17: 199.65 | H17: 263.8 | I17: 471.13 | L17: EXIT5 | M17: EXIT5 | N17: 0 | O17: 0 | P17: 0 | Q17: 0 | R17: 192.004 | U17: EXIT5 | V17: EXIT5 | W17: 35.49 | X17: 199.735 | Y17: 199.65 | Z17: 263.8 | AA17: 279.126 | AD17: EXIT5 | AE17: EXIT5 | AF17: TRUE | AG17: TRUE | AH17: TRUE | AI17: TRUE | AJ17: TRUE | AM17: EXIT5 | AN17: EXIT5 | AO17: Domestic
C18: EXIT6 | D18: EXIT6 | E18: 248.98 | F18: 84.831 | G18: 148.76 | H18: 135.91 | I18: 420.24 | L18: EXIT6 | M18: EXIT6 | N18: 0 | O18: 0 | P18: 0 | Q18: 0 | R18: 192.004 | U18: EXIT6 | V18: EXIT6 | W18: 248.98 | X18: 84.831 | Y18: 148.76 | Z18: 135.91 | AA18: 228.236 | AD18: EXIT6 | AE18: EXIT6 | AF18: TRUE | AG18: TRUE | AH18: TRUE | AI18: TRUE | AJ18: TRUE | AM18: EXIT6 | AN18: EXIT6 | AO18: Domestic
C19: EXIT7 | D19: EXIT7 | E19: 227.87 | F19: 202.859 | G19: 53.22 | H19: 253.58 | I19: 324.7 | L19: EXIT7 | M19: EXIT7 | N19: 0 | O19: 0 | P19: 0 | Q19: 0 | R19: 192.004 | U19: EXIT7 | V19: EXIT7 | W19: 227.87 | X19: 202.859 | Y19: 53.22 | Z19: 253.58 | AA19: 132.696 | AD19: EXIT7 | AE19: EXIT7 | AF19: TRUE | AG19: TRUE | AH19: TRUE | AI19: TRUE | AJ19: TRUE | AM19: EXIT7 | AN19: EXIT7 | AO19: Domestic
C20: EXIT8 | D20: EXIT8 | E20: 288.76 | F20: 124.619 | G20: 196.23 | H20: 175.69 | I20: 467.71 | L20: EXIT8 | M20: EXIT8 | N20: 0 | O20: 0 | P20: 0 | Q20: 0 | R20: 192.004 | U20: EXIT8 | V20: EXIT8 | W20: 288.76 | X20: 124.619 | Y20: 196.23 | Z20: 175.69 | AA20: 275.706 | AD20: EXIT8 | AE20: EXIT8 | AF20: TRUE | AG20: TRUE | AH20: TRUE | AI20: TRUE | AJ20: TRUE | AM20: EXIT8 | AN20: EXIT8 | AO20: Domestic
C21: EXIT9 | D21: EXIT9 | E21: 147.91 | F21: 44.86 | G21: 273.44 | H21: 108.93 | I21: 544.92 | L21: EXIT9 | M21: EXIT9 | N21: 0 | O21: 0 | P21: 0 | Q21: 0 | R21: 192.004 | U21: EXIT9 | V21: EXIT9 | W21: 147.91 | X21: 44.86 | Y21: 273.44 | Z21: 108.93 | AA21: 352.916 | AD21: EXIT9 | AE21: EXIT9 | AF21: TRUE | AG21: TRUE | AH21: TRUE | AI21: TRUE | AJ21: TRUE | AM21: EXIT9 | AN21: EXIT9 | AO21: Domestic
C22: EXIT10 | D22: EXIT10 | E22: 221.7 | F22: 57.557 | G22: 207.25 | H22: 108.63 | I22: 478.73 | L22: EXIT10 | M22: EXIT10 | N22: 0 | O22: 0 | P22: 0 | Q22: 0 | R22: 192.004 | U22: EXIT10 | V22: EXIT10 | W22: 221.7 | X22: 57.557 | Y22: 207.25 | Z22: 108.63 | AA22: 286.726 | AD22: EXIT10 | AE22: EXIT10 | AF22: TRUE | AG22: TRUE | AH22: TRUE | AI22: TRUE | AJ22: TRUE | AM22: EXIT10 | AN22: EXIT10 | AO22: Domestic
C23: EXIT11 | D23: EXIT11 | E23: 211.82 | F23: 200.297 | G23: 37.17 | H23: 251.41 | I23: 308.65 | L23: EXIT11 | M23: EXIT11 | N23: 0 | O23: 0 | P23: 0 | Q23: 0 | R23: 192.004 | U23: EXIT11 | V23: EXIT11 | W23: 211.82 | X23: 200.297 | Y23: 37.17 | Z23: 251.41 | AA23: 116.646 | AD23: EXIT11 | AE23: EXIT11 | AF23: TRUE | AG23: TRUE | AH23: TRUE | AI23: TRUE | AJ23: TRUE | AM23: EXIT11 | AN23: EXIT11 | AO23: Domestic
C24: EXIT12 | D24: EXIT12 | E24: 276.18 | F24: 112.032 | G24: 117.71 | H24: 163.11 | I24: 389.19 | L24: EXIT12 | M24: EXIT12 | N24: 0 | O24: 0 | P24: 0 | Q24: 0 | R24: 192.004 | U24: EXIT12 | V24: EXIT12 | W24: 276.18 | X24: 112.032 | Y24: 117.71 | Z24: 163.11 | AA24: 197.186 | AD24: EXIT12 | AE24: EXIT12 | AF24: TRUE | AG24: TRUE | AH24: TRUE | AI24: TRUE | AJ24: TRUE | AM24: EXIT12 | AN24: EXIT12 | AO24: Domestic
C25: EXIT13 | D25: EXIT13 | E25: 203.38 | F25: 201.449 | G25: 28.73 | H25: 251.01 | I25: 300.21 | L25: EXIT13 | M25: EXIT13 | N25: 0 | O25: 0 | P25: 0 | Q25: 0 | R25: 192.004 | U25: EXIT13 | V25: EXIT13 | W25: 203.38 | X25: 201.449 | Y25: 28.73 | Z25: 251.01 | AA25: 108.206 | AD25: EXIT13 | AE25: EXIT13 | AF25: TRUE | AG25: TRUE | AH25: TRUE | AI25: TRUE | AJ25: TRUE | AM25: EXIT13 | AN25: EXIT13 | AO25: Domestic
C26: EXIT14 | D26: EXIT14 | E26: 166.98 | F26: 2.75 | G26: 231.32 | H26: 66.82 | I26: 502.8 | L26: EXIT14 | M26: EXIT14 | N26: 0 | O26: 0 | P26: 0 | Q26: 0 | R26: 192.004 | U26: EXIT14 | V26: EXIT14 | W26: 166.98 | X26: 2.75 | Y26: 231.32 | Z26: 66.82 | AA26: 310.796 | AD26: EXIT14 | AE26: EXIT14 | AF26: TRUE | AG26: TRUE | AH26: TRUE | AI26: TRUE | AJ26: TRUE | AM26: EXIT14 | AN26: EXIT14 | AO26: Domestic
C27: EXIT16 | D27: EXIT16 | E27: 218.94 | F27: 201.439 | G27: 44.29 | H27: 252.51 | I27: 315.77 | L27: EXIT16 | M27: EXIT16 | N27: 0 | O27: 0 | P27: 0 | Q27: 0 | R27: 192.004 | U27: EXIT16 | V27: EXIT16 | W27: 218.94 | X27: 201.439 | Y27: 44.29 | Z27: 252.51 | AA27: 123.766 | AD27: EXIT16 | AE27: EXIT16 | AF27: TRUE | AG27: TRUE | AH27: TRUE | AI27: TRUE | AJ27: TRUE | AM27: EXIT16 | AN27: EXIT16 | AO27: Domestic
C28: EXIT17 | D28: EXIT17 | E28: 205.93 | F28: 203.174 | G28: 31.28 | H28: 253.56 | I28: 302.76 | L28: EXIT17 | M28: EXIT17 | N28: 0 | O28: 0 | P28: 0 | Q28: 0 | R28: 192.004 | U28: EXIT17 | V28: EXIT17 | W28: 205.93 | X28: 203.174 | Y28: 31.28 | Z28: 253.56 | AA28: 110.756 | AD28: EXIT17 | AE28: EXIT17 | AF28: TRUE | AG28: TRUE | AH28: TRUE | AI28: TRUE | AJ28: TRUE | AM28: EXIT17 | AN28: EXIT17 | AO28: Domestic
C29: EXIT18 | D29: EXIT18 | E29: 207.39 | F29: 195.892 | G29: 32.75 | H29: 246.99 | I29: 304.23 | L29: EXIT18 | M29: EXIT18 | N29: 0 | O29: 0 | P29: 0 | Q29: 0 | R29: 192.004 | U29: EXIT18 | V29: EXIT18 | W29: 207.39 | X29: 195.892 | Y29: 32.75 | Z29: 246.99 | AA29: 112.226 | AD29: EXIT18 | AE29: EXIT18 | AF29: TRUE | AG29: TRUE | AH29: TRUE | AI29: TRUE | AJ29: TRUE | AM29: EXIT18 | AN29: EXIT18 | AO29: Domestic
C30: EXIT19 | D30: EXIT19 | E30: 228.04 | F30: 192.291 | G30: 53.39 | H30: 243.36 | I30: 324.87 | L30: EXIT19 | M30: EXIT19 | N30: 0 | O30: 0 | P30: 0 | Q30: 0 | R30: 192.004 | U30: EXIT19 | V30: EXIT19 | W30: 228.04 | X30: 192.291 | Y30: 53.39 | Z30: 243.36 | AA30: 132.866 | AD30: EXIT19 | AE30: EXIT19 | AF30: TRUE | AG30: TRUE | AH30: TRUE | AI30: TRUE | AJ30: TRUE | AM30: EXIT19 | AN30: EXIT19 | AO30: Domestic
C31: EXIT20 | D31: EXIT20 | E31: 257.92 | F31: 89.3 | G31: 309.36 | H31: 48.3 | I31: 580.84 | L31: EXIT20 | M31: EXIT20 | N31: 0 | O31: 0 | P31: 0 | Q31: 0 | R31: 192.004 | U31: EXIT20 | V31: EXIT20 | W31: 257.92 | X31: 89.3 | Y31: 309.36 | Z31: 48.3 | AA31: 388.836 | AD31: EXIT20 | AE31: EXIT20 | AF31: TRUE | AG31: TRUE | AH31: TRUE | AI31: TRUE | AJ31: TRUE | AM31: EXIT20 | AN31: EXIT20 | AO31: Domestic
C32: EXIT21 | D32: EXIT21 | E32: 245.52 | F32: 302.016 | G32: 70.87 | H32: 271.23 | I32: 342.35 | L32: EXIT21 | M32: EXIT21 | N32: 0 | O32: 0 | P32: 0 | Q32: 0 | R32: 192.004 | U32: EXIT21 | V32: EXIT21 | W32: 245.52 | X32: 302.016 | Y32: 70.87 | Z32: 271.23 | AA32: 150.346 | AD32: EXIT21 | AE32: EXIT21 | AF32: TRUE | AG32: TRUE | AH32: TRUE | AI32: TRUE | AJ32: TRUE | AM32: EXIT21 | AN32: EXIT21 | AO32: Domestic
C33: EXIT22 | D33: EXIT22 | E33: 87.92 | F33: 252.153 | G33: 288.42 | H33: 316.22 | I33: 559.9 | L33: EXIT22 | M33: EXIT22 | N33: 0 | O33: 0 | P33: 0 | Q33: 0 | R33: 192.004 | U33: EXIT22 | V33: EXIT22 | W33: 87.92 | X33: 252.153 | Y33: 288.42 | Z33: 316.22 | AA33: 367.896 | AD33: EXIT22 | AE33: EXIT22 | AF33: TRUE | AG33: TRUE | AH33: TRUE | AI33: TRUE | AJ33: TRUE | AM33: EXIT22 | AN33: EXIT22 | AO33: Domestic
C34: EXIT23 | D34: EXIT23 | E34: 109.43 | F34: 273.676 | G34: 91.07 | H34: 337.74 | I34: 362.55 | L34: EXIT23 | M34: EXIT23 | N34: 0 | O34: 0 | P34: 0 | Q34: 0 | R34: 192.004 | U34: EXIT23 | V34: EXIT23 | W34: 109.43 | X34: 273.676 | Y34: 91.07 | Z34: 337.74 | AA34: 170.546 | AD34: EXIT23 | AE34: EXIT23 | AF34: TRUE | AG34: TRUE | AH34: TRUE | AI34: TRUE | AJ34: TRUE | AM34: EXIT23 | AN34: EXIT23 | AO34: Domestic
C35: EXIT24 | D35: EXIT24 | E35: 211.32 | F35: 191.985 | G35: 36.67 | H35: 243.06 | I35: 308.15 | L35: EXIT24 | M35: EXIT24 | N35: 0 | O35: 0 | P35: 0 | Q35: 0 | R35: 192.004 | U35: EXIT24 | V35: EXIT24 | W35: 211.32 | X35: 191.985 | Y35: 36.67 | Z35: 243.06 | AA35: 116.146 | AD35: EXIT24 | AE35: EXIT24 | AF35: TRUE | AG35: TRUE | AH35: TRUE | AI35: TRUE | AJ35: TRUE | AM35: EXIT24 | AN35: EXIT24 | AO35: Domestic
C36: EXIT25 | D36: EXIT25 | E36: 221.6 | F36: 202.266 | G36: 46.96 | H36: 253.34 | I36: 318.44 | L36: EXIT25 | M36: EXIT25 | N36: 0 | O36: 0 | P36: 0 | Q36: 0 | R36: 192.004 | U36: EXIT25 | V36: EXIT25 | W36: 221.6 | X36: 202.266 | Y36: 46.96 | Z36: 253.34 | AA36: 126.436 | AD36: EXIT25 | AE36: EXIT25 | AF36: TRUE | AG36: TRUE | AH36: TRUE | AI36: TRUE | AJ36: TRUE | AM36: EXIT25 | AN36: EXIT25 | AO36: Domestic
C37: EXIT26 | D37: EXIT26 | E37: 58.56 | F37: 105.671 | G37: 259.08 | H37: 169.73 | I37: 530.56 | L37: EXIT26 | M37: EXIT26 | N37: 0 | O37: 0 | P37: 0 | Q37: 0 | R37: 192.004 | U37: EXIT26 | V37: EXIT26 | W37: 58.56 | X37: 105.671 | Y37: 259.08 | Z37: 169.73 | AA37: 338.556 | AD37: EXIT26 | AE37: EXIT26 | AF37: TRUE | AG37: TRUE | AH37: TRUE | AI37: TRUE | AJ37: TRUE | AM37: EXIT26 | AN37: EXIT26 | AO37: Domestic
C38: EXIT27 | D38: EXIT27 | E38: 221.39 | F38: 209.865 | G38: 46.75 | H38: 260.99 | I38: 318.23 | L38: EXIT27 | M38: EXIT27 | N38: 0 | O38: 0 | P38: 0 | Q38: 0 | R38: 192.004 | U38: EXIT27 | V38: EXIT27 | W38: 221.39 | X38: 209.865 | Y38: 46.75 | Z38: 260.99 | AA38: 126.226 | AD38: EXIT27 | AE38: EXIT27 | AF38: TRUE | AG38: TRUE | AH38: TRUE | AI38: TRUE | AJ38: TRUE | AM38: EXIT27 | AN38: EXIT27 | AO38: Domestic
C39: EXIT28 | D39: EXIT28 | E39: 244.49 | F39: 273.696 | G39: 69.85 | H39: 313.71 | I39: 341.33 | L39: EXIT28 | M39: EXIT28 | N39: 0 | O39: 0 | P39: 0 | Q39: 0 | R39: 192.004 | U39: EXIT28 | V39: EXIT28 | W39: 244.49 | X39: 273.696 | Y39: 69.85 | Z39: 313.71 | AA39: 149.326 | AD39: EXIT28 | AE39: EXIT28 | AF39: TRUE | AG39: TRUE | AH39: TRUE | AI39: TRUE | AJ39: TRUE | AM39: EXIT28 | AN39: EXIT28 | AO39: Domestic
C40: EXIT29 | D40: EXIT29 | E40: 233.88 | F40: 263.102 | G40: 59.23 | H40: 313.12 | I40: 330.71 | L40: EXIT29 | M40: EXIT29 | N40: 0 | O40: 0 | P40: 0 | Q40: 0 | R40: 192.004 | U40: EXIT29 | V40: EXIT29 | W40: 233.88 | X40: 263.102 | Y40: 59.23 | Z40: 313.12 | AA40: 138.706 | AD40: EXIT29 | AE40: EXIT29 | AF40: TRUE | AG40: TRUE | AH40: TRUE | AI40: TRUE | AJ40: TRUE | AM40: EXIT29 | AN40: EXIT29 | AO40: Domestic
C41: EXIT30 | D41: EXIT30 | E41: 167.88 | F41: 3.354 | G41: 232.22 | H41: 67.71 | I41: 503.7 | L41: EXIT30 | M41: EXIT30 | N41: 0 | O41: 0 | P41: 0 | Q41: 0 | R41: 192.004 | U41: EXIT30 | V41: EXIT30 | W41: 167.88 | X41: 3.354 | Y41: 232.22 | Z41: 67.71 | AA41: 311.696 | AD41: EXIT30 | AE41: EXIT30 | AF41: TRUE | AG41: TRUE | AH41: TRUE | AI41: TRUE | AJ41: TRUE | AM41: EXIT30 | AN41: EXIT30 | AO41: Domestic
C42: EXIT33 | D42: EXIT33 | E42: 195.71 | F42: 199.909 | G42: 21.06 | H42: 259.64 | I42: 292.54 | L42: EXIT33 | M42: EXIT33 | N42: 0 | O42: 0 | P42: 0 | Q42: 0 | R42: 192.004 | U42: EXIT33 | V42: EXIT33 | W42: 195.71 | X42: 199.909 | Y42: 21.06 | Z42: 259.64 | AA42: 100.536 | AD42: EXIT33 | AE42: EXIT33 | AF42: TRUE | AG42: TRUE | AH42: TRUE | AI42: TRUE | AJ42: TRUE | AM42: EXIT33 | AN42: EXIT33 | AO42: Domestic
C43: EXIT34 | D43: EXIT34 | E43: 187.57 | F43: 218.347 | G43: 12.93 | H43: 266.81 | I43: 284.41 | L43: EXIT34 | M43: EXIT34 | N43: 0 | O43: 0 | P43: 0 | Q43: 0 | R43: 192.004 | U43: EXIT34 | V43: EXIT34 | W43: 187.57 | X43: 218.347 | Y43: 12.93 | Z43: 266.81 | AA43: 92.406 | AD43: EXIT34 | AE43: EXIT34 | AF43: TRUE | AG43: TRUE | AH43: TRUE | AI43: TRUE | AJ43: TRUE | AM43: EXIT34 | AN43: EXIT34 | AO43: Domestic
C44: EXIT35 | D44: EXIT35 | E44: 173.66 | F44: 70.61 | G44: 299.18 | H44: 134.68 | I44: 570.66 | L44: EXIT35 | M44: EXIT35 | N44: 0 | O44: 0 | P44: 0 | Q44: 0 | R44: 192.004 | U44: EXIT35 | V44: EXIT35 | W44: 173.66 | X44: 70.61 | Y44: 299.18 | Z44: 134.68 | AA44: 378.656 | AD44: EXIT35 | AE44: EXIT35 | AF44: TRUE | AG44: TRUE | AH44: TRUE | AI44: TRUE | AJ44: TRUE | AM44: EXIT35 | AN44: EXIT35 | AO44: Domestic
C45: EXIT36 | D45: EXIT36 | E45: 67.92 | F45: 232.157 | G45: 268.42 | H45: 296.22 | I45: 539.9 | L45: =C45 -> EXIT36 | M45: =D45 -> EXIT36 | N45: 0 | O45: 0 | P45: 0 | Q45: 0 | R45: 192.004 | U45: =C45 -> EXIT36 | V45: =D45 -> EXIT36 | W45: 67.92 | X45: 232.157 | Y45: 268.42 | Z45: 296.22 | AA45: 347.896 | AD45: =C45 -> EXIT36 | AE45: =D45 -> EXIT36 | AF45: =E45=(N45+W45) -> TRUE | AG45: =F45=(O45+X45) -> TRUE | AH45: =G45=(P45+Y45) -> TRUE | AI45: =H45=(Q45+Z45) -> TRUE | AJ45: =I45=(R45+AA45) -> TRUE | AM45: =C45 -> EXIT36 | AN45: =D45 -> EXIT36 | AO45: Domestic
C46: EXIT37 | D46: EXIT37 | E46: 99.52 | F46: 69.801 | G46: 298.37 | H46: 133.86 | I46: 569.85 | L46: EXIT37 | M46: EXIT37 | N46: 0 | O46: 0 | P46: 0 | Q46: 0 | R46: 192.004 | U46: EXIT37 | V46: EXIT37 | W46: 99.52 | X46: 69.801 | Y46: 298.37 | Z46: 133.86 | AA46: 377.846 | AD46: EXIT37 | AE46: EXIT37 | AF46: TRUE | AG46: TRUE | AH46: TRUE | AI46: TRUE | AJ46: TRUE | AM46: EXIT37 | AN46: EXIT37 | AO46: Domestic
C47: EXIT38 | D47: EXIT38 | E47: 172.27 | F47: 69.217 | G47: 297.79 | H47: 133.29 | I47: 569.27 | L47: EXIT38 | M47: EXIT38 | N47: 0 | O47: 0 | P47: 0 | Q47: 0 | R47: 192.004 | U47: EXIT38 | V47: EXIT38 | W47: 172.27 | X47: 69.217 | Y47: 297.79 | Z47: 133.29 | AA47: 377.266 | AD47: EXIT38 | AE47: EXIT38 | AF47: TRUE | AG47: TRUE | AH47: TRUE | AI47: TRUE | AJ47: TRUE | AM47: EXIT38 | AN47: EXIT38 | AO47: Domestic
C48: EXIT39 | D48: EXIT39 | E48: 42.09 | F48: 206.326 | G48: 242.59 | H48: 270.39 | I48: 514.07 | L48: EXIT39 | M48: EXIT39 | N48: 0 | O48: 0 | P48: 0 | Q48: 0 | R48: 192.004 | U48: EXIT39 | V48: EXIT39 | W48: 42.09 | X48: 206.326 | Y48: 242.59 | Z48: 270.39 | AA48: 322.066 | AD48: EXIT39 | AE48: EXIT39 | AF48: TRUE | AG48: TRUE | AH48: TRUE | AI48: TRUE | AJ48: TRUE | AM48: EXIT39 | AN48: EXIT39 | AO48: Domestic
C49: EXIT40 | D49: EXIT40 | E49: 222.91 | F49: 54.729 | G49: 274.35 | H49: 13.3 | I49: 545.83 | L49: EXIT40 | M49: EXIT40 | N49: 0 | O49: 0 | P49: 0 | Q49: 0 | R49: 192.004 | U49: EXIT40 | V49: EXIT40 | W49: 222.91 | X49: 54.729 | Y49: 274.35 | Z49: 13.3 | AA49: 353.826 | AD49: EXIT40 | AE49: EXIT40 | AF49: TRUE | AG49: TRUE | AH49: TRUE | AI49: TRUE | AJ49: TRUE | AM49: EXIT40 | AN49: EXIT40 | AO49: Domestic
C50: EXIT41 | D50: EXIT41 | E50: 229.68 | F50: 61.484 | G50: 281.12 | H50: 21.94 | I50: 552.6 | L50: EXIT41 | M50: EXIT41 | N50: 0 | O50: 0 | P50: 0 | Q50: 0 | R50: 192.004 | U50: EXIT41 | V50: EXIT41 | W50: 229.68 | X50: 61.484 | Y50: 281.12 | Z50: 21.94 | AA50: 360.596 | AD50: EXIT41 | AE50: EXIT41 | AF50: TRUE | AG50: TRUE | AH50: TRUE | AI50: TRUE | AJ50: TRUE | AM50: EXIT41 | AN50: EXIT41 | AO50: Domestic
C51: EXIT42 | D51: EXIT42 | E51: 222.62 | F51: 211.094 | G51: 47.97 | H51: 262.21 | I51: 319.45 | L51: EXIT42 | M51: EXIT42 | N51: 0 | O51: 0 | P51: 0 | Q51: 0 | R51: 192.004 | U51: EXIT42 | V51: EXIT42 | W51: 222.62 | X51: 211.094 | Y51: 47.97 | Z51: 262.21 | AA51: 127.446 | AD51: EXIT42 | AE51: EXIT42 | AF51: TRUE | AG51: TRUE | AH51: TRUE | AI51: TRUE | AJ51: TRUE | AM51: EXIT42 | AN51: EXIT42 | AO51: Domestic
C52: EXIT43 | D52: EXIT43 | E52: 220.05 | F52: 55.906 | G52: 205.6 | H52: 106.98 | I52: 477.08 | L52: EXIT43 | M52: EXIT43 | N52: 0 | O52: 0 | P52: 0 | Q52: 0 | R52: 192.004 | U52: EXIT43 | V52: EXIT43 | W52: 220.05 | X52: 55.906 | Y52: 205.6 | Z52: 106.98 | AA52: 285.076 | AD52: EXIT43 | AE52: EXIT43 | AF52: TRUE | AG52: TRUE | AH52: TRUE | AI52: TRUE | AJ52: TRUE | AM52: EXIT43 | AN52: EXIT43 | AO52: Domestic
C53: EXIT44 | D53: EXIT44 | E53: 158.03 | F53: 54.972 | G53: 283.55 | H53: 119.04 | I53: 555.03 | L53: EXIT44 | M53: EXIT44 | N53: 0 | O53: 0 | P53: 0 | Q53: 0 | R53: 192.004 | U53: EXIT44 | V53: EXIT44 | W53: 158.03 | X53: 54.972 | Y53: 283.55 | Z53: 119.04 | AA53: 363.026 | AD53: EXIT44 | AE53: EXIT44 | AF53: TRUE | AG53: TRUE | AH53: TRUE | AI53: TRUE | AJ53: TRUE | AM53: EXIT44 | AN53: EXIT44 | AO53: Domestic
C54: EXIT45 | D54: EXIT45 | E54: 254.08 | F54: 87.849 | G54: 239.62 | H54: 141 | I54: 511.1 | L54: EXIT45 | M54: EXIT45 | N54: 0 | O54: 0 | P54: 0 | Q54: 0 | R54: 192.004 | U54: EXIT45 | V54: EXIT45 | W54: 254.08 | X54: 87.849 | Y54: 239.62 | Z54: 141 | AA54: 319.096 | AD54: EXIT45 | AE54: EXIT45 | AF54: TRUE | AG54: TRUE | AH54: TRUE | AI54: TRUE | AJ54: TRUE | AM54: EXIT45 | AN54: EXIT45 | AO54: Domestic
C55: EXIT46 | D55: EXIT46 | E55: 246.97 | F55: 169.368 | G55: 72.32 | H55: 220.44 | I55: 343.8 | L55: EXIT46 | M55: EXIT46 | N55: 0 | O55: 0 | P55: 0 | Q55: 0 | R55: 192.004 | U55: EXIT46 | V55: EXIT46 | W55: 246.97 | X55: 169.368 | Y55: 72.32 | Z55: 220.44 | AA55: 151.796 | AD55: EXIT46 | AE55: EXIT46 | AF55: TRUE | AG55: TRUE | AH55: TRUE | AI55: TRUE | AJ55: TRUE | AM55: EXIT46 | AN55: EXIT46 | AO55: Domestic
C56: EXIT47 | D56: EXIT47 | E56: 230.4 | F56: 62.222 | G56: 281.84 | H56: 6.44 | I56: 553.32 | L56: EXIT47 | M56: EXIT47 | N56: 0 | O56: 0 | P56: 0 | Q56: 0 | R56: 192.004 | U56: EXIT47 | V56: EXIT47 | W56: 230.4 | X56: 62.222 | Y56: 281.84 | Z56: 6.44 | AA56: 361.316 | AD56: EXIT47 | AE56: EXIT47 | AF56: TRUE | AG56: TRUE | AH56: TRUE | AI56: TRUE | AJ56: TRUE | AM56: EXIT47 | AN56: EXIT47 | AO56: Domestic
C57: EXIT48 | D57: EXIT48 | E57: 250.42 | F57: 81.774 | G57: 301.86 | H57: 40.81 | I57: 573.34 | L57: EXIT48 | M57: EXIT48 | N57: 0 | O57: 0 | P57: 0 | Q57: 0 | R57: 192.004 | U57: EXIT48 | V57: EXIT48 | W57: 250.42 | X57: 81.774 | Y57: 301.86 | Z57: 40.81 | AA57: 381.336 | AD57: EXIT48 | AE57: EXIT48 | AF57: TRUE | AG57: TRUE | AH57: TRUE | AI57: TRUE | AJ57: TRUE | AM57: EXIT48 | AN57: EXIT48 | AO57: Domestic
C58: EXIT49 | D58: EXIT49 | E58: 281.56 | F58: 131.227 | G58: 106.91 | H58: 191.78 | I58: 378.39 | L58: EXIT49 | M58: EXIT49 | N58: 0 | O58: 0 | P58: 0 | Q58: 0 | R58: 192.004 | U58: EXIT49 | V58: EXIT49 | W58: 281.56 | X58: 131.227 | Y58: 106.91 | Z58: 191.78 | AA58: 186.386 | AD58: EXIT49 | AE58: EXIT49 | AF58: TRUE | AG58: TRUE | AH58: TRUE | AI58: TRUE | AJ58: TRUE | AM58: EXIT49 | AN58: EXIT49 | AO58: Domestic
C59: EXIT50 | D59: EXIT50 | E59: 208.69 | F59: 197.165 | G59: 34.04 | H59: 248.29 | I59: 305.52 | L59: EXIT50 | M59: EXIT50 | N59: 0 | O59: 0 | P59: 0 | Q59: 0 | R59: 192.004 | U59: EXIT50 | V59: EXIT50 | W59: 208.69 | X59: 197.165 | Y59: 34.04 | Z59: 248.29 | AA59: 113.516 | AD59: EXIT50 | AE59: EXIT50 | AF59: TRUE | AG59: TRUE | AH59: TRUE | AI59: TRUE | AJ59: TRUE | AM59: EXIT50 | AN59: EXIT50 | AO59: Domestic
C60: EXIT51 | D60: EXIT51 | E60: 248.35 | F60: 79.705 | G60: 299.79 | H60: 38.74 | I60: 571.27 | L60: EXIT51 | M60: EXIT51 | N60: 0 | O60: 0 | P60: 0 | Q60: 0 | R60: 192.004 | U60: EXIT51 | V60: EXIT51 | W60: 248.35 | X60: 79.705 | Y60: 299.79 | Z60: 38.74 | AA60: 379.266 | AD60: EXIT51 | AE60: EXIT51 | AF60: TRUE | AG60: TRUE | AH60: TRUE | AI60: TRUE | AJ60: TRUE | AM60: EXIT51 | AN60: EXIT51 | AO60: Domestic
C61: EXIT52 | D61: EXIT52 | E61: 133.28 | F61: 272.645 | G61: 67.23 | H61: 321.11 | I61: 338.71 | L61: EXIT52 | M61: EXIT52 | N61: 0 | O61: 0 | P61: 0 | Q61: 0 | R61: 192.004 | U61: EXIT52 | V61: EXIT52 | W61: 133.28 | X61: 272.645 | Y61: 67.23 | Z61: 321.11 | AA61: 146.706 | AD61: EXIT52 | AE61: EXIT52 | AF61: TRUE | AG61: TRUE | AH61: TRUE | AI61: TRUE | AJ61: TRUE | AM61: EXIT52 | AN61: EXIT52 | AO61: Domestic
C62: EXIT53 | D62: EXIT53 | E62: 221.28 | F62: 182.024 | G62: 46.64 | H62: 233.1 | I62: 318.12 | L62: EXIT53 | M62: EXIT53 | N62: 0 | O62: 0 | P62: 0 | Q62: 0 | R62: 192.004 | U62: EXIT53 | V62: EXIT53 | W62: 221.28 | X62: 182.024 | Y62: 46.64 | Z62: 233.1 | AA62: 126.116 | AD62: EXIT53 | AE62: EXIT53 | AF62: TRUE | AG62: TRUE | AH62: TRUE | AI62: TRUE | AJ62: TRUE | AM62: EXIT53 | AN62: EXIT53 | AO62: Domestic
C63: EXIT54 | D63: EXIT54 | E63: 266.16 | F63: 97.472 | G63: 317.59 | H63: 56.54 | I63: 589.07 | L63: EXIT54 | M63: EXIT54 | N63: 0 | O63: 0 | P63: 0 | Q63: 0 | R63: 192.004 | U63: EXIT54 | V63: EXIT54 | W63: 266.16 | X63: 97.472 | Y63: 317.59 | Z63: 56.54 | AA63: 397.066 | AD63: EXIT54 | AE63: EXIT54 | AF63: TRUE | AG63: TRUE | AH63: TRUE | AI63: TRUE | AJ63: TRUE | AM63: EXIT54 | AN63: EXIT54 | AO63: Domestic
C64: EXIT55 | D64: EXIT55 | E64: 246.01 | F64: 77.307 | G64: 297.45 | H64: 36.39 | I64: 568.93 | L64: EXIT55 | M64: EXIT55 | N64: 0 | O64: 0 | P64: 0 | Q64: 0 | R64: 192.004 | U64: EXIT55 | V64: EXIT55 | W64: 246.01 | X64: 77.307 | Y64: 297.45 | Z64: 36.39 | AA64: 376.926 | AD64: EXIT55 | AE64: EXIT55 | AF64: TRUE | AG64: TRUE | AH64: TRUE | AI64: TRUE | AJ64: TRUE | AM64: EXIT55 | AN64: EXIT55 | AO64: Domestic
C65: EXIT57 | D65: EXIT57 | E65: 218.45 | F65: 199.117 | G65: 43.81 | H65: 250.19 | I65: 315.29 | L65: EXIT57 | M65: EXIT57 | N65: 0 | O65: 0 | P65: 0 | Q65: 0 | R65: 192.004 | U65: EXIT57 | V65: EXIT57 | W65: 218.45 | X65: 199.117 | Y65: 43.81 | Z65: 250.19 | AA65: 123.286 | AD65: EXIT57 | AE65: EXIT57 | AF65: TRUE | AG65: TRUE | AH65: TRUE | AI65: TRUE | AJ65: TRUE | AM65: EXIT57 | AN65: EXIT57 | AO65: Domestic
C66: EXIT58 | D66: EXIT58 | E66: 4.12 | F66: 193.634 | G66: 229.9 | H66: 257.7 | I66: 501.38 | L66: EXIT58 | M66: EXIT58 | N66: 0 | O66: 0 | P66: 0 | Q66: 0 | R66: 192.004 | U66: EXIT58 | V66: EXIT58 | W66: 4.12 | X66: 193.634 | Y66: 229.9 | Z66: 257.7 | AA66: 309.376 | AD66: EXIT58 | AE66: EXIT58 | AF66: TRUE | AG66: TRUE | AH66: TRUE | AI66: TRUE | AJ66: TRUE | AM66: EXIT58 | AN66: EXIT58 | AO66: Domestic
C67: EXIT59 | D67: EXIT59 | E67: 241.91 | F67: 73.206 | G67: 293.35 | H67: 32.3 | I67: 564.83 | L67: EXIT59 | M67: EXIT59 | N67: 0 | O67: 0 | P67: 0 | Q67: 0 | R67: 192.004 | U67: EXIT59 | V67: EXIT59 | W67: 241.91 | X67: 73.206 | Y67: 293.35 | Z67: 32.3 | AA67: 372.826 | AD67: EXIT59 | AE67: EXIT59 | AF67: TRUE | AG67: TRUE | AH67: TRUE | AI67: TRUE | AJ67: TRUE | AM67: EXIT59 | AN67: EXIT59 | AO67: Domestic
C68: EXIT60 | D68: EXIT60 | E68: 280.21 | F68: 116.067 | G68: 112.59 | H68: 167.14 | I68: 384.07 | L68: EXIT60 | M68: EXIT60 | N68: 0 | O68: 0 | P68: 0 | Q68: 0 | R68: 192.004 | U68: EXIT60 | V68: EXIT60 | W68: 280.21 | X68: 116.067 | Y68: 112.59 | Z68: 167.14 | AA68: 192.066 | AD68: EXIT60 | AE68: EXIT60 | AF68: TRUE | AG68: TRUE | AH68: TRUE | AI68: TRUE | AJ68: TRUE | AM68: EXIT60 | AN68: EXIT60 | AO68: Domestic
C69: EXIT61 | D69: EXIT61 | E69: 225.6 | F69: 254.822 | G69: 50.95 | H69: 294.82 | I69: 322.43 | L69: EXIT61 | M69: EXIT61 | N69: 0 | O69: 0 | P69: 0 | Q69: 0 | R69: 192.004 | U69: EXIT61 | V69: EXIT61 | W69: 225.6 | X69: 254.822 | Y69: 50.95 | Z69: 294.82 | AA69: 130.426 | AD69: EXIT61 | AE69: EXIT61 | AF69: TRUE | AG69: TRUE | AH69: TRUE | AI69: TRUE | AJ69: TRUE | AM69: EXIT61 | AN69: EXIT61 | AO69: Domestic
C70: EXIT62 | D70: EXIT62 | E70: 147 | F70: 17.235 | G70: 245.81 | H70: 81.3 | I70: 517.29 | L70: EXIT62 | M70: EXIT62 | N70: 0 | O70: 0 | P70: 0 | Q70: 0 | R70: 192.004 | U70: EXIT62 | V70: EXIT62 | W70: 147 | X70: 17.235 | Y70: 245.81 | Z70: 81.3 | AA70: 325.286 | AD70: EXIT62 | AE70: EXIT62 | AF70: TRUE | AG70: TRUE | AH70: TRUE | AI70: TRUE | AJ70: TRUE | AM70: EXIT62 | AN70: EXIT62 | AO70: Domestic
C71: EXIT63 | D71: EXIT63 | E71: 240.45 | F71: 162.853 | G71: 65.81 | H71: 213.93 | I71: 337.29 | L71: EXIT63 | M71: EXIT63 | N71: 0 | O71: 0 | P71: 0 | Q71: 0 | R71: 192.004 | U71: EXIT63 | V71: EXIT63 | W71: 240.45 | X71: 162.853 | Y71: 65.81 | Z71: 213.93 | AA71: 145.286 | AD71: EXIT63 | AE71: EXIT63 | AF71: TRUE | AG71: TRUE | AH71: TRUE | AI71: TRUE | AJ71: TRUE | AM71: EXIT63 | AN71: EXIT63 | AO71: Domestic
C72: EXIT64 | D72: EXIT64 | E72: 244.61 | F72: 284.155 | G72: 69.96 | H72: 270.32 | I72: 341.44 | L72: EXIT64 | M72: EXIT64 | N72: 0 | O72: 0 | P72: 0 | Q72: 0 | R72: 192.004 | U72: EXIT64 | V72: EXIT64 | W72: 244.61 | X72: 284.155 | Y72: 69.96 | Z72: 270.32 | AA72: 149.436 | AD72: EXIT64 | AE72: EXIT64 | AF72: TRUE | AG72: TRUE | AH72: TRUE | AI72: TRUE | AJ72: TRUE | AM72: EXIT64 | AN72: EXIT64 | AO72: Domestic
C73: EXIT65 | D73: EXIT65 | E73: 239.69 | F73: 284.347 | G73: 65.05 | H73: 265.4 | I73: 336.53 | L73: EXIT65 | M73: EXIT65 | N73: 0 | O73: 0 | P73: 0 | Q73: 0 | R73: 192.004 | U73: EXIT65 | V73: EXIT65 | W73: 239.69 | X73: 284.347 | Y73: 65.05 | Z73: 265.4 | AA73: 144.526 | AD73: EXIT65 | AE73: EXIT65 | AF73: TRUE | AG73: TRUE | AH73: TRUE | AI73: TRUE | AJ73: TRUE | AM73: EXIT65 | AN73: EXIT65 | AO73: Domestic
C74: EXIT66 | D74: EXIT66 | E74: 219.43 | F74: 205.965 | G74: 44.79 | H74: 258.74 | I74: 316.27 | L74: EXIT66 | M74: EXIT66 | N74: 0 | O74: 0 | P74: 0 | Q74: 0 | R74: 192.004 | U74: EXIT66 | V74: EXIT66 | W74: 219.43 | X74: 205.965 | Y74: 44.79 | Z74: 258.74 | AA74: 124.266 | AD74: EXIT66 | AE74: EXIT66 | AF74: TRUE | AG74: TRUE | AH74: TRUE | AI74: TRUE | AJ74: TRUE | AM74: EXIT66 | AN74: EXIT66 | AO74: Domestic
C75: EXIT67 | D75: EXIT67 | E75: 190.93 | F75: 26.778 | G75: 201.88 | H75: 77.85 | I75: 473.36 | L75: EXIT67 | M75: EXIT67 | N75: 0 | O75: 0 | P75: 0 | Q75: 0 | R75: 192.004 | U75: EXIT67 | V75: EXIT67 | W75: 190.93 | X75: 26.778 | Y75: 201.88 | Z75: 77.85 | AA75: 281.356 | AD75: EXIT67 | AE75: EXIT67 | AF75: TRUE | AG75: TRUE | AH75: TRUE | AI75: TRUE | AJ75: TRUE | AM75: EXIT67 | AN75: EXIT67 | AO75: Domestic
C76: EXIT68 | D76: EXIT68 | E76: 229.26 | F76: 203.524 | G76: 54.61 | H76: 254.97 | I76: 326.09 | L76: EXIT68 | M76: EXIT68 | N76: 0 | O76: 0 | P76: 0 | Q76: 0 | R76: 192.004 | U76: EXIT68 | V76: EXIT68 | W76: 229.26 | X76: 203.524 | Y76: 54.61 | Z76: 254.97 | AA76: 134.086 | AD76: EXIT68 | AE76: EXIT68 | AF76: TRUE | AG76: TRUE | AH76: TRUE | AI76: TRUE | AJ76: TRUE | AM76: EXIT68 | AN76: EXIT68 | AO76: Domestic
C77: EXIT69 | D77: EXIT69 | E77: 237.45 | F77: 303.65 | G77: 62.81 | H77: 263.16 | I77: 334.29 | L77: =C77 -> EXIT69 | M77: =D77 -> EXIT69 | N77: 0 | O77: 0 | P77: 0 | Q77: 0 | R77: 192.004 | U77: =C77 -> EXIT69 | V77: =D77 -> EXIT69 | W77: 237.45 | X77: 303.65 | Y77: 62.81 | Z77: 263.16 | AA77: 142.286 | AD77: =C77 -> EXIT69 | AE77: =D77 -> EXIT69 | AF77: =E77=(N77+W77) -> TRUE | AG77: =F77=(O77+X77) -> TRUE | AH77: =G77=(P77+Y77) -> TRUE | AI77: =H77=(Q77+Z77) -> TRUE | AJ77: =I77=(R77+AA77) -> TRUE | AM77: =C77 -> EXIT69 | AN77: =D77 -> EXIT69 | AO77: Domestic
C78: EXIT70 | D78: EXIT70 | E78: 231.21 | F78: 63.026 | G78: 282.64 | H78: 7.25 | I78: 554.12 | L78: EXIT70 | M78: EXIT70 | N78: 0 | O78: 0 | P78: 0 | Q78: 0 | R78: 192.004 | U78: EXIT70 | V78: EXIT70 | W78: 231.21 | X78: 63.026 | Y78: 282.64 | Z78: 7.25 | AA78: 362.116 | AD78: EXIT70 | AE78: EXIT70 | AF78: TRUE | AG78: TRUE | AH78: TRUE | AI78: TRUE | AJ78: TRUE | AM78: EXIT70 | AN78: EXIT70 | AO78: Domestic
C79: EXIT71 | D79: EXIT71 | E79: 233.91 | F79: 65.728 | G79: 285.35 | H79: 24.29 | I79: 556.83 | L79: EXIT71 | M79: EXIT71 | N79: 0 | O79: 0 | P79: 0 | Q79: 0 | R79: 192.004 | U79: EXIT71 | V79: EXIT71 | W79: 233.91 | X79: 65.728 | Y79: 285.35 | Z79: 24.29 | AA79: 364.826 | AD79: EXIT71 | AE79: EXIT71 | AF79: TRUE | AG79: TRUE | AH79: TRUE | AI79: TRUE | AJ79: TRUE | AM79: EXIT71 | AN79: EXIT71 | AO79: Domestic
C80: EXIT72 | D80: EXIT72 | E80: 271.74 | F80: 238.154 | G80: 97.09 | H80: 289.23 | I80: 368.57 | L80: EXIT72 | M80: EXIT72 | N80: 0 | O80: 0 | P80: 0 | Q80: 0 | R80: 192.004 | U80: EXIT72 | V80: EXIT72 | W80: 271.74 | X80: 238.154 | Y80: 97.09 | Z80: 289.23 | AA80: 176.566 | AD80: EXIT72 | AE80: EXIT72 | AF80: TRUE | AG80: TRUE | AH80: TRUE | AI80: TRUE | AJ80: TRUE | AM80: EXIT72 | AN80: EXIT72 | AO80: Domestic
C81: EXIT73 | D81: EXIT73 | E81: 31.46 | F81: 195.701 | G81: 169.04 | H81: 259.77 | I81: 440.52 | L81: EXIT73 | M81: EXIT73 | N81: 0 | O81: 0 | P81: 0 | Q81: 0 | R81: 192.004 | U81: EXIT73 | V81: EXIT73 | W81: 31.46 | X81: 195.701 | Y81: 169.04 | Z81: 259.77 | AA81: 248.516 | AD81: EXIT73 | AE81: EXIT73 | AF81: TRUE | AG81: TRUE | AH81: TRUE | AI81: TRUE | AJ81: TRUE | AM81: EXIT73 | AN81: EXIT73 | AO81: Domestic
C82: EXIT74 | D82: EXIT74 | E82: 215.3 | F82: 203.779 | G82: 40.65 | H82: 254.9 | I82: 312.13 | L82: EXIT74 | M82: EXIT74 | N82: 0 | O82: 0 | P82: 0 | Q82: 0 | R82: 192.004 | U82: EXIT74 | V82: EXIT74 | W82: 215.3 | X82: 203.779 | Y82: 40.65 | Z82: 254.9 | AA82: 120.126 | AD82: EXIT74 | AE82: EXIT74 | AF82: TRUE | AG82: TRUE | AH82: TRUE | AI82: TRUE | AJ82: TRUE | AM82: EXIT74 | AN82: EXIT74 | AO82: Domestic
C83: EXIT75 | D83: EXIT75 | E83: 221.19 | F83: 199.152 | G83: 46.55 | H83: 250.22 | I83: 318.03 | L83: EXIT75 | M83: EXIT75 | N83: 0 | O83: 0 | P83: 0 | Q83: 0 | R83: 192.004 | U83: EXIT75 | V83: EXIT75 | W83: 221.19 | X83: 199.152 | Y83: 46.55 | Z83: 250.22 | AA83: 126.026 | AD83: EXIT75 | AE83: EXIT75 | AF83: TRUE | AG83: TRUE | AH83: TRUE | AI83: TRUE | AJ83: TRUE | AM83: EXIT75 | AN83: EXIT75 | AO83: Domestic
C84: EXIT76 | D84: EXIT76 | E84: 235.36 | F84: 66.742 | G84: 286.8 | H84: 25.74 | I84: 558.28 | L84: EXIT76 | M84: EXIT76 | N84: 0 | O84: 0 | P84: 0 | Q84: 0 | R84: 192.004 | U84: EXIT76 | V84: EXIT76 | W84: 235.36 | X84: 66.742 | Y84: 286.8 | Z84: 25.74 | AA84: 366.276 | AD84: EXIT76 | AE84: EXIT76 | AF84: TRUE | AG84: TRUE | AH84: TRUE | AI84: TRUE | AJ84: TRUE | AM84: EXIT76 | AN84: EXIT76 | AO84: Domestic
C85: EXIT77 | D85: EXIT77 | E85: 213.65 | F85: 202.618 | G85: 39 | H85: 253.24 | I85: 310.48 | L85: EXIT77 | M85: EXIT77 | N85: 0 | O85: 0 | P85: 0 | Q85: 0 | R85: 192.004 | U85: EXIT77 | V85: EXIT77 | W85: 213.65 | X85: 202.618 | Y85: 39 | Z85: 253.24 | AA85: 118.476 | AD85: EXIT77 | AE85: EXIT77 | AF85: TRUE | AG85: TRUE | AH85: TRUE | AI85: TRUE | AJ85: TRUE | AM85: EXIT77 | AN85: EXIT77 | AO85: Domestic
C86: EXIT78 | D86: EXIT78 | E86: 98.06 | F86: 75.838 | G86: 298.57 | H86: 139.9 | I86: 570.05 | L86: EXIT78 | M86: EXIT78 | N86: 0 | O86: 0 | P86: 0 | Q86: 0 | R86: 192.004 | U86: EXIT78 | V86: EXIT78 | W86: 98.06 | X86: 75.838 | Y86: 298.57 | Z86: 139.9 | AA86: 378.046 | AD86: EXIT78 | AE86: EXIT78 | AF86: TRUE | AG86: TRUE | AH86: TRUE | AI86: TRUE | AJ86: TRUE | AM86: EXIT78 | AN86: EXIT78 | AO86: Domestic
C87: EXIT79 | D87: EXIT79 | E87: 233.78 | F87: 194.521 | G87: 59.13 | H87: 245.6 | I87: 330.61 | L87: EXIT79 | M87: EXIT79 | N87: 0 | O87: 0 | P87: 0 | Q87: 0 | R87: 192.004 | U87: EXIT79 | V87: EXIT79 | W87: 233.78 | X87: 194.521 | Y87: 59.13 | Z87: 245.6 | AA87: 138.606 | AD87: EXIT79 | AE87: EXIT79 | AF87: TRUE | AG87: TRUE | AH87: TRUE | AI87: TRUE | AJ87: TRUE | AM87: EXIT79 | AN87: EXIT79 | AO87: Domestic
C88: EXIT80 | D88: EXIT80 | E88: 224.39 | F88: 60.245 | G88: 209.94 | H88: 111.32 | I88: 481.42 | L88: EXIT80 | M88: EXIT80 | N88: 0 | O88: 0 | P88: 0 | Q88: 0 | R88: 192.004 | U88: EXIT80 | V88: EXIT80 | W88: 224.39 | X88: 60.245 | Y88: 209.94 | Z88: 111.32 | AA88: 289.416 | AD88: EXIT80 | AE88: EXIT80 | AF88: TRUE | AG88: TRUE | AH88: TRUE | AI88: TRUE | AJ88: TRUE | AM88: EXIT80 | AN88: EXIT80 | AO88: Domestic
C89: EXIT81 | D89: EXIT81 | E89: 88.65 | F89: 252.894 | G89: 111.85 | H89: 316.96 | I89: 383.33 | L89: EXIT81 | M89: EXIT81 | N89: 0 | O89: 0 | P89: 0 | Q89: 0 | R89: 192.004 | U89: EXIT81 | V89: EXIT81 | W89: 88.65 | X89: 252.894 | Y89: 111.85 | Z89: 316.96 | AA89: 191.326 | AD89: EXIT81 | AE89: EXIT81 | AF89: TRUE | AG89: TRUE | AH89: TRUE | AI89: TRUE | AJ89: TRUE | AM89: EXIT81 | AN89: EXIT81 | AO89: Domestic
C90: EXIT82 | D90: EXIT82 | E90: 255.97 | F90: 89.474 | G90: 241.52 | H90: 142.9 | I90: 513 | L90: EXIT82 | M90: EXIT82 | N90: 0 | O90: 0 | P90: 0 | Q90: 0 | R90: 192.004 | U90: EXIT82 | V90: EXIT82 | W90: 255.97 | X90: 89.474 | Y90: 241.52 | Z90: 142.9 | AA90: 320.996 | AD90: EXIT82 | AE90: EXIT82 | AF90: TRUE | AG90: TRUE | AH90: TRUE | AI90: TRUE | AJ90: TRUE | AM90: EXIT82 | AN90: EXIT82 | AO90: Domestic
C91: EXIT83 | D91: EXIT83 | E91: 266.36 | F91: 102.217 | G91: 173.84 | H91: 153.29 | I91: 445.32 | L91: EXIT83 | M91: EXIT83 | N91: 0 | O91: 0 | P91: 0 | Q91: 0 | R91: 192.004 | U91: EXIT83 | V91: EXIT83 | W91: 266.36 | X91: 102.217 | Y91: 173.84 | Z91: 153.29 | AA91: 253.316 | AD91: EXIT83 | AE91: EXIT83 | AF91: TRUE | AG91: TRUE | AH91: TRUE | AI91: TRUE | AJ91: TRUE | AM91: EXIT83 | AN91: EXIT83 | AO91: Domestic
C92: EXIT84 | D92: EXIT84 | E92: 225.24 | F92: 185.543 | G92: 50.59 | H92: 237.05 | I92: 322.07 | L92: EXIT84 | M92: EXIT84 | N92: 0 | O92: 0 | P92: 0 | Q92: 0 | R92: 192.004 | U92: EXIT84 | V92: EXIT84 | W92: 225.24 | X92: 185.543 | Y92: 50.59 | Z92: 237.05 | AA92: 130.066 | AD92: EXIT84 | AE92: EXIT84 | AF92: TRUE | AG92: TRUE | AH92: TRUE | AI92: TRUE | AJ92: TRUE | AM92: EXIT84 | AN92: EXIT84 | AO92: Domestic
C93: EXIT86 | D93: EXIT86 | E93: 274.08 | F93: 105.462 | G93: 325.52 | H93: 64.46 | I93: 597 | L93: EXIT86 | M93: EXIT86 | N93: 0 | O93: 0 | P93: 0 | Q93: 0 | R93: 192.004 | U93: EXIT86 | V93: EXIT86 | W93: 274.08 | X93: 105.462 | Y93: 325.52 | Z93: 64.46 | AA93: 404.996 | AD93: EXIT86 | AE93: EXIT86 | AF93: TRUE | AG93: TRUE | AH93: TRUE | AI93: TRUE | AJ93: TRUE | AM93: EXIT86 | AN93: EXIT86 | AO93: Domestic
C94: EXIT87 | D94: EXIT87 | E94: 195.86 | F94: 226.612 | G94: 14 | H94: 275.09 | I94: 285.48 | L94: EXIT87 | M94: EXIT87 | N94: 0 | O94: 0 | P94: 0 | Q94: 0 | R94: 192.004 | U94: EXIT87 | V94: EXIT87 | W94: 195.86 | X94: 226.612 | Y94: 14 | Z94: 275.09 | AA94: 93.476 | AD94: EXIT87 | AE94: EXIT87 | AF94: TRUE | AG94: TRUE | AH94: TRUE | AI94: TRUE | AJ94: TRUE | AM94: EXIT87 | AN94: EXIT87 | AO94: Domestic
C95: EXIT88 | D95: EXIT88 | E95: 220.29 | F95: 186.933 | G95: 45.64 | H95: 238.01 | I95: 317.12 | L95: =C95 -> EXIT88 | M95: =D95 -> EXIT88 | N95: 0 | O95: 0 | P95: 0 | Q95: 0 | R95: 192.004 | U95: =C95 -> EXIT88 | V95: =D95 -> EXIT88 | W95: 220.29 | X95: 186.933 | Y95: 45.64 | Z95: 238.01 | AA95: 125.116 | AD95: =C95 -> EXIT88 | AE95: =D95 -> EXIT88 | AF95: TRUE | AG95: TRUE | AH95: TRUE | AI95: TRUE | AJ95: TRUE | AM95: EXIT88 | AN95: EXIT88 | AO95: Domestic
C96: EXIT89 | D96: EXIT89 | E96: 222.03 | F96: 202.006 | G96: 47.38 | H96: 253.08 | I96: 318.86 | L96: EXIT89 | M96: EXIT89 | N96: 0 | O96: 0 | P96: 0 | Q96: 0 | R96: 192.004 | U96: EXIT89 | V96: EXIT89 | W96: 222.03 | X96: 202.006 | Y96: 47.38 | Z96: 253.08 | AA96: 126.856 | AD96: EXIT89 | AE96: EXIT89 | AF96: TRUE | AG96: TRUE | AH96: TRUE | AI96: TRUE | AJ96: TRUE | AM96: EXIT89 | AN96: EXIT89 | AO96: Domestic
C97: EXIT90 | D97: EXIT90 | E97: 295.96 | F97: 127.342 | G97: 347.4 | H97: 86.34 | I97: 618.88 | L97: EXIT90 | M97: EXIT90 | N97: 0 | O97: 0 | P97: 0 | Q97: 0 | R97: 192.004 | U97: EXIT90 | V97: EXIT90 | W97: 295.96 | X97: 127.342 | Y97: 347.4 | Z97: 86.34 | AA97: 426.876 | AD97: EXIT90 | AE97: EXIT90 | AF97: TRUE | AG97: TRUE | AH97: TRUE | AI97: TRUE | AJ97: TRUE | AM97: EXIT90 | AN97: EXIT90 | AO97: Domestic
C98: EXIT91 | D98: EXIT91 | E98: 224.79 | F98: 56.61 | G98: 276.23 | H98: 15.18 | I98: 547.71 | L98: EXIT91 | M98: EXIT91 | N98: 0 | O98: 0 | P98: 0 | Q98: 0 | R98: 192.004 | U98: EXIT91 | V98: EXIT91 | W98: 224.79 | X98: 56.61 | Y98: 276.23 | Z98: 15.18 | AA98: 355.706 | AD98: EXIT91 | AE98: EXIT91 | AF98: TRUE | AG98: TRUE | AH98: TRUE | AI98: TRUE | AJ98: TRUE | AM98: EXIT91 | AN98: EXIT91 | AO98: Domestic
C99: EXIT92 | D99: EXIT92 | E99: 245.7 | F99: 77.079 | G99: 297.14 | H99: 36.08 | I99: 568.62 | L99: EXIT92 | M99: EXIT92 | N99: 0 | O99: 0 | P99: 0 | Q99: 0 | R99: 192.004 | U99: EXIT92 | V99: EXIT92 | W99: 245.7 | X99: 77.079 | Y99: 297.14 | Z99: 36.08 | AA99: 376.616 | AD99: EXIT92 | AE99: EXIT92 | AF99: TRUE | AG99: TRUE | AH99: TRUE | AI99: TRUE | AJ99: TRUE | AM99: EXIT92 | AN99: EXIT92 | AO99: Domestic
C100: EXIT93 | D100: EXIT93 | E100: 162.45 | F100: 59.399 | G100: 287.97 | H100: 123.47 | I100: 559.45 | L100: EXIT93 | M100: EXIT93 | N100: 0 | O100: 0 | P100: 0 | Q100: 0 | R100: 192.004 | U100: EXIT93 | V100: EXIT93 | W100: 162.45 | X100: 59.399 | Y100: 287.97 | Z100: 123.47 | AA100: 367.446 | AD100: EXIT93 | AE100: EXIT93 | AF100: TRUE | AG100: TRUE | AH100: TRUE | AI100: TRUE | AJ100: TRUE | AM100: EXIT93 | AN100: EXIT93 | AO100: Domestic
C101: EXIT94 | D101: EXIT94 | E101: 284.84 | F101: 120.7 | G101: 117.23 | H101: 171.77 | I101: 388.71 | L101: EXIT94 | M101: EXIT94 | N101: 0 | O101: 0 | P101: 0 | Q101: 0 | R101: 192.004 | U101: EXIT94 | V101: EXIT94 | W101: 284.84 | X101: 120.7 | Y101: 117.23 | Z101: 171.77 | AA101: 196.706 | AD101: EXIT94 | AE101: EXIT94 | AF101: TRUE | AG101: TRUE | AH101: TRUE | AI101: TRUE | AJ101: TRUE | AM101: EXIT94 | AN101: EXIT94 | AO101: Domestic
C102: EXIT95 | D102: EXIT95 | E102: 212.61 | F102: 241.836 | G102: 37.97 | H102: 291.85 | I102: 309.45 | L102: EXIT95 | M102: EXIT95 | N102: 0 | O102: 0 | P102: 0 | Q102: 0 | R102: 192.004 | U102: EXIT95 | V102: EXIT95 | W102: 212.61 | X102: 241.836 | Y102: 37.97 | Z102: 291.85 | AA102: 117.446 | AD102: EXIT95 | AE102: EXIT95 | AF102: TRUE | AG102: TRUE | AH102: TRUE | AI102: TRUE | AJ102: TRUE | AM102: EXIT95 | AN102: EXIT95 | AO102: Domestic
C103: EXIT96 | D103: EXIT96 | E103: 233.46 | F103: 199.88 | G103: 58.81 | H103: 250.96 | I103: 330.29 | L103: EXIT96 | M103: EXIT96 | N103: 0 | O103: 0 | P103: 0 | Q103: 0 | R103: 192.004 | U103: EXIT96 | V103: EXIT96 | W103: 233.46 | X103: 199.88 | Y103: 58.81 | Z103: 250.96 | AA103: 138.286 | AD103: EXIT96 | AE103: EXIT96 | AF103: TRUE | AG103: TRUE | AH103: TRUE | AI103: TRUE | AJ103: TRUE | AM103: EXIT96 | AN103: EXIT96 | AO103: Domestic
C104: EXIT97 | D104: EXIT97 | E104: 184.93 | F104: 20.778 | G104: 236.36 | H104: 71.85 | I104: 507.84 | L104: EXIT97 | M104: EXIT97 | N104: 0 | O104: 0 | P104: 0 | Q104: 0 | R104: 192.004 | U104: EXIT97 | V104: EXIT97 | W104: 184.93 | X104: 20.778 | Y104: 236.36 | Z104: 71.85 | AA104: 315.836 | AD104: EXIT97 | AE104: EXIT97 | AF104: TRUE | AG104: TRUE | AH104: TRUE | AI104: TRUE | AJ104: TRUE | AM104: EXIT97 | AN104: EXIT97 | AO104: Domestic
C105: EXIT98 | D105: EXIT98 | E105: 252.89 | F105: 84.243 | G105: 304.33 | H105: 43.27 | I105: 575.81 | L105: EXIT98 | M105: EXIT98 | N105: 0 | O105: 0 | P105: 0 | Q105: 0 | R105: 192.004 | U105: EXIT98 | V105: EXIT98 | W105: 252.89 | X105: 84.243 | Y105: 304.33 | Z105: 43.27 | AA105: 383.806 | AD105: EXIT98 | AE105: EXIT98 | AF105: TRUE | AG105: TRUE | AH105: TRUE | AI105: TRUE | AJ105: TRUE | AM105: EXIT98 | AN105: EXIT98 | AO105: Domestic
C106: EXIT99 | D106: EXIT99 | E106: 241.76 | F106: 73.129 | G106: 293.2 | H106: 32.14 | I106: 564.68 | L106: EXIT99 | M106: EXIT99 | N106: 0 | O106: 0 | P106: 0 | Q106: 0 | R106: 192.004 | U106: EXIT99 | V106: EXIT99 | W106: 241.76 | X106: 73.129 | Y106: 293.2 | Z106: 32.14 | AA106: 372.676 | AD106: EXIT99 | AE106: EXIT99 | AF106: TRUE | AG106: TRUE | AH106: TRUE | AI106: TRUE | AJ106: TRUE | AM106: EXIT99 | AN106: EXIT99 | AO106: Domestic
C107: EXIT100 | D107: EXIT100 | E107: 237.23 | F107: 266.454 | G107: 62.59 | H107: 283.18 | I107: 334.07 | L107: EXIT100 | M107: EXIT100 | N107: 0 | O107: 0 | P107: 0 | Q107: 0 | R107: 192.004 | U107: EXIT100 | V107: EXIT100 | W107: 237.23 | X107: 266.454 | Y107: 62.59 | Z107: 283.18 | AA107: 142.066 | AD107: EXIT100 | AE107: EXIT100 | AF107: TRUE | AG107: TRUE | AH107: TRUE | AI107: TRUE | AJ107: TRUE | AM107: EXIT100 | AN107: EXIT100 | AO107: Domestic
C108: EXIT101 | D108: EXIT101 | E108: 214.6 | F108: 188.71 | G108: 39.95 | H108: 239.78 | I108: 311.43 | L108: EXIT101 | M108: EXIT101 | N108: 0 | O108: 0 | P108: 0 | Q108: 0 | R108: 192.004 | U108: EXIT101 | V108: EXIT101 | W108: 214.6 | X108: 188.71 | Y108: 39.95 | Z108: 239.78 | AA108: 119.426 | AD108: EXIT101 | AE108: EXIT101 | AF108: TRUE | AG108: TRUE | AH108: TRUE | AI108: TRUE | AJ108: TRUE | AM108: EXIT101 | AN108: EXIT101 | AO108: Domestic
C109: EXIT102 | D109: EXIT102 | E109: 229 | F109: 295.197 | G109: 54.36 | H109: 254.71 | I109: 325.84 | L109: EXIT102 | M109: EXIT102 | N109: 0 | O109: 0 | P109: 0 | Q109: 0 | R109: 192.004 | U109: EXIT102 | V109: EXIT102 | W109: 229 | X109: 295.197 | Y109: 54.36 | Z109: 254.71 | AA109: 133.836 | AD109: EXIT102 | AE109: EXIT102 | AF109: =E109=(N109+W109) -> TRUE | AG109: =F109=(O109+X109) -> TRUE | AH109: =G109=(P109+Y109) -> TRUE | AI109: =H109=(Q109+Z109) -> TRUE | AJ109: =I109=(R109+AA109) -> TRUE | AM109: =C109 -> EXIT102 | AN109: =D109 -> EXIT102 | AO109: Domestic
C110: EXIT103 | D110: EXIT103 | E110: 231.98 | F110: 63.768 | G110: 283.42 | H110: 24.24 | I110: 554.9 | L110: EXIT103 | M110: EXIT103 | N110: 0 | O110: 0 | P110: 0 | Q110: 0 | R110: 192.004 | U110: EXIT103 | V110: EXIT103 | W110: 231.98 | X110: 63.768 | Y110: 283.42 | Z110: 24.24 | AA110: 362.896 | AD110: EXIT103 | AE110: EXIT103 | AF110: TRUE | AG110: TRUE | AH110: TRUE | AI110: TRUE | AJ110: TRUE | AM110: EXIT103 | AN110: EXIT103 | AO110: Domestic
C111: EXIT104 | D111: EXIT104 | E111: 229.76 | F111: 256.161 | G111: 55.11 | H111: 298.97 | I111: 326.59 | L111: EXIT104 | M111: EXIT104 | N111: 0 | O111: 0 | P111: 0 | Q111: 0 | R111: 192.004 | U111: EXIT104 | V111: EXIT104 | W111: 229.76 | X111: 256.161 | Y111: 55.11 | Z111: 298.97 | AA111: 134.586 | AD111: EXIT104 | AE111: EXIT104 | AF111: TRUE | AG111: TRUE | AH111: TRUE | AI111: TRUE | AJ111: TRUE | AM111: EXIT104 | AN111: EXIT104 | AO111: Domestic
C112: EXIT105 | D112: EXIT105 | E112: 68.26 | F112: 232.501 | G112: 132.24 | H112: 296.57 | I112: 403.72 | L112: EXIT105 | M112: EXIT105 | N112: 0 | O112: 0 | P112: 0 | Q112: 0 | R112: 192.004 | U112: EXIT105 | V112: EXIT105 | W112: 68.26 | X112: 232.501 | Y112: 132.24 | Z112: 296.57 | AA112: 211.716 | AD112: EXIT105 | AE112: EXIT105 | AF112: TRUE | AG112: TRUE | AH112: TRUE | AI112: TRUE | AJ112: TRUE | AM112: EXIT105 | AN112: EXIT105 | AO112: Domestic
C113: EXIT106 | D113: EXIT106 | E113: 112.67 | F113: 276.903 | G113: 313.17 | H113: 340.97 | I113: 584.65 | L113: =C113 -> EXIT106 | M113: EXIT106 | N113: 0 | O113: 0 | P113: 0 | Q113: 0 | R113: 192.004 | U113: =C113 -> EXIT106 | V113: EXIT106 | W113: 112.67 | X113: 276.903 | Y113: 313.17 | Z113: 340.97 | AA113: 392.646 | AD113: EXIT106 | AE113: EXIT106 | AF113: TRUE | AG113: TRUE | AH113: TRUE | AI113: TRUE | AJ113: TRUE | AM113: EXIT106 | AN113: EXIT106 | AO113: Domestic
C114: EXIT107 | D114: EXIT107 | E114: 247.37 | F114: 213.786 | G114: 72.72 | H114: 264.86 | I114: 344.2 | L114: EXIT107 | M114: EXIT107 | N114: 0 | O114: 0 | P114: 0 | Q114: 0 | R114: 192.004 | U114: EXIT107 | V114: EXIT107 | W114: 247.37 | X114: 213.786 | Y114: 72.72 | Z114: 264.86 | AA114: 152.196 | AD114: EXIT107 | AE114: EXIT107 | AF114: TRUE | AG114: TRUE | AH114: TRUE | AI114: TRUE | AJ114: TRUE | AM114: EXIT107 | AN114: EXIT107 | AO114: Domestic
C115: EXIT108 | D115: EXIT108 | E115: 154.15 | F115: 51.097 | G115: 279.67 | H115: 115.17 | I115: 551.15 | L115: EXIT108 | M115: EXIT108 | N115: 0 | O115: 0 | P115: 0 | Q115: 0 | R115: 192.004 | U115: EXIT108 | V115: EXIT108 | W115: 154.15 | X115: 51.097 | Y115: 279.67 | Z115: 115.17 | AA115: 359.146 | AD115: EXIT108 | AE115: EXIT108 | AF115: TRUE | AG115: TRUE | AH115: TRUE | AI115: TRUE | AJ115: TRUE | AM115: EXIT108 | AN115: EXIT108 | AO115: Domestic
C116: EXIT109 | D116: EXIT109 | E116: 238.28 | F116: 267.482 | G116: 63.63 | H116: 307.49 | I116: 335.11 | L116: =C116 -> EXIT109 | M116: =D116 -> EXIT109 | N116: 0 | O116: 0 | P116: 0 | Q116: 0 | R116: 192.004 | U116: =C116 -> EXIT109 | V116: =D116 -> EXIT109 | W116: 238.28 | X116: 267.482 | Y116: 63.63 | Z116: 307.49 | AA116: 143.106 | AD116: =C116 -> EXIT109 | AE116: =D116 -> EXIT109 | AF116: TRUE | AG116: TRUE | AH116: TRUE | AI116: TRUE | AJ116: TRUE | AM116: =C116 -> EXIT109 | AN116: =D116 -> EXIT109 | AO116: Domestic
C117: EXIT110 | D117: EXIT110 | E117: 285.4 | F117: 121.259 | G117: 192.87 | H117: 172.33 | I117: 464.35 | L117: EXIT110 | M117: EXIT110 | N117: 0 | O117: 0 | P117: 0 | Q117: 0 | R117: 192.004 | U117: EXIT110 | V117: EXIT110 | W117: 285.4 | X117: 121.259 | Y117: 192.87 | Z117: 172.33 | AA117: 272.346 | AD117: EXIT110 | AE117: EXIT110 | AF117: TRUE | AG117: TRUE | AH117: TRUE | AI117: TRUE | AJ117: TRUE | AM117: EXIT110 | AN117: EXIT110 | AO117: Domestic
C118: EXIT111 | D118: EXIT111 | E118: 289.098 | F118: 124.957 | G118: 196.568 | H118: 176.028 | I118: 468.048 | L118: EXIT111 | M118: EXIT111 | N118: 0 | O118: 0 | P118: 0 | Q118: 0 | R118: 192.004 | U118: EXIT111 | V118: EXIT111 | W118: 289.098 | X118: 124.957 | Y118: 196.568 | Z118: 176.028 | AA118: 276.044 | AD118: EXIT111 | AE118: EXIT111 | AF118: TRUE | AG118: TRUE | AH118: TRUE | AI118: TRUE | AJ118: TRUE | AM118: EXIT111 | AN118: EXIT111 | AO118: Domestic
C119: EXIT112 | D119: EXIT112 | E119: 162.692 | F119: 59.639 | G119: 288.212 | H119: 123.712 | I119: 559.692 | L119: EXIT112 | M119: EXIT112 | N119: 0 | O119: 0 | P119: 0 | Q119: 0 | R119: 192.004 | U119: EXIT112 | V119: EXIT112 | W119: 162.692 | X119: 59.639 | Y119: 288.212 | Z119: 123.712 | AA119: 367.688 | AD119: EXIT112 | AE119: EXIT112 | AF119: TRUE | AG119: TRUE | AH119: TRUE | AI119: TRUE | AJ119: TRUE | AM119: EXIT112 | AN119: EXIT112 | AO119: Domestic
C120: EXIT113 | D120: EXIT113 | E120: 166.035 | F120: 62.982 | G120: 291.555 | H120: 127.055 | I120: 563.035 | L120: EXIT113 | M120: EXIT113 | N120: 0 | O120: 0 | P120: 0 | Q120: 0 | R120: 192.004 | U120: EXIT113 | V120: EXIT113 | W120: 166.035 | X120: 62.982 | Y120: 291.555 | Z120: 127.055 | AA120: 371.031 | AD120: EXIT113 | AE120: EXIT113 | AF120: TRUE | AG120: TRUE | AH120: TRUE | AI120: TRUE | AJ120: TRUE | AM120: EXIT113 | AN120: EXIT113 | AO120: Domestic
C121: Moffat VRF | D121: MVRF | E121: 471.99 | F121: 501.81 | G121: 271.48 | H121: 551.22 | I121: 0 | L121: Moffat VRF | M121: MVRF | N121: 192.004 | O121: 192.004 | P121: 192.004 | Q121: 192.004 | R121: 0 | U121: Moffat VRF | V121: MVRF | W121: 279.986 | X121: 309.806 | Y121: 79.476 | Z121: 359.216 | AA121: 0 | AD121: Moffat VRF | AE121: MVRF | AF121: TRUE | AG121: TRUE | AH121: TRUE | AI121: TRUE | AJ121: TRUE | AM121: Moffat VRF | AN121: MVRF | AO121: Non-Domestic

Sheet Input-Throughput and bookings (hidden)
B1: Input-Bookings
B2: This sheet contains the projected annualised bookings on GNI's network
C4: Total throughput (MWh)
C5: Entry commodity | D5: =INDEX(Inputs!$C$2:$E$145,MATCH(C5,Inputs!$C$2:$C$145,0),MATCH(Home!$C$5,Inputs!$C$2:$E$2,0)) -> 64621281 | E5: as projected by GNI
C6: Exit commodity | D6: =INDEX(Inputs!$C$2:$E$145,MATCH(C6,Inputs!$C$2:$C$145,0),MATCH(Home!$C$5,Inputs!$C$2:$E$2,0)) -> 63014761.13 | E6: as projected by GNI
C8: Entry bookings (MWh)
B9: ='Input-Network'!E11 -> Bellanaboy | C9: ='Input-Network'!E12 -> BELL | D9: =INDEX(Inputs!$C$2:$E$145,MATCH(B9,Inputs!$C$2:$C$145,0),MATCH(Home!$C$5,Inputs!$C$2:$E$2,0)) -> 31244.81547
B10: Biogas | C10: BIOG | D10: =INDEX(Inputs!$C$2:$E$145,MATCH(B10,Inputs!$C$2:$C$145,0),MATCH(Home!$C$5,Inputs!$C$2:$E$2,0)) -> 471.2192783
B11: ='Input-Network'!G11 -> Gormanston VRF | C11: ='Input-Network'!G12 -> GVRF | D11: =INDEX(Inputs!$C$2:$E$145,MATCH(B11,Inputs!$C$2:$C$145,0),MATCH(Home!$C$5,Inputs!$C$2:$E$2,0)) -> 0
B12: ='Input-Network'!H11 -> Inch | C12: ='Input-Network'!H12 -> INCH | D12: =INDEX(Inputs!$C$2:$E$145,MATCH(B12,Inputs!$C$2:$C$145,0),MATCH(Home!$C$5,Inputs!$C$2:$E$2,0)) -> 0
B13: ='Input-Network'!I11 -> Moffat | C13: ='Input-Network'!I12 -> MOFF | D13: =INDEX(Inputs!$C$2:$E$145,MATCH(B13,Inputs!$C$2:$C$145,0),MATCH(Home!$C$5,Inputs!$C$2:$E$2,0)) -> 198486.9026
B14: Total | D14: =SUM(D9:D13) -> 230202.9373 | E14: as projected by GNI
C16: Exit bookings (MWh)
B17: ='Input-Network'!C13 -> Gormanston | C17: ='Input-Network'!D13 -> GMTN | D17: =INDEX(Inputs!$C$2:$E$145,MATCH(B17,Inputs!$C$2:$C$145,0),MATCH(Home!$C$5,Inputs!$C$2:$E$2,0)) -> 0
B18: ='Input-Network'!C14 -> EXIT1 | C18: ='Input-Network'!D14 -> EXIT1 | D18: =INDEX(Inputs!$C$2:$E$145,MATCH(B18,Inputs!$C$2:$C$145,0),MATCH(Home!$C$5,Inputs!$C$2:$E$2,0)) -> 2748.216653
B19: ='Input-Network'!C15 -> EXIT2 | C19: ='Input-Network'!D15 -> EXIT2 | D19: =INDEX(Inputs!$C$2:$E$145,MATCH(B19,Inputs!$C$2:$C$145,0),MATCH(Home!$C$5,Inputs!$C$2:$E$2,0)) -> 50.22405992
B20: ='Input-Network'!C16 -> EXIT3 | C20: ='Input-Network'!D16 -> EXIT3 | D20: =INDEX(Inputs!$C$2:$E$145,MATCH(B20,Inputs!$C$2:$C$145,0),MATCH(Home!$C$5,Inputs!$C$2:$E$2,0)) -> 907.0699397
B21: ='Input-Network'!C17 -> EXIT5 | C21: ='Input-Network'!D17 -> EXIT5 | D21: =INDEX(Inputs!$C$2:$E$145,MATCH(B21,Inputs!$C$2:$C$145,0),MATCH(Home!$C$5,Inputs!$C$2:$E$2,0)) -> 15494.42615
B22: ='Input-Network'!C18 -> EXIT6 | C22: ='Input-Network'!D18 -> EXIT6 | D22: =INDEX(Inputs!$C$2:$E$145,MATCH(B22,Inputs!$C$2:$C$145,0),MATCH(Home!$C$5,Inputs!$C$2:$E$2,0)) -> 1133.290941
B23: ='Input-Network'!C19 -> EXIT7 | C23: ='Input-Network'!D19 -> EXIT7 | D23: =INDEX(Inputs!$C$2:$E$145,MATCH(B23,Inputs!$C$2:$C$145,0),MATCH(Home!$C$5,Inputs!$C$2:$E$2,0)) -> 62.12677899
B24: ='Input-Network'!C20 -> EXIT8 | C24: ='Input-Network'!D20 -> EXIT8 | D24: =INDEX(Inputs!$C$2:$E$145,MATCH(B24,Inputs!$C$2:$C$145,0),MATCH(Home!$C$5,Inputs!$C$2:$E$2,0)) -> 19312.78071
B25: ='Input-Network'!C21 -> EXIT9 | C25: ='Input-Network'!D21 -> EXIT9 | D25: =INDEX(Inputs!$C$2:$E$145,MATCH(B25,Inputs!$C$2:$C$145,0),MATCH(Home!$C$5,Inputs!$C$2:$E$2,0)) -> 905.4433674
B26: ='Input-Network'!C22 -> EXIT10 | C26: ='Input-Network'!D22 -> EXIT10 | D26: =INDEX(Inputs!$C$2:$E$145,MATCH(B26,Inputs!$C$2:$C$145,0),MATCH(Home!$C$5,Inputs!$C$2:$E$2,0)) -> 3.807693368
B27: ='Input-Network'!C23 -> EXIT11 | C27: ='Input-Network'!D23 -> EXIT11 | D27: =INDEX(Inputs!$C$2:$E$145,MATCH(B27,Inputs!$C$2:$C$145,0),MATCH(Home!$C$5,Inputs!$C$2:$E$2,0)) -> 1575.437602
B28: ='Input-Network'!C24 -> EXIT12 | C28: ='Input-Network'!D24 -> EXIT12 | D28: =INDEX(Inputs!$C$2:$E$145,MATCH(B28,Inputs!$C$2:$C$145,0),MATCH(Home!$C$5,Inputs!$C$2:$E$2,0)) -> 619.7155896
B29: ='Input-Network'!C25 -> EXIT13 | C29: ='Input-Network'!D25 -> EXIT13 | D29: =INDEX(Inputs!$C$2:$E$145,MATCH(B29,Inputs!$C$2:$C$145,0),MATCH(Home!$C$5,Inputs!$C$2:$E$2,0)) -> 1925.04952
B30: ='Input-Network'!C26 -> EXIT14 | C30: ='Input-Network'!D26 -> EXIT14 | D30: =INDEX(Inputs!$C$2:$E$145,MATCH(B30,Inputs!$C$2:$C$145,0),MATCH(Home!$C$5,Inputs!$C$2:$E$2,0)) -> 1376.113779
B31: ='Input-Network'!C27 -> EXIT16 | C31: ='Input-Network'!D27 -> EXIT16 | D31: =INDEX(Inputs!$C$2:$E$145,MATCH(B31,Inputs!$C$2:$C$145,0),MATCH(Home!$C$5,Inputs!$C$2:$E$2,0)) -> 1953.683671
B32: ='Input-Network'!C28 -> EXIT17 | C32: ='Input-Network'!D28 -> EXIT17 | D32: =INDEX(Inputs!$C$2:$E$145,MATCH(B32,Inputs!$C$2:$C$145,0),MATCH(Home!$C$5,Inputs!$C$2:$E$2,0)) -> 30217.82713
B33: ='Input-Network'!C29 -> EXIT18 | C33: ='Input-Network'!D29 -> EXIT18 | D33: =INDEX(Inputs!$C$2:$E$145,MATCH(B33,Inputs!$C$2:$C$145,0),MATCH(Home!$C$5,Inputs!$C$2:$E$2,0)) -> 21.49432025
B34: ='Input-Network'!C30 -> EXIT19 | C34: ='Input-Network'!D30 -> EXIT19 | D34: =INDEX(Inputs!$C$2:$E$145,MATCH(B34,Inputs!$C$2:$C$145,0),MATCH(Home!$C$5,Inputs!$C$2:$E$2,0)) -> 207.7515876
B35: ='Input-Network'!C31 -> EXIT20 | C35: ='Input-Network'!D31 -> EXIT20 | D35: =INDEX(Inputs!$C$2:$E$145,MATCH(B35,Inputs!$C$2:$C$145,0),MATCH(Home!$C$5,Inputs!$C$2:$E$2,0)) -> 1751.859042
B36: ='Input-Network'!C32 -> EXIT21 | C36: ='Input-Network'!D32 -> EXIT21 | D36: =INDEX(Inputs!$C$2:$E$145,MATCH(B36,Inputs!$C$2:$C$145,0),MATCH(Home!$C$5,Inputs!$C$2:$E$2,0)) -> 2357.136013
B37: ='Input-Network'!C33 -> EXIT22 | C37: ='Input-Network'!D33 -> EXIT22 | D37: =INDEX(Inputs!$C$2:$E$145,MATCH(B37,Inputs!$C$2:$C$145,0),MATCH(Home!$C$5,Inputs!$C$2:$E$2,0)) -> 778.7591555
B38: ='Input-Network'!C34 -> EXIT23 | C38: ='Input-Network'!D34 -> EXIT23 | D38: =INDEX(Inputs!$C$2:$E$145,MATCH(B38,Inputs!$C$2:$C$145,0),MATCH(Home!$C$5,Inputs!$C$2:$E$2,0)) -> 315.4115526
B39: ='Input-Network'!C35 -> EXIT24 | C39: ='Input-Network'!D35 -> EXIT24 | D39: =INDEX(Inputs!$C$2:$E$145,MATCH(B39,Inputs!$C$2:$C$145,0),MATCH(Home!$C$5,Inputs!$C$2:$E$2,0)) -> 4310.76608
B40: ='Input-Network'!C36 -> EXIT25 | C40: ='Input-Network'!D36 -> EXIT25 | D40: =INDEX(Inputs!$C$2:$E$145,MATCH(B40,Inputs!$C$2:$C$145,0),MATCH(Home!$C$5,Inputs!$C$2:$E$2,0)) -> 2479.658963
B41: ='Input-Network'!C37 -> EXIT26 | C41: ='Input-Network'!D37 -> EXIT26 | D41: =INDEX(Inputs!$C$2:$E$145,MATCH(B41,Inputs!$C$2:$C$145,0),MATCH(Home!$C$5,Inputs!$C$2:$E$2,0)) -> 453.1280758
B42: ='Input-Network'!C38 -> EXIT27 | C42: ='Input-Network'!D38 -> EXIT27 | D42: =INDEX(Inputs!$C$2:$E$145,MATCH(B42,Inputs!$C$2:$C$145,0),MATCH(Home!$C$5,Inputs!$C$2:$E$2,0)) -> 17682.77429
B43: ='Input-Network'!C39 -> EXIT28 | C43: ='Input-Network'!D39 -> EXIT28 | D43: =INDEX(Inputs!$C$2:$E$145,MATCH(B43,Inputs!$C$2:$C$145,0),MATCH(Home!$C$5,Inputs!$C$2:$E$2,0)) -> 1452.717108
B44: ='Input-Network'!C40 -> EXIT29 | C44: ='Input-Network'!D40 -> EXIT29 | D44: =INDEX(Inputs!$C$2:$E$145,MATCH(B44,Inputs!$C$2:$C$145,0),MATCH(Home!$C$5,Inputs!$C$2:$E$2,0)) -> 1162.95092
B45: ='Input-Network'!C41 -> EXIT30 | C45: ='Input-Network'!D41 -> EXIT30 | D45: =INDEX(Inputs!$C$2:$E$145,MATCH(B45,Inputs!$C$2:$C$145,0),MATCH(Home!$C$5,Inputs!$C$2:$E$2,0)) -> 333.8585795
B46: ='Input-Network'!C42 -> EXIT33 | C46: ='Input-Network'!D42 -> EXIT33 | D46: =INDEX(Inputs!$C$2:$E$145,MATCH(B46,Inputs!$C$2:$C$145,0),MATCH(Home!$C$5,Inputs!$C$2:$E$2,0)) -> 1870.015494
B47: ='Input-Network'!C43 -> EXIT34 | C47: ='Input-Network'!D43 -> EXIT34 | D47: =INDEX(Inputs!$C$2:$E$145,MATCH(B47,Inputs!$C$2:$C$145,0),MATCH(Home!$C$5,Inputs!$C$2:$E$2,0)) -> 1136.871232
B48: ='Input-Network'!C44 -> EXIT35 | C48: ='Input-Network'!D44 -> EXIT35 | D48: =INDEX(Inputs!$C$2:$E$145,MATCH(B48,Inputs!$C$2:$C$145,0),MATCH(Home!$C$5,Inputs!$C$2:$E$2,0)) -> 302.7709867
B49: ='Input-Network'!C45 -> EXIT36 | C49: ='Input-Network'!D45 -> EXIT36 | D49: =INDEX(Inputs!$C$2:$E$145,MATCH(B49,Inputs!$C$2:$C$145,0),MATCH(Home!$C$5,Inputs!$C$2:$E$2,0)) -> 126.7928819
B50: ='Input-Network'!C46 -> EXIT37 | C50: ='Input-Network'!D46 -> EXIT37 | D50: =INDEX(Inputs!$C$2:$E$145,MATCH(B50,Inputs!$C$2:$C$145,0),MATCH(Home!$C$5,Inputs!$C$2:$E$2,0)) -> 804.5117481
B51: ='Input-Network'!C47 -> EXIT38 | C51: ='Input-Network'!D47 -> EXIT38 | D51: =INDEX(Inputs!$C$2:$E$145,MATCH(B51,Inputs!$C$2:$C$145,0),MATCH(Home!$C$5,Inputs!$C$2:$E$2,0)) -> 3.216561599
B52: ='Input-Network'!C48 -> EXIT39 | C52: ='Input-Network'!D48 -> EXIT39 | D52: =INDEX(Inputs!$C$2:$E$145,MATCH(B52,Inputs!$C$2:$C$145,0),MATCH(Home!$C$5,Inputs!$C$2:$E$2,0)) -> 80.37947199
B53: ='Input-Network'!C49 -> EXIT40 | C53: ='Input-Network'!D49 -> EXIT40 | D53: =INDEX(Inputs!$C$2:$E$145,MATCH(B53,Inputs!$C$2:$C$145,0),MATCH(Home!$C$5,Inputs!$C$2:$E$2,0)) -> 1701.64381
B54: ='Input-Network'!C50 -> EXIT41 | C54: ='Input-Network'!D50 -> EXIT41 | D54: =INDEX(Inputs!$C$2:$E$145,MATCH(B54,Inputs!$C$2:$C$145,0),MATCH(Home!$C$5,Inputs!$C$2:$E$2,0)) -> 17804.75757
B55: ='Input-Network'!C51 -> EXIT42 | C55: ='Input-Network'!D51 -> EXIT42 | D55: =INDEX(Inputs!$C$2:$E$145,MATCH(B55,Inputs!$C$2:$C$145,0),MATCH(Home!$C$5,Inputs!$C$2:$E$2,0)) -> 16130.45666
B56: ='Input-Network'!C52 -> EXIT43 | C56: ='Input-Network'!D52 -> EXIT43 | D56: =INDEX(Inputs!$C$2:$E$145,MATCH(B56,Inputs!$C$2:$C$145,0),MATCH(Home!$C$5,Inputs!$C$2:$E$2,0)) -> 257.3177563
B57: ='Input-Network'!C53 -> EXIT44 | C57: ='Input-Network'!D53 -> EXIT44 | D57: =INDEX(Inputs!$C$2:$E$145,MATCH(B57,Inputs!$C$2:$C$145,0),MATCH(Home!$C$5,Inputs!$C$2:$E$2,0)) -> 4011.332002
B58: ='Input-Network'!C54 -> EXIT45 | C58: ='Input-Network'!D54 -> EXIT45 | D58: =INDEX(Inputs!$C$2:$E$145,MATCH(B58,Inputs!$C$2:$C$145,0),MATCH(Home!$C$5,Inputs!$C$2:$E$2,0)) -> 1264.331448
B59: ='Input-Network'!C55 -> EXIT46 | C59: ='Input-Network'!D55 -> EXIT46 | D59: =INDEX(Inputs!$C$2:$E$145,MATCH(B59,Inputs!$C$2:$C$145,0),MATCH(Home!$C$5,Inputs!$C$2:$E$2,0)) -> 2342.113771
B60: ='Input-Network'!C56 -> EXIT47 | C60: ='Input-Network'!D56 -> EXIT47 | D60: =INDEX(Inputs!$C$2:$E$145,MATCH(B60,Inputs!$C$2:$C$145,0),MATCH(Home!$C$5,Inputs!$C$2:$E$2,0)) -> 21.30091815
B61: ='Input-Network'!C57 -> EXIT48 | C61: ='Input-Network'!D57 -> EXIT48 | D61: =INDEX(Inputs!$C$2:$E$145,MATCH(B61,Inputs!$C$2:$C$145,0),MATCH(Home!$C$5,Inputs!$C$2:$E$2,0)) -> 627.6306757
B62: ='Input-Network'!C58 -> EXIT49 | C62: ='Input-Network'!D58 -> EXIT49 | D62: =INDEX(Inputs!$C$2:$E$145,MATCH(B62,Inputs!$C$2:$C$145,0),MATCH(Home!$C$5,Inputs!$C$2:$E$2,0)) -> 1997.705147
B63: ='Input-Network'!C59 -> EXIT50 | C63: ='Input-Network'!D59 -> EXIT50 | D63: =INDEX(Inputs!$C$2:$E$145,MATCH(B63,Inputs!$C$2:$C$145,0),MATCH(Home!$C$5,Inputs!$C$2:$E$2,0)) -> 2829.094913
B64: ='Input-Network'!C60 -> EXIT51 | C64: ='Input-Network'!D60 -> EXIT51 | D64: =INDEX(Inputs!$C$2:$E$145,MATCH(B64,Inputs!$C$2:$C$145,0),MATCH(Home!$C$5,Inputs!$C$2:$E$2,0)) -> 492.3513862
B65: ='Input-Network'!C61 -> EXIT52 | C65: ='Input-Network'!D61 -> EXIT52 | D65: =INDEX(Inputs!$C$2:$E$145,MATCH(B65,Inputs!$C$2:$C$145,0),MATCH(Home!$C$5,Inputs!$C$2:$E$2,0)) -> 168.7939483
B66: ='Input-Network'!C62 -> EXIT53 | C66: ='Input-Network'!D62 -> EXIT53 | D66: =INDEX(Inputs!$C$2:$E$145,MATCH(B66,Inputs!$C$2:$C$145,0),MATCH(Home!$C$5,Inputs!$C$2:$E$2,0)) -> 1399.144965
B67: ='Input-Network'!C63 -> EXIT54 | C67: ='Input-Network'!D63 -> EXIT54 | D67: =INDEX(Inputs!$C$2:$E$145,MATCH(B67,Inputs!$C$2:$C$145,0),MATCH(Home!$C$5,Inputs!$C$2:$E$2,0)) -> 1836.262351
B68: ='Input-Network'!C64 -> EXIT55 | C68: ='Input-Network'!D64 -> EXIT55 | D68: =INDEX(Inputs!$C$2:$E$145,MATCH(B68,Inputs!$C$2:$C$145,0),MATCH(Home!$C$5,Inputs!$C$2:$E$2,0)) -> 3357.981977
B69: ='Input-Network'!C65 -> EXIT57 | C69: ='Input-Network'!D65 -> EXIT57 | D69: =INDEX(Inputs!$C$2:$E$145,MATCH(B69,Inputs!$C$2:$C$145,0),MATCH(Home!$C$5,Inputs!$C$2:$E$2,0)) -> 1725.769271
B70: ='Input-Network'!C66 -> EXIT58 | C70: ='Input-Network'!D66 -> EXIT58 | D70: =INDEX(Inputs!$C$2:$E$145,MATCH(B70,Inputs!$C$2:$C$145,0),MATCH(Home!$C$5,Inputs!$C$2:$E$2,0)) -> 1674.751354
B71: ='Input-Network'!C67 -> EXIT59 | C71: ='Input-Network'!D67 -> EXIT59 | D71: =INDEX(Inputs!$C$2:$E$145,MATCH(B71,Inputs!$C$2:$C$145,0),MATCH(Home!$C$5,Inputs!$C$2:$E$2,0)) -> 623.1715425
B72: ='Input-Network'!C68 -> EXIT60 | C72: ='Input-Network'!D68 -> EXIT60 | D72: =INDEX(Inputs!$C$2:$E$145,MATCH(B72,Inputs!$C$2:$C$145,0),MATCH(Home!$C$5,Inputs!$C$2:$E$2,0)) -> 997.7854222
B73: ='Input-Network'!C69 -> EXIT61 | C73: ='Input-Network'!D69 -> EXIT61 | D73: =INDEX(Inputs!$C$2:$E$145,MATCH(B73,Inputs!$C$2:$C$145,0),MATCH(Home!$C$5,Inputs!$C$2:$E$2,0)) -> 98.14367214
B74: ='Input-Network'!C70 -> EXIT62 | C74: ='Input-Network'!D70 -> EXIT62 | D74: =INDEX(Inputs!$C$2:$E$145,MATCH(B74,Inputs!$C$2:$C$145,0),MATCH(Home!$C$5,Inputs!$C$2:$E$2,0)) -> 382.5312566
B75: ='Input-Network'!C71 -> EXIT63 | C75: ='Input-Network'!D71 -> EXIT63 | D75: =INDEX(Inputs!$C$2:$E$145,MATCH(B75,Inputs!$C$2:$C$145,0),MATCH(Home!$C$5,Inputs!$C$2:$E$2,0)) -> 479.8541399
B76: ='Input-Network'!C72 -> EXIT64 | C76: ='Input-Network'!D72 -> EXIT64 | D76: =INDEX(Inputs!$C$2:$E$145,MATCH(B76,Inputs!$C$2:$C$145,0),MATCH(Home!$C$5,Inputs!$C$2:$E$2,0)) -> 641.2404406
B77: ='Input-Network'!C73 -> EXIT65 | C77: ='Input-Network'!D73 -> EXIT65 | D77: =INDEX(Inputs!$C$2:$E$145,MATCH(B77,Inputs!$C$2:$C$145,0),MATCH(Home!$C$5,Inputs!$C$2:$E$2,0)) -> 1041.324739
B78: ='Input-Network'!C74 -> EXIT66 | C78: ='Input-Network'!D74 -> EXIT66 | D78: =INDEX(Inputs!$C$2:$E$145,MATCH(B78,Inputs!$C$2:$C$145,0),MATCH(Home!$C$5,Inputs!$C$2:$E$2,0)) -> 429.7631874
B79: ='Input-Network'!C75 -> EXIT67 | C79: ='Input-Network'!D75 -> EXIT67 | D79: =INDEX(Inputs!$C$2:$E$145,MATCH(B79,Inputs!$C$2:$C$145,0),MATCH(Home!$C$5,Inputs!$C$2:$E$2,0)) -> 14.26694936
B80: ='Input-Network'!C76 -> EXIT68 | C80: ='Input-Network'!D76 -> EXIT68 | D80: =INDEX(Inputs!$C$2:$E$145,MATCH(B80,Inputs!$C$2:$C$145,0),MATCH(Home!$C$5,Inputs!$C$2:$E$2,0)) -> 38.05704807
B81: ='Input-Network'!C77 -> EXIT69 | C81: ='Input-Network'!D77 -> EXIT69 | D81: =INDEX(Inputs!$C$2:$E$145,MATCH(B81,Inputs!$C$2:$C$145,0),MATCH(Home!$C$5,Inputs!$C$2:$E$2,0)) -> 584.8294928
B82: ='Input-Network'!C78 -> EXIT70 | C82: ='Input-Network'!D78 -> EXIT70 | D82: =INDEX(Inputs!$C$2:$E$145,MATCH(B82,Inputs!$C$2:$C$145,0),MATCH(Home!$C$5,Inputs!$C$2:$E$2,0)) -> 2445.407742
B83: ='Input-Network'!C79 -> EXIT71 | C83: ='Input-Network'!D79 -> EXIT71 | D83: =INDEX(Inputs!$C$2:$E$145,MATCH(B83,Inputs!$C$2:$C$145,0),MATCH(Home!$C$5,Inputs!$C$2:$E$2,0)) -> 17.87797328
B84: ='Input-Network'!C80 -> EXIT72 | C84: ='Input-Network'!D80 -> EXIT72 | D84: =INDEX(Inputs!$C$2:$E$145,MATCH(B84,Inputs!$C$2:$C$145,0),MATCH(Home!$C$5,Inputs!$C$2:$E$2,0)) -> 595.9857787
B85: ='Input-Network'!C81 -> EXIT73 | C85: ='Input-Network'!D81 -> EXIT73 | D85: =INDEX(Inputs!$C$2:$E$145,MATCH(B85,Inputs!$C$2:$C$145,0),MATCH(Home!$C$5,Inputs!$C$2:$E$2,0)) -> 149.8120623
B86: ='Input-Network'!C82 -> EXIT74 | C86: ='Input-Network'!D82 -> EXIT74 | D86: =INDEX(Inputs!$C$2:$E$145,MATCH(B86,Inputs!$C$2:$C$145,0),MATCH(Home!$C$5,Inputs!$C$2:$E$2,0)) -> 2932.104076
B87: ='Input-Network'!C83 -> EXIT75 | C87: ='Input-Network'!D83 -> EXIT75 | D87: =INDEX(Inputs!$C$2:$E$145,MATCH(B87,Inputs!$C$2:$C$145,0),MATCH(Home!$C$5,Inputs!$C$2:$E$2,0)) -> 360.7961523
B88: ='Input-Network'!C84 -> EXIT76 | C88: ='Input-Network'!D84 -> EXIT76 | D88: =INDEX(Inputs!$C$2:$E$145,MATCH(B88,Inputs!$C$2:$C$145,0),MATCH(Home!$C$5,Inputs!$C$2:$E$2,0)) -> 7327.004757
B89: ='Input-Network'!C85 -> EXIT77 | C89: ='Input-Network'!D85 -> EXIT77 | D89: =INDEX(Inputs!$C$2:$E$145,MATCH(B89,Inputs!$C$2:$C$145,0),MATCH(Home!$C$5,Inputs!$C$2:$E$2,0)) -> 45.37485174
B90: ='Input-Network'!C86 -> EXIT78 | C90: ='Input-Network'!D86 -> EXIT78 | D90: =INDEX(Inputs!$C$2:$E$145,MATCH(B90,Inputs!$C$2:$C$145,0),MATCH(Home!$C$5,Inputs!$C$2:$E$2,0)) -> 11124.7114
B91: ='Input-Network'!C87 -> EXIT79 | C91: ='Input-Network'!D87 -> EXIT79 | D91: =INDEX(Inputs!$C$2:$E$145,MATCH(B91,Inputs!$C$2:$C$145,0),MATCH(Home!$C$5,Inputs!$C$2:$E$2,0)) -> 2938.438187
B92: ='Input-Network'!C88 -> EXIT80 | C92: ='Input-Network'!D88 -> EXIT80 | D92: =INDEX(Inputs!$C$2:$E$145,MATCH(B92,Inputs!$C$2:$C$145,0),MATCH(Home!$C$5,Inputs!$C$2:$E$2,0)) -> 160.8613341
B93: ='Input-Network'!C89 -> EXIT81 | C93: ='Input-Network'!D89 -> EXIT81 | D93: =INDEX(Inputs!$C$2:$E$145,MATCH(B93,Inputs!$C$2:$C$145,0),MATCH(Home!$C$5,Inputs!$C$2:$E$2,0)) -> 534.7023371
B94: ='Input-Network'!C90 -> EXIT82 | C94: ='Input-Network'!D90 -> EXIT82 | D94: =INDEX(Inputs!$C$2:$E$145,MATCH(B94,Inputs!$C$2:$C$145,0),MATCH(Home!$C$5,Inputs!$C$2:$E$2,0)) -> 1890.168218
B95: ='Input-Network'!C91 -> EXIT83 | C95: ='Input-Network'!D91 -> EXIT83 | D95: =INDEX(Inputs!$C$2:$E$145,MATCH(B95,Inputs!$C$2:$C$145,0),MATCH(Home!$C$5,Inputs!$C$2:$E$2,0)) -> 1645.32246
B96: ='Input-Network'!C92 -> EXIT84 | C96: ='Input-Network'!D92 -> EXIT84 | D96: =INDEX(Inputs!$C$2:$E$145,MATCH(B96,Inputs!$C$2:$C$145,0),MATCH(Home!$C$5,Inputs!$C$2:$E$2,0)) -> 3034.58284
B97: ='Input-Network'!C93 -> EXIT86 | C97: ='Input-Network'!D93 -> EXIT86 | D97: =INDEX(Inputs!$C$2:$E$145,MATCH(B97,Inputs!$C$2:$C$145,0),MATCH(Home!$C$5,Inputs!$C$2:$E$2,0)) -> 8040.6445
B98: ='Input-Network'!C94 -> EXIT87 | C98: ='Input-Network'!D94 -> EXIT87 | D98: =INDEX(Inputs!$C$2:$E$145,MATCH(B98,Inputs!$C$2:$C$145,0),MATCH(Home!$C$5,Inputs!$C$2:$E$2,0)) -> 636.0066559
B99: ='Input-Network'!C95 -> EXIT88 | C99: ='Input-Network'!D95 -> EXIT88 | D99: =INDEX(Inputs!$C$2:$E$145,MATCH(B99,Inputs!$C$2:$C$145,0),MATCH(Home!$C$5,Inputs!$C$2:$E$2,0)) -> 1148.16001
B100: ='Input-Network'!C96 -> EXIT89 | C100: ='Input-Network'!D96 -> EXIT89 | D100: =INDEX(Inputs!$C$2:$E$145,MATCH(B100,Inputs!$C$2:$C$145,0),MATCH(Home!$C$5,Inputs!$C$2:$E$2,0)) -> 7049.145771
B101: ='Input-Network'!C97 -> EXIT90 | C101: ='Input-Network'!D97 -> EXIT90 | D101: =INDEX(Inputs!$C$2:$E$145,MATCH(B101,Inputs!$C$2:$C$145,0),MATCH(Home!$C$5,Inputs!$C$2:$E$2,0)) -> 981.8147991
B102: ='Input-Network'!C98 -> EXIT91 | C102: ='Input-Network'!D98 -> EXIT91 | D102: =INDEX(Inputs!$C$2:$E$145,MATCH(B102,Inputs!$C$2:$C$145,0),MATCH(Home!$C$5,Inputs!$C$2:$E$2,0)) -> 130.6891663
B103: ='Input-Network'!C99 -> EXIT92 | C103: ='Input-Network'!D99 -> EXIT92 | D103: =INDEX(Inputs!$C$2:$E$145,MATCH(B103,Inputs!$C$2:$C$145,0),MATCH(Home!$C$5,Inputs!$C$2:$E$2,0)) -> 1188.595125
B104: ='Input-Network'!C100 -> EXIT93 | C104: ='Input-Network'!D100 -> EXIT93 | D104: =INDEX(Inputs!$C$2:$E$145,MATCH(B104,Inputs!$C$2:$C$145,0),MATCH(Home!$C$5,Inputs!$C$2:$E$2,0)) -> 1065.845863
B105: ='Input-Network'!C101 -> EXIT94 | C105: ='Input-Network'!D101 -> EXIT94 | D105: =INDEX(Inputs!$C$2:$E$145,MATCH(B105,Inputs!$C$2:$C$145,0),MATCH(Home!$C$5,Inputs!$C$2:$E$2,0)) -> 0.09358787961
B106: ='Input-Network'!C102 -> EXIT95 | C106: ='Input-Network'!D102 -> EXIT95 | D106: =INDEX(Inputs!$C$2:$E$145,MATCH(B106,Inputs!$C$2:$C$145,0),MATCH(Home!$C$5,Inputs!$C$2:$E$2,0)) -> 3669.454085
B107: ='Input-Network'!C103 -> EXIT96 | C107: ='Input-Network'!D103 -> EXIT96 | D107: =INDEX(Inputs!$C$2:$E$145,MATCH(B107,Inputs!$C$2:$C$145,0),MATCH(Home!$C$5,Inputs!$C$2:$E$2,0)) -> 129.0492602
B108: ='Input-Network'!C104 -> EXIT97 | C108: ='Input-Network'!D104 -> EXIT97 | D108: =INDEX(Inputs!$C$2:$E$145,MATCH(B108,Inputs!$C$2:$C$145,0),MATCH(Home!$C$5,Inputs!$C$2:$E$2,0)) -> 181.9148198
B109: ='Input-Network'!C105 -> EXIT98 | C109: ='Input-Network'!D105 -> EXIT98 | D109: =INDEX(Inputs!$C$2:$E$145,MATCH(B109,Inputs!$C$2:$C$145,0),MATCH(Home!$C$5,Inputs!$C$2:$E$2,0)) -> 379.801115
B110: ='Input-Network'!C106 -> EXIT99 | C110: ='Input-Network'!D106 -> EXIT99 | D110: =INDEX(Inputs!$C$2:$E$145,MATCH(B110,Inputs!$C$2:$C$145,0),MATCH(Home!$C$5,Inputs!$C$2:$E$2,0)) -> 843.2242754
B111: ='Input-Network'!C107 -> EXIT100 | C111: ='Input-Network'!D107 -> EXIT100 | D111: =INDEX(Inputs!$C$2:$E$145,MATCH(B111,Inputs!$C$2:$C$145,0),MATCH(Home!$C$5,Inputs!$C$2:$E$2,0)) -> 156.2091997
B112: ='Input-Network'!C108 -> EXIT101 | C112: ='Input-Network'!D108 -> EXIT101 | D112: =INDEX(Inputs!$C$2:$E$145,MATCH(B112,Inputs!$C$2:$C$145,0),MATCH(Home!$C$5,Inputs!$C$2:$E$2,0)) -> 2130.622942
B113: ='Input-Network'!C109 -> EXIT102 | C113: ='Input-Network'!D109 -> EXIT102 | D113: =INDEX(Inputs!$C$2:$E$145,MATCH(B113,Inputs!$C$2:$C$145,0),MATCH(Home!$C$5,Inputs!$C$2:$E$2,0)) -> 153.224477
B114: ='Input-Network'!C110 -> EXIT103 | C114: ='Input-Network'!D110 -> EXIT103 | D114: =INDEX(Inputs!$C$2:$E$145,MATCH(B114,Inputs!$C$2:$C$145,0),MATCH(Home!$C$5,Inputs!$C$2:$E$2,0)) -> 19164.59095
B115: ='Input-Network'!C111 -> EXIT104 | C115: ='Input-Network'!D111 -> EXIT104 | D115: =INDEX(Inputs!$C$2:$E$145,MATCH(B115,Inputs!$C$2:$C$145,0),MATCH(Home!$C$5,Inputs!$C$2:$E$2,0)) -> 14.79104316
B116: ='Input-Network'!C112 -> EXIT105 | C116: ='Input-Network'!D112 -> EXIT105 | D116: =INDEX(Inputs!$C$2:$E$145,MATCH(B116,Inputs!$C$2:$C$145,0),MATCH(Home!$C$5,Inputs!$C$2:$E$2,0)) -> 668.4000182
B117: ='Input-Network'!C113 -> EXIT106 | C117: ='Input-Network'!D113 -> EXIT106 | D117: =INDEX(Inputs!$C$2:$E$145,MATCH(B117,Inputs!$C$2:$C$145,0),MATCH(Home!$C$5,Inputs!$C$2:$E$2,0)) -> 269.9850445
B118: ='Input-Network'!C114 -> EXIT107 | C118: ='Input-Network'!D114 -> EXIT107 | D118: =INDEX(Inputs!$C$2:$E$145,MATCH(B118,Inputs!$C$2:$C$145,0),MATCH(Home!$C$5,Inputs!$C$2:$E$2,0)) -> 2387.412955
B119: ='Input-Network'!C115 -> EXIT108 | C119: ='Input-Network'!D115 -> EXIT108 | D119: =INDEX(Inputs!$C$2:$E$145,MATCH(B119,Inputs!$C$2:$C$145,0),MATCH(Home!$C$5,Inputs!$C$2:$E$2,0)) -> 1376.113779
B120: ='Input-Network'!C116 -> EXIT109 | C120: ='Input-Network'!D116 -> EXIT109 | D120: =INDEX(Inputs!$C$2:$E$145,MATCH(B120,Inputs!$C$2:$C$145,0),MATCH(Home!$C$5,Inputs!$C$2:$E$2,0)) -> 14.43308143
B121: ='Input-Network'!C117 -> EXIT110 | C121: ='Input-Network'!D117 -> EXIT110 | D121: =INDEX(Inputs!$C$2:$E$145,MATCH(B121,Inputs!$C$2:$C$145,0),MATCH(Home!$C$5,Inputs!$C$2:$E$2,0)) -> 4722.852203
B122: ='Input-Network'!C118 -> EXIT111 | C122: ='Input-Network'!D118 -> EXIT111 | D122: =INDEX(Inputs!$C$2:$E$145,MATCH(B122,Inputs!$C$2:$C$145,0),MATCH(Home!$C$5,Inputs!$C$2:$E$2,0)) -> 2361.426102
B123: ='Input-Network'!C119 -> EXIT112 | C123: ='Input-Network'!D119 -> EXIT112 | D123: =INDEX(Inputs!$C$2:$E$145,MATCH(B123,Inputs!$C$2:$C$145,0),MATCH(Home!$C$5,Inputs!$C$2:$E$2,0)) -> 4722.852203
B124: ='Input-Network'!C120 -> EXIT113 | C124: ='Input-Network'!D120 -> EXIT113 | D124: =INDEX(Inputs!$C$2:$E$145,MATCH(B124,Inputs!$C$2:$C$145,0),MATCH(Home!$C$5,Inputs!$C$2:$E$2,0)) -> 5903.565254
B125: ='Input-Network'!C121 -> Moffat VRF | C125: ='Input-Network'!D121 -> MVRF | D125: =INDEX(Inputs!$C$2:$E$145,MATCH(B125,Inputs!$C$2:$C$145,0),MATCH(Home!$C$5,Inputs!$C$2:$E$2,0)) -> 0
B126: Total | D126: =INDEX(Inputs!$C$2:$E$128,MATCH(Inputs!$C$123,Inputs!$C$2:$C$128,0),MATCH(Home!$C$5,Inputs!$C$2:$E$2,0)) -> 285585.8139 | E126: as projected by GNI
D127: =D126=SUM(D17:D125) -> TRUE

Sheet Calc-Budget (hidden)
B1: Calculations- budget
B2: In this sheet the projected budgets to be recovered from each source are calculated
B4: Budget
B5: Transmission Services Revenue Entry | C5: =Home!C8*Home!G12 -> 95742019.87
B6: Transmission Services Revenue Exit | C6: =Home!C8*Home!H12 -> 194385313.1
B7: Total budget | C7: =SUM(C5:C6) -> 290127332.9
B9: Entry capacity budget | C9: =C5*Home!$G$9 -> 86167817.88
B10: Exit capacity budget | C10: =C6*Home!$G$9 -> 174946781.8
B11: Entry commodity budget | C11: =C5*Home!$H$9 -> 9574201.987
B12: Exit commodity budget | C12: =C6*Home!$H$9 -> 19438531.31
B13: Total budget | C13: =SUM(C9:C12) -> 290127332.9
B15: Budget split in %
B16: Entry capacity budget | C16: =C9/$C$13 -> 0.297
B17: Exit capacity budget | C17: =C10/$C$13 -> 0.603
B18: Entry commodity budget | C18: =C11/$C$13 -> 0.033
B19: Exit commodity budget | C19: =C12/$C$13 -> 0.067
B20: Total budget | C20: =SUM(C16:C19) -> 1

Sheet Calc-Cap-Paths (hidden)
B1: Calculations-Capacity-Cost of paths
B2: This sheet contains multiple steps to derive primary tariffs
B3: 1) In range G15:K123 the unit costs of each route are calculated based on the onshore and offshore distances multiplied by the expansion constant and annuitisation factor.
B4: 2) In range O20:V564 we list all routes and calculate the squared difference (column V) between the unit costs of the path (column Q) and the sum of the primary tariffs (column T).
B5: 3) The primary tariffs are set by minimizing the sum of squared differences (V10) using a non-linear solver, launched by the macro. Using this rule the tariffs mathematically approximate the unit costs. Primary tariffs are loaded in ranges G14:K14 and F15:F123.
B6: 4) The solver has one constraint, that the primary entry capacity revenue is 33% (V16) of the total primary capacity revenue as per CRU/19/060 decision 4.
B8: Costs of routes based on unit costs | O8: Breakdown of the approximation of unit costs per path
B9: as per CRU/19/060 decision 1
G10: ='Input-Network'!E10 -> Entry points | U10: Total squared differences between primary tariffs and costs (to be minimized) | V10: =SUM(V20:V564) -> 2840550.496
C11: ='Input-Network'!C11 -> Name | G11: ='Input-Network'!E11 -> Bellanaboy | H11: ='Input-Network'!F11 -> Corracunna | I11: ='Input-Network'!G11 -> Gormanston VRF | J11: ='Input-Network'!H11 -> Inch | K11: ='Input-Network'!I11 -> Moffat | M11: PRIMARY EXIT
D12: ='Input-Network'!D12 -> Code | G12: ='Input-Network'!E12 -> BELL | H12: ='Input-Network'!F12 -> CORR | I12: ='Input-Network'!G12 -> GVRF | J12: ='Input-Network'!H12 -> INCH | K12: ='Input-Network'!I12 -> MOFF | M12: CAPACITY | V12: Constraint
E13: Bookings | G13: =VLOOKUP(G12,'Input-Throughput and bookings'!$C$8:$D$13,2,FALSE) -> 31244.81547 | H13: =VLOOKUP("BIOG",'Input-Throughput and bookings'!$C$8:$D$13,2,FALSE) -> 471.2192783 | I13: =VLOOKUP(I12,'Input-Throughput and bookings'!$C$8:$D$13,2,FALSE) -> 0 | J13: =VLOOKUP(J12,'Input-Throughput and bookings'!$C$8:$D$13,2,FALSE) -> 0 | K13: =VLOOKUP(K12,'Input-Throughput and bookings'!$C$8:$D$13,2,FALSE) -> 198486.9026 | M13: REVENUE | U13: primary entry revenue | V13: =Total_entry_rev -> 27539141.36
F14: Primary tariffs set by minimisation | G14: -37.60657683 | H14: -76.46909144 | I14: -77.09550662 | J14: -50.94185971 | K14: 144.8467644 | U14: primary exit revenue | V14: =Total_exit_rev -> 55912802.16
B15: ='Input-Network'!B13 -> Exit points | C15: ='Input-Network'!C13 -> Gormanston | D15: ='Input-Network'!D13 -> GMTN | E15: =VLOOKUP(D15,'Input-Throughput and bookings'!$C$16:$D$125,2,FALSE) -> 0 | F15: 173.5802478 | G15: =(Unit_costs_onshore*Onshore_distance)+(Unit_costs_offshore*offshore_distance) -> 153.4511669 | H15: 177.0038163 | I15: 0 | J15: 214.0892514 | K15: 226.0907297 | M15: =E15*F15 -> 0 | U15: Proportion recovered by entry revenue | V15: =V13/(V13+V14) -> 0.3299999999
B16: ='Input-Network'!#REF! ->  | C16: ='Input-Network'!C14 -> EXIT1 | D16: ='Input-Network'!D14 -> EXIT1 | E16: =VLOOKUP(D16,'Input-Throughput and bookings'!$C$16:$D$125,2,FALSE) -> 2748.216653 | F16: 182.8738001 | G16: 175.868048 | H16: 145.8352439 | I16: 42.20098424 | J16: 184.9067427 | K16: 268.291714 | M16: =E16*F16 -> 502576.8227 | U16: Target ratio | V16: =Home!G12 -> 0.33
B17: ='Input-Network'!B14 -> 0 | C17: ='Input-Network'!C15 -> EXIT2 | D17: ='Input-Network'!D15 -> EXIT2 | E17: =VLOOKUP(D17,'Input-Throughput and bookings'!$C$16:$D$125,2,FALSE) -> 50.22405992 | F17: 184.012019 | G17: 172.9138261 | H17: 152.7049579 | I17: 39.24676228 | J17: 192.5907812 | K17: 265.337492 | M17: 9241.830668 | U17: Cross check proportion | V17: =ROUND(V13/V14, 3)=ROUND(Home!$G$12/Home!$H$12,3) -> TRUE
B18: ='Input-Network'!B15 -> 0 | C18: ='Input-Network'!C16 -> EXIT3 | D18: ='Input-Network'!D16 -> EXIT3 | E18: =VLOOKUP(D18,'Input-Throughput and bookings'!$C$16:$D$125,2,FALSE) -> 907.0699397 | F18: 184.1983028 | G18: 176.1206111 | H18: 148.7611482 | I18: 42.45354726 | J18: 187.8456578 | K18: 268.544277 | M18: 167080.7434
B19: ='Input-Network'!B16 -> 0 | C19: ='Input-Network'!C17 -> EXIT5 | D19: ='Input-Network'!D17 -> EXIT5 | E19: =VLOOKUP(D19,'Input-Throughput and bookings'!$C$16:$D$125,2,FALSE) -> 15494.42615 | F19: 202.1766488 | G19: 27.16200455 | H19: 152.8656799 | I19: 152.8006258 | J19: 201.8973457 | K19: 378.8913555 | M19: 3132611.154 | O19: Entry | P19: Exit | Q19: Unit costs path | R19: Primary entry tariff | S19: Primary exit tariff | T19: Total primary tariffs path | U19: Difference total primary tariff and unit costs path | V19: Squared difference
C20: ='Input-Network'!C18 -> EXIT6 | D20: ='Input-Network'!D18 -> EXIT6 | E20: =VLOOKUP(D20,'Input-Throughput and bookings'!$C$16:$D$125,2,FALSE) -> 1133.290941 | F20: 182.111826 | G20: 190.5549702 | H20: 64.92476776 | I20: 113.852347 | J20: 104.0176962 | K20: 339.9430768 | M20: 206385.6827 | O20: =$G$12 -> BELL | P20: =D15 -> GMTN | Q20: =INDEX($D$12:$K$123,MATCH(P20,$D$12:$D$123,0),MATCH(O20,$D$12:$K$12,0)) -> 153.4511669 | R20: =INDEX($G$12:$K$14,3,MATCH(O20,$G$12:$K$12,0)) -> -37.60657683 | S20: =INDEX($D$15:$F$123,MATCH(P20,$D$15:$D$123,0),3) -> 173.5802478 | T20: =S20+R20 -> 135.973671 | U20: =Q20-T20 -> 17.47749587 | V20: =U20^2 -> 305.4628619
C21: ='Input-Network'!C19 -> EXIT7 | D21: ='Input-Network'!D19 -> EXIT7 | E21: =VLOOKUP(D21,'Input-Throughput and bookings'!$C$16:$D$125,2,FALSE) -> 62.12677899 | F21: 185.7101608 | G21: 174.3985905 | H21: 155.2566098 | I21: 40.73152668 | J21: 194.0755456 | K21: 266.8222564 | M21: 11537.57412 | O21: =$G$12 -> BELL | P21: EXIT1 | Q21: 175.868048 | R21: =INDEX($G$12:$K$14,3,MATCH(O21,$G$12:$K$12,0)) -> -37.60657683 | S21: 182.8738001 | T21: =S21+R21 -> 145.2672232 | U21: 30.60082482 | V21: =U21^2 -> 936.4104795
C22: ='Input-Network'!C20 -> EXIT8 | D22: ='Input-Network'!D20 -> EXIT8 | E22: =VLOOKUP(D22,'Input-Throughput and bookings'!$C$16:$D$125,2,FALSE) -> 19312.78071 | F22: 214.9125578 | G22: 221.000294 | H22: 95.37621428 | I22: 150.1831545 | J22: 134.46302 | K22: 376.2738842 | M22: 4150559.101 | O22: BELL | P22: EXIT2 | Q22: 172.9138261 | R22: -37.60657683 | S22: 184.012019 | T22: 146.4054422 | U22: 26.50838391 | V22: =U22^2 -> 702.6944173
C23: ='Input-Network'!C21 -> EXIT9 | D23: ='Input-Network'!D21 -> EXIT9 | E23: =VLOOKUP(D23,'Input-Throughput and bookings'!$C$16:$D$125,2,FALSE) -> 905.4433674 | F23: 194.5622647 | G23: 113.2018059 | H23: 34.33326357 | I23: 209.2752472 | J23: 83.36875614 | K23: 435.3659769 | M23: 176165.1121 | O23: BELL | P23: EXIT3 | Q23: 176.1206111 | R23: -37.60657683 | S23: 184.1983028 | T23: 146.5917259 | U23: 29.52888513 | V23: 871.955057
C24: ='Input-Network'!C22 -> EXIT10 | D24: ='Input-Network'!D22 -> EXIT10 | E24: =VLOOKUP(D24,'Input-Throughput and bookings'!$C$16:$D$125,2,FALSE) -> 3.807693368 | F24: 187.491572 | G24: 169.6764274 | H24: 44.05081701 | I24: 158.6172286 | J24: 83.1391534 | K24: 384.7079583 | M24: 713.9104152 | O24: BELL | P24: EXIT5 | Q24: 27.16200455 | R24: -37.60657683 | S24: 202.1766488 | T24: 164.570072 | U24: -137.4080674 | V24: 18880.977
C25: ='Input-Network'!C23 -> EXIT11 | D25: ='Input-Network'!D23 -> EXIT11 | E25: =VLOOKUP(D25,'Input-Throughput and bookings'!$C$16:$D$125,2,FALSE) -> 1575.437602 | F25: 177.6155918 | G25: 162.1148437 | H25: 153.2958023 | I25: 28.44777991 | J25: 192.4147524 | K25: 254.5385096 | M25: 279822.282 | O25: BELL | P25: EXIT6 | Q25: 190.5549702 | R25: -37.60657683 | S25: 182.111826 | T25: 144.5052492 | U25: 46.04972099 | V25: 2120.576804
C26: ='Input-Network'!C24 -> EXIT12 | D26: ='Input-Network'!D24 -> EXIT12 | E26: =VLOOKUP(D26,'Input-Throughput and bookings'!$C$16:$D$125,2,FALSE) -> 619.7155896 | F26: 185.0968149 | G26: 211.3722856 | H26: 85.74284851 | I26: 90.0884631 | J26: 124.8350116 | K26: 316.1791928 | M26: 114707.3818 | O26: BELL | P26: EXIT7 | Q26: 174.3985905 | R26: -37.60657683 | S26: 185.7101608 | T26: 148.103584 | U26: 26.29500649 | V26: 691.4273661
C27: ='Input-Network'!C25 -> EXIT13 | D27: ='Input-Network'!D25 -> EXIT13 | E27: =VLOOKUP(D27,'Input-Throughput and bookings'!$C$16:$D$125,2,FALSE) -> 1925.04952 | F27: 173.8550046 | G27: 155.6553532 | H27: 154.1774769 | I27: 21.9882894 | J27: 192.1086154 | K27: 248.0790191 | M27: 334679.4931 | O27: BELL | P27: EXIT8 | Q27: 221.000294 | R27: -37.60657683 | S27: 214.9125578 | T27: 177.305981 | U27: 43.69431297 | V27: 1909.192986
C28: ='Input-Network'!C26 -> EXIT14 | D28: ='Input-Network'!D26 -> EXIT14 | E28: =VLOOKUP(D28,'Input-Throughput and bookings'!$C$16:$D$125,2,FALSE) -> 1376.113779 | F28: 171.6953613 | G28: 127.796887 | H28: 2.104691815 | I28: 177.039022 | J28: 51.14018439 | K28: 403.1297518 | M28: 236272.3525 | O28: BELL | P28: EXIT9 | Q28: 113.2018059 | R28: -37.60657683 | S28: 194.5622647 | T28: 156.9556879 | U28: -43.75388197 | V28: 1914.402188
C29: ='Input-Network'!C27 -> EXIT16 | D29: ='Input-Network'!D27 -> EXIT16 | E29: =VLOOKUP(D29,'Input-Throughput and bookings'!$C$16:$D$125,2,FALSE) -> 1953.683671 | F29: 181.2283141 | G29: 167.5640822 | H29: 154.1698234 | I29: 33.89701836 | J29: 193.2566291 | K29: 259.9877481 | M29: 354062.7979 | O29: BELL | P29: EXIT10 | Q29: 169.6764274 | R29: -37.60657683 | S29: 187.491572 | T29: 149.8849952 | U29: 19.79143222 | V29: 391.7007895
C30: ='Input-Network'!C28 -> EXIT17 | D30: ='Input-Network'!D28 -> EXIT17 | E30: =VLOOKUP(D30,'Input-Throughput and bookings'!$C$16:$D$125,2,FALSE) -> 30217.82713 | F30: 175.6803305 | G30: 157.6069765 | H30: 155.4976926 | I30: 23.93991271 | J30: 194.0602387 | K30: 250.0306424 | M30: 5308677.858 | O30: BELL | P30: EXIT11 | Q30: 162.1148437 | R30: -37.60657683 | S30: 177.6155918 | T30: 140.009015 | U30: 22.10582872 | V30: 488.6676636
C31: ='Input-Network'!C29 -> EXIT18 | D31: ='Input-Network'!D29 -> EXIT18 | E31: =VLOOKUP(D31,'Input-Throughput and bookings'!$C$16:$D$125,2,FALSE) -> 21.49432025 | F31: 174.2335441 | G31: 158.7243765 | H31: 149.9244687 | I31: 25.06496616 | J31: 189.0319387 | K31: 251.1556959 | M31: 3745.031595 | O31: BELL | P31: EXIT12 | Q31: 211.3722856 | R31: -37.60657683 | S31: 185.0968149 | T31: 147.4902381 | U31: 63.88204751 | V31: 4080.915994
C32: ='Input-Network'!C30 -> EXIT19 | D32: ='Input-Network'!D30 -> EXIT19 | E32: =VLOOKUP(D32,'Input-Throughput and bookings'!$C$16:$D$125,2,FALSE) -> 207.7515876 | F32: 182.6062378 | G32: 174.5286987 | H32: 147.1684705 | I32: 40.86163491 | J32: 186.2537455 | K32: 266.9523646 | M32: 37936.7358 | O32: BELL | P32: EXIT13 | Q32: 155.6553532 | R32: -37.60657683 | S32: 173.8550046 | T32: 136.2484278 | U32: 19.40692544 | V32: 376.6287549
C33: ='Input-Network'!C31 -> EXIT20 | D33: ='Input-Network'!D31 -> EXIT20 | E33: =VLOOKUP(D33,'Input-Throughput and bookings'!$C$16:$D$125,2,FALSE) -> 1751.859042 | F33: 219.9195915 | G33: 197.397132 | H33: 68.34508329 | I33: 236.766349 | J33: 36.96604169 | K33: 462.8570788 | M33: 385268.1248 | O33: BELL | P33: EXIT14 | Q33: 127.796887 | R33: -37.60657683 | S33: 171.6953613 | T33: 134.0887845 | U33: -6.291897507 | V33: 39.58797424
C34: ='Input-Network'!C32 -> EXIT21 | D34: ='Input-Network'!D32 -> EXIT21 | E34: =VLOOKUP(D34,'Input-Throughput and bookings'!$C$16:$D$125,2,FALSE) -> 2357.136013 | F34: 211.6946084 | G34: 187.9068852 | H34: 231.1456739 | I34: 54.23982142 | J34: 207.5838403 | K34: 280.3305511 | M34: 498992.9852 | O34: BELL | P34: EXIT16 | Q34: 167.5640822 | R34: -37.60657683 | S34: 181.2283141 | T34: 143.6217372 | U34: 23.94234493 | V34: 573.2358809
C35: ='Input-Network'!C33 -> EXIT22 | D35: ='Input-Network'!D33 -> EXIT22 | E35: =VLOOKUP(D35,'Input-Throughput and bookings'!$C$16:$D$125,2,FALSE) -> 778.7591555 | F35: 253.4252144 | G35: 67.28891067 | H35: 192.9834019 | I35: 220.7400775 | J35: 242.0165984 | K35: 446.8308073 | M35: 197357.2059 | O35: BELL | P35: EXIT17 | Q35: 157.6069765 | R35: -37.60657683 | S35: 175.6803305 | T35: 138.0737537 | U35: 19.53322281 | V35: 381.5467933
C36: ='Input-Network'!C34 -> EXIT23 | D36: ='Input-Network'!D34 -> EXIT23 | E36: =VLOOKUP(D36,'Input-Throughput and bookings'!$C$16:$D$125,2,FALSE) -> 315.4115526 | F36: 202.8901096 | G36: 83.75142738 | H36: 209.455868 | I36: 69.69973948 | J36: 258.4867686 | K36: 295.7904692 | M36: 63993.88447 | O36: BELL | P36: EXIT18 | Q36: 158.7243765 | R36: -37.60657683 | S36: 174.2335441 | T36: 136.6269672 | U36: 22.09740931 | V36: 488.2954981
C37: ='Input-Network'!C35 -> EXIT24 | D37: ='Input-Network'!D35 -> EXIT24 | E37: =VLOOKUP(D37,'Input-Throughput and bookings'!$C$16:$D$125,2,FALSE) -> 4310.76608 | F37: 174.8355601 | G37: 161.7321725 | H37: 146.9342757 | I37: 28.06510867 | J37: 186.0241427 | K37: 254.1558384 | M37: 753675.2021 | O37: BELL | P37: EXIT19 | Q37: 174.5286987 | R37: -37.60657683 | S37: 182.6062378 | T37: 144.999661 | U37: 29.52903774 | V37: 871.9640699
C38: ='Input-Network'!C36 -> EXIT25 | D38: ='Input-Network'!D36 -> EXIT25 | E38: =VLOOKUP(D38,'Input-Throughput and bookings'!$C$16:$D$125,2,FALSE) -> 2479.658963 | F38: 182.7064964 | G38: 169.5998931 | H38: 154.8027617 | I38: 35.94048277 | J38: 193.8918634 | K38: 262.0312125 | M38: 453049.8014 | O38: BELL | P38: EXIT20 | Q38: 197.397132 | R38: -37.60657683 | S38: 219.9195915 | T38: 182.3130146 | U38: 15.08411732 | V38: 227.5305953
C39: ='Input-Network'!C37 -> EXIT26 | D39: ='Input-Network'!D37 -> EXIT26 | E39: =VLOOKUP(D39,'Input-Throughput and bookings'!$C$16:$D$125,2,FALSE) -> 453.1280758 | F39: 195.1042804 | G39: 44.81845552 | H39: 80.874505 | I39: 198.2849292 | J39: 129.9015788 | K39: 424.375659 | M39: 88407.22716 | O39: BELL | P39: EXIT21 | Q39: 187.9068852 | R39: -37.60657683 | S39: 211.6946084 | T39: 174.0880315 | U39: 13.81885368 | V39: 190.9607169
C40: ='Input-Network'!C38 -> EXIT27 | D40: ='Input-Network'!D38 -> EXIT27 | E40: =VLOOKUP(D40,'Input-Throughput and bookings'!$C$16:$D$125,2,FALSE) -> 17682.77429 | F40: 184.9441962 | G40: 169.4391712 | H40: 160.6185992 | I40: 35.77976085 | J40: 199.7467334 | K40: 261.8704906 | M40: 3270326.478 | O40: BELL | P40: EXIT22 | Q40: 67.28891067 | R40: -37.60657683 | S40: 253.4252144 | T40: 215.8186376 | U40: -148.5297269 | V40: 22061.07977
C41: ='Input-Network'!C39 -> EXIT28 | D41: ='Input-Network'!D39 -> EXIT28 | E41: =VLOOKUP(D41,'Input-Throughput and bookings'!$C$16:$D$125,2,FALSE) -> 1452.717108 | F41: 213.3921386 | G41: 187.1185825 | H41: 209.4711749 | I41: 53.4591721 | J41: 240.0955888 | K41: 279.5499018 | M41: 309998.4105 | O41: BELL | P41: EXIT23 | Q41: 83.75142738 | R41: -37.60657683 | S41: 202.8901096 | T41: 165.2835328 | U41: -81.53210537 | V41: 6647.484207
C42: ='Input-Network'!C40 -> EXIT29 | D42: ='Input-Network'!D40 -> EXIT29 | E42: =VLOOKUP(D42,'Input-Throughput and bookings'!$C$16:$D$125,2,FALSE) -> 1162.95092 | F42: 206.8049889 | G42: 178.9982988 | H42: 201.3631367 | I42: 45.33123498 | J42: 239.6440367 | K42: 271.4219647 | M42: 240504.0521 | O42: BELL | P42: EXIT24 | Q42: 161.7321725 | R42: -37.60657683 | S42: 174.8355601 | T42: 137.2289833 | U42: 24.50318918 | V42: 600.4062798
C43: ='Input-Network'!C41 -> EXIT30 | D43: ='Input-Network'!D41 -> EXIT30 | E43: =VLOOKUP(D43,'Input-Throughput and bookings'!$C$16:$D$125,2,FALSE) -> 333.8585795 | F43: 172.3373313 | G43: 128.4856952 | H43: 2.566958672 | I43: 177.7278303 | J43: 51.82133919 | K43: 403.81856 | M43: 57536.29662 | O43: BELL | P43: EXIT25 | Q43: 169.5998931 | R43: -37.60657683 | S43: 182.7064964 | T43: 145.0999196 | U43: 24.49997358 | V43: 600.2487056
C44: ='Input-Network'!C42 -> EXIT33 | D44: ='Input-Network'!D42 -> EXIT33 | E44: =VLOOKUP(D44,'Input-Throughput and bookings'!$C$16:$D$125,2,FALSE) -> 1870.015494 | F44: 171.418154 | G44: 149.7851764 | H44: 152.9988495 | I44: 16.11811259 | J44: 198.713521 | K44: 242.2088423 | M44: 320554.6039 | O44: BELL | P44: EXIT26 | Q44: 44.81845552 | R44: -37.60657683 | S44: 195.1042804 | T44: 157.4977036 | U44: -112.6792481 | V44: 12696.61294
C45: ='Input-Network'!C43 -> EXIT34 | D45: ='Input-Network'!D43 -> EXIT34 | E45: =VLOOKUP(D45,'Input-Throughput and bookings'!$C$16:$D$125,2,FALSE) -> 1136.871232 | F45: 171.6030612 | G45: 143.5552886 | H45: 167.1102341 | I45: 9.895878242 | J45: 204.2010266 | K45: 235.986608 | M45: 195090.5837 | O45: BELL | P45: EXIT27 | Q45: 169.4391712 | R45: -37.60657683 | S45: 184.9441962 | T45: 147.3376194 | U45: 22.10155186 | V45: 488.4785947
C46: ='Input-Network'!C44 -> EXIT35 | D46: ='Input-Network'!D44 -> EXIT35 | E46: =VLOOKUP(D46,'Input-Throughput and bookings'!$C$16:$D$125,2,FALSE) -> 302.7709867 | F46: 214.2667727 | G46: 132.9093747 | H46: 54.04083238 | I46: 228.9751626 | J46: 103.076325 | K46: 455.0658923 | M46: 64873.76219 | O46: BELL | P46: EXIT28 | Q46: 187.1185825 | R46: -37.60657683 | S46: 213.3921386 | T46: 175.7855618 | U46: 11.3330207 | V46: 128.4373581
C47: ='Input-Network'!C45 -> EXIT36 | D47: ='Input-Network'!D45 -> EXIT36 | E47: =VLOOKUP(D47,'Input-Throughput and bookings'!$C$16:$D$125,2,FALSE) -> 126.7928819 | F47: 238.1189774 | G47: 51.98206111 | H47: 177.6796137 | I47: 205.433228 | J47: 226.7097489 | K47: 431.5239577 | M47: 30191.79138 | O47: BELL | P47: EXIT29 | Q47: 178.9982988 | R47: -37.60657683 | S47: 206.8049889 | T47: 169.1984121 | U47: 9.799886691 | V47: 96.03777915
C48: ='Input-Network'!C46 -> EXIT37 | D48: ='Input-Network'!D46 -> EXIT37 | E48: =VLOOKUP(D48,'Input-Throughput and bookings'!$C$16:$D$125,2,FALSE) -> 804.5117481 | F48: 202.4209543 | G48: 76.16688342 | H48: 53.42167031 | I48: 228.3552352 | J48: 102.4487441 | K48: 454.4459649 | M48: 162850.0358 | O48: BELL | P48: EXIT30 | Q48: 128.4856952 | R48: -37.60657683 | S48: 172.3373313 | T48: 134.7307545 | U48: -6.245059231 | V48: 39.0007648
C49: ='Input-Network'!C47 -> EXIT38 | D49: ='Input-Network'!D47 -> EXIT38 | E49: =VLOOKUP(D49,'Input-Throughput and bookings'!$C$16:$D$125,2,FALSE) -> 3.216561599 | F49: 213.2024875 | G49: 131.8455487 | H49: 52.97471031 | I49: 227.9113366 | J49: 102.0124989 | K49: 454.0020663 | M49: 685.7789342 | O49: BELL | P49: EXIT33 | Q49: 149.7851764 | R49: -37.60657683 | S49: 171.418154 | T49: 133.8115772 | U49: 15.97359919 | V49: 255.1558711
C50: ='Input-Network'!C48 -> EXIT39 | D50: ='Input-Network'!D48 -> EXIT39 | E50: =VLOOKUP(D50,'Input-Throughput and bookings'!$C$16:$D$125,2,FALSE) -> 80.37947199 | F50: 218.350028 | G50: 32.2132649 | H50: 157.9100521 | I50: 185.6644318 | J50: 206.9409527 | K50: 411.7551615 | M50: 17550.85996 | O50: BELL | P50: EXIT34 | Q50: 143.5552886 | R50: -37.60657683 | S50: 171.6030612 | T50: 133.9964844 | U50: 9.5588042 | V50: 91.37073774
C51: ='Input-Network'!C49 -> EXIT40 | D51: ='Input-Network'!D49 -> EXIT40 | E51: =VLOOKUP(D51,'Input-Throughput and bookings'!$C$16:$D$125,2,FALSE) -> 1701.64381 | F51: 193.1936788 | G51: 170.6024918 | H51: 41.88642848 | I51: 209.9717089 | J51: 10.17905496 | K51: 436.0624386 | M51: 328746.8277 | O51: BELL | P51: EXIT35 | Q51: 132.9093747 | R51: -37.60657683 | S51: 214.2667727 | T51: 176.6601958 | U51: -43.7508211 | V51: 1914.134347
C52: ='Input-Network'!C50 -> EXIT41 | D52: ='Input-Network'!D50 -> EXIT41 | E52: =VLOOKUP(D52,'Input-Throughput and bookings'!$C$16:$D$125,2,FALSE) -> 17804.75757 | F52: 198.6589802 | G52: 175.7838604 | H52: 47.05631692 | I52: 215.1530774 | J52: 16.79161397 | K52: 441.2438072 | M52: 3537074.982 | O52: BELL | P52: =D47 -> EXIT36 | Q52: =INDEX($D$12:$K$123,MATCH(P52,$D$12:$D$123,0),MATCH(O52,$D$12:$K$12,0)) -> 51.98206111 | R52: -37.60657683 | S52: =INDEX($D$15:$F$123,MATCH(P52,$D$15:$D$123,0),3) -> 238.1189774 | T52: 200.5124006 | U52: -148.5303394 | V52: 22061.26174
C53: ='Input-Network'!C51 -> EXIT42 | D53: ='Input-Network'!D51 -> EXIT42 | E53: =VLOOKUP(D53,'Input-Throughput and bookings'!$C$16:$D$125,2,FALSE) -> 16130.45666 | F53: 185.880823 | G53: 170.3805425 | H53: 161.5592051 | I53: 36.71347867 | J53: 200.6804512 | K53: 262.8042084 | M53: 2998342.558 | O53: BELL | P53: EXIT37 | Q53: 76.16688342 | R53: -37.60657683 | S53: 202.4209543 | T53: 164.8143775 | U53: -88.64749405 | V53: 7858.378202
C54: ='Input-Network'!C52 -> EXIT43 | D54: ='Input-Network'!D52 -> EXIT43 | E54: =VLOOKUP(D54,'Input-Throughput and bookings'!$C$16:$D$125,2,FALSE) -> 257.3177563 | F54: 186.2286037 | G54: 168.4136123 | H54: 42.78723658 | I54: 157.3544135 | J54: 81.87633831 | K54: 383.4451432 | M54: 47919.92646 | O54: BELL | P54: EXIT38 | Q54: 131.8455487 | R54: -37.60657683 | S54: 213.2024875 | T54: 175.5959107 | U54: -43.75036199 | V54: 1914.094175
C55: ='Input-Network'!C53 -> EXIT44 | D55: ='Input-Network'!D53 -> EXIT44 | E55: =VLOOKUP(D55,'Input-Throughput and bookings'!$C$16:$D$125,2,FALSE) -> 4011.332002 | F55: 202.3017121 | G55: 120.9470718 | H55: 42.07240671 | I55: 217.0128597 | J55: 91.10636859 | K55: 443.1035894 | M55: 811499.332 | O55: BELL | P55: EXIT39 | Q55: 32.2132649 | R55: -37.60657683 | S55: 218.350028 | T55: 180.7434511 | U55: -148.5301862 | V55: 22061.21622
C56: ='Input-Network'!C54 -> EXIT45 | D56: ='Input-Network'!D54 -> EXIT45 | E56: =VLOOKUP(D56,'Input-Throughput and bookings'!$C$16:$D$125,2,FALSE) -> 1264.331448 | F56: 211.9491619 | G56: 194.4582168 | H56: 67.23457136 | I56: 183.3913646 | J56: 107.9132894 | K56: 409.4820943 | M56: 267973.9908 | O56: BELL | P56: EXIT40 | Q56: 170.6024918 | R56: -37.60657683 | S56: 193.1936788 | T56: 155.587102 | U56: 15.01538982 | V56: 225.4619314
C57: ='Input-Network'!C55 -> EXIT46 | D57: ='Input-Network'!D55 -> EXIT46 | E57: =VLOOKUP(D57,'Input-Throughput and bookings'!$C$16:$D$125,2,FALSE) -> 2342.113771 | F57: 184.2818774 | G57: 189.0166318 | H57: 129.6245248 | I57: 55.34956802 | J57: 168.7120959 | K57: 281.4402977 | M57: 431609.1228 | O57: BELL | P57: EXIT41 | Q57: 175.7838604 | R57: -37.60657683 | S57: 198.6589802 | T57: 161.0524034 | U57: 14.73145696 | V57: 217.0158243
C58: ='Input-Network'!C56 -> EXIT47 | D58: ='Input-Network'!D56 -> EXIT47 | E58: =VLOOKUP(D58,'Input-Throughput and bookings'!$C$16:$D$125,2,FALSE) -> 21.30091815 | F58: 196.7300211 | G58: 176.334907 | H58: 47.62113967 | I58: 215.704124 | J58: 4.928805559 | K58: 441.7948538 | M58: 4190.530077 | O58: BELL | P58: EXIT42 | Q58: 170.3805425 | R58: -37.60657683 | S58: 185.880823 | T58: 148.2742461 | U58: 22.10629635 | V58: 488.6883382
C59: ='Input-Network'!C57 -> EXIT48 | D59: ='Input-Network'!D57 -> EXIT48 | E59: =VLOOKUP(D59,'Input-Throughput and bookings'!$C$16:$D$125,2,FALSE) -> 627.6306757 | F59: 214.1770741 | G59: 191.6570634 | H59: 62.5851158 | I59: 231.0262804 | J59: 31.23362653 | K59: 457.1170102 | M59: 134424.1017 | O59: BELL | P59: EXIT43 | Q59: 168.4136123 | R59: -37.60657683 | S59: 186.2286037 | T59: 148.6220269 | U59: 19.79158544 | V59: 391.7068542
C60: ='Input-Network'!C58 -> EXIT49 | D60: ='Input-Network'!D58 -> EXIT49 | E60: =VLOOKUP(D60,'Input-Throughput and bookings'!$C$16:$D$125,2,FALSE) -> 1997.705147 | F60: 189.9406667 | G60: 215.4898281 | H60: 100.4335974 | I60: 81.82276433 | J60: 146.7773804 | K60: 307.9134941 | M60: 379445.4475 | O60: BELL | P60: EXIT44 | Q60: 120.9470718 | R60: -37.60657683 | S60: 202.3017121 | T60: 164.6951353 | U60: -43.7480635 | V60: 1913.89306
C61: ='Input-Network'!C59 -> EXIT50 | D61: ='Input-Network'!D59 -> EXIT50 | E61: =VLOOKUP(D61,'Input-Throughput and bookings'!$C$16:$D$125,2,FALSE) -> 2829.094913 | F61: 175.2212935 | G61: 159.7193218 | H61: 150.8987497 | I61: 26.05225795 | J61: 190.0268839 | K61: 252.1429877 | M61: 495717.6701 | O61: BELL | P61: EXIT45 | Q61: 194.4582168 | R61: -37.60657683 | S61: 211.9491619 | T61: 174.3425851 | U61: 20.11563177 | V61: 404.6386414
C62: ='Input-Network'!C60 -> EXIT51 | D62: ='Input-Network'!D60 -> EXIT51 | E62: =VLOOKUP(D62,'Input-Throughput and bookings'!$C$16:$D$125,2,FALSE) -> 492.3513862 | F62: 212.5929685 | G62: 190.0728044 | H62: 61.00162222 | I62: 229.4420215 | J62: 29.6493676 | K62: 455.5327512 | M62: 104670.4427 | O62: BELL | P62: EXIT46 | Q62: 189.0166318 | R62: -37.60657683 | S62: 184.2818774 | T62: 146.6753006 | U62: 42.34133123 | V62: 1792.78833
C63: ='Input-Network'!C61 -> EXIT52 | D63: ='Input-Network'!D61 -> EXIT52 | E63: =VLOOKUP(D63,'Input-Throughput and bookings'!$C$16:$D$125,2,FALSE) -> 168.7939483 | F63: 196.5391447 | G63: 102.0048455 | H63: 208.6667999 | I63: 51.4539748 | J63: 245.7591231 | K63: 277.5447045 | M63: 33174.61823 | O63: BELL | P63: EXIT47 | Q63: 176.334907 | R63: -37.60657683 | S63: 196.7300211 | T63: 159.1234443 | U63: 17.21146265 | V63: 296.2344465
C64: ='Input-Network'!C62 -> EXIT53 | D64: ='Input-Network'!D62 -> EXIT53 | E64: =VLOOKUP(D64,'Input-Throughput and bookings'!$C$16:$D$125,2,FALSE) -> 1399.144965 | F64: 176.3630324 | G64: 169.3549836 | H64: 139.3106992 | I64: 35.69557318 | J64: 178.4013316 | K64: 261.7863029 | M64: 246757.4489 | O64: BELL | P64: EXIT48 | Q64: 191.6570634 | R64: -37.60657683 | S64: 214.1770741 | T64: 176.5704973 | U64: 15.08656609 | V64: 227.6044765
C65: ='Input-Network'!C63 -> EXIT54 | D65: ='Input-Network'!D63 -> EXIT54 | E65: =VLOOKUP(D65,'Input-Throughput and bookings'!$C$16:$D$125,2,FALSE) -> 1836.262351 | F65: 226.2125432 | G65: 203.703554 | H65: 74.59946203 | I65: 243.0651176 | J65: 43.27246371 | K65: 469.1558473 | M65: 415385.5764 | O65: BELL | P65: EXIT49 | Q65: 215.4898281 | R65: -37.60657683 | S65: 189.9406667 | T65: 152.3340899 | U65: 63.15573822 | V65: 3988.64727
C66: ='Input-Network'!C64 -> EXIT55 | D66: ='Input-Network'!D64 -> EXIT55 | E66: =VLOOKUP(D66,'Input-Throughput and bookings'!$C$16:$D$125,2,FALSE) -> 3357.981977 | F66: 210.7916568 | G66: 188.281903 | H66: 59.16633095 | I66: 227.6511201 | J66: 27.85081278 | K66: 453.7418498 | M66: 707834.5844 | O66: BELL | P66: EXIT50 | Q66: 159.7193218 | R66: -37.60657683 | S66: 175.2212935 | T66: 137.6147167 | U66: 22.10460509 | V66: 488.6135661
C67: ='Input-Network'!C65 -> EXIT57 | D67: ='Input-Network'!D65 -> EXIT57 | E67: =VLOOKUP(D67,'Input-Throughput and bookings'!$C$16:$D$125,2,FALSE) -> 1725.769271 | F67: 180.295821 | G67: 167.1890643 | H67: 152.3926982 | I67: 33.52965397 | J67: 191.4810346 | K67: 259.6203837 | M67: 311148.9877 | O67: BELL | P67: EXIT51 | Q67: 190.0728044 | R67: -37.60657683 | S67: 212.5929685 | T67: 174.9863916 | U67: 15.0864128 | V67: 227.5998513
C68: ='Input-Network'!C66 -> EXIT58 | D68: ='Input-Network'!D66 -> EXIT58 | E68: =VLOOKUP(D68,'Input-Throughput and bookings'!$C$16:$D$125,2,FALSE) -> 1674.751354 | F68: 204.7679532 | G68: 3.15321101 | H68: 148.1963254 | I68: 175.9522357 | J68: 197.2287566 | K68: 402.0429654 | M68: 342935.4069 | O68: BELL | P68: EXIT52 | Q68: 102.0048455 | R68: -37.60657683 | S68: 196.5391447 | T68: 158.9325679 | U68: -56.92772242 | V68: 3240.76558
C69: ='Input-Network'!C67 -> EXIT59 | D69: ='Input-Network'!D67 -> EXIT59 | E69: =VLOOKUP(D69,'Input-Throughput and bookings'!$C$16:$D$125,2,FALSE) -> 623.1715425 | F69: 207.6551317 | G69: 185.1439989 | H69: 56.02766145 | I69: 224.513216 | J69: 24.72056204 | K69: 450.6039457 | M69: 129404.7687 | O69: BELL | P69: EXIT53 | Q69: 169.3549836 | R69: -37.60657683 | S69: 176.3630324 | T69: 138.7564556 | U69: 30.59852797 | V69: 936.2699141
C70: ='Input-Network'!C68 -> EXIT60 | D70: ='Input-Network'!D68 -> EXIT60 | E70: =VLOOKUP(D70,'Input-Throughput and bookings'!$C$16:$D$125,2,FALSE) -> 997.7854222 | F70: 185.3807568 | G70: 214.4566158 | H70: 88.83100541 | I70: 86.16990961 | J70: 127.9193418 | K70: 312.2606393 | M70: 184970.2167 | O70: BELL | P70: EXIT54 | Q70: 203.703554 | R70: -37.60657683 | S70: 226.2125432 | T70: 188.6059664 | U70: 15.09758757 | V70: 227.9371504
C71: ='Input-Network'!C69 -> EXIT61 | D71: ='Input-Network'!D69 -> EXIT61 | E71: =VLOOKUP(D71,'Input-Throughput and bookings'!$C$16:$D$125,2,FALSE) -> 98.14367214 | F71: 198.9342074 | G71: 172.6612631 | H71: 195.026101 | I71: 38.99419926 | J71: 225.6382694 | K71: 265.084929 | M71: 19524.13362 | O71: BELL | P71: EXIT55 | Q71: 188.281903 | R71: -37.60657683 | S71: 210.7916568 | T71: 173.18508 | U71: 15.09682306 | V71: 227.9140665
C72: ='Input-Network'!C70 -> EXIT62 | D72: ='Input-Network'!D70 -> EXIT62 | E72: =VLOOKUP(D72,'Input-Throughput and bookings'!$C$16:$D$125,2,FALSE) -> 382.5312566 | F72: 177.5066074 | G72: 112.5053443 | H72: 13.19067761 | I72: 188.1288345 | J72: 62.22234347 | K72: 414.2195643 | M72: 67901.8256 | O72: BELL | P72: EXIT57 | Q72: 167.1890643 | R72: -37.60657683 | S72: 180.295821 | T72: 142.6892442 | U72: 24.49982013 | V72: 600.2411866
C73: ='Input-Network'!C71 -> EXIT63 | D73: ='Input-Network'!D71 -> EXIT63 | E73: =VLOOKUP(D73,'Input-Throughput and bookings'!$C$16:$D$125,2,FALSE) -> 479.8541399 | F73: 179.2972027 | G73: 184.0265989 | H73: 124.6383186 | I73: 50.36718848 | J73: 163.7297163 | K73: 276.4579182 | M73: 86036.505 | O73: BELL | P73: EXIT58 | Q73: 3.15321101 | R73: -37.60657683 | S73: 204.7679532 | T73: 167.1613764 | U73: -164.0081654 | V73: 26898.67832
C74: ='Input-Network'!C72 -> EXIT64 | D74: ='Input-Network'!D72 -> EXIT64 | E74: =VLOOKUP(D74,'Input-Throughput and bookings'!$C$16:$D$125,2,FALSE) -> 641.2404406 | F74: 208.4034836 | G74: 187.2104236 | H74: 217.4758919 | I74: 53.54335977 | J74: 206.8873787 | K74: 279.6340895 | M74: 133636.7416 | O74: BELL | P74: EXIT59 | Q74: 185.1439989 | R74: -37.60657683 | S74: 207.6551317 | T74: 170.0485549 | U74: 15.09544402 | V74: 227.8724301
C75: ='Input-Network'!C73 -> EXIT65 | D75: ='Input-Network'!D73 -> EXIT65 | E75: =VLOOKUP(D75,'Input-Throughput and bookings'!$C$16:$D$125,2,FALSE) -> 1041.324739 | F75: 205.4235459 | G75: 183.4449386 | H75: 217.6228376 | I75: 49.7855282 | J75: 203.1218937 | K75: 275.8762579 | M75: 213912.6204 | O75: =$G$12 -> BELL | P75: EXIT60 | Q75: 214.4566158 | R75: -37.60657683 | S75: 185.3807568 | T75: =S75+R75 -> 147.77418 | U75: 66.6824358 | V75: =U75^2 -> 4446.547245
C76: ='Input-Network'!C74 -> EXIT66 | D76: ='Input-Network'!D74 -> EXIT66 | E76: =VLOOKUP(D76,'Input-Throughput and bookings'!$C$16:$D$125,2,FALSE) -> 429.7631874 | F76: 183.1027919 | G76: 167.9391 | H76: 157.6337635 | I76: 34.27968959 | J76: 198.0247128 | K76: 260.3704193 | M76: 78690.83947 | O76: BELL | P76: EXIT61 | Q76: 172.6612631 | R76: -37.60657683 | S76: 198.9342074 | T76: 161.3276305 | U76: 11.33363253 | V76: 128.4512263
C77: ='Input-Network'!C75 -> EXIT67 | D77: ='Input-Network'!D75 -> EXIT67 | E77: =VLOOKUP(D77,'Input-Throughput and bookings'!$C$16:$D$125,2,FALSE) -> 14.26694936 | F77: 171.714955 | G77: 146.1268393 | H77: 20.49434088 | I77: 154.5073395 | J77: 59.58191192 | K77: 380.5980692 | M77: 2449.848569 | O77: BELL | P77: EXIT62 | Q77: 112.5053443 | R77: -37.60657683 | S77: 177.5066074 | T77: 139.9000306 | U77: -27.39468631 | V77: 750.4688379
C78: ='Input-Network'!C76 -> EXIT68 | D78: ='Input-Network'!D76 -> EXIT68 | E78: =VLOOKUP(D78,'Input-Throughput and bookings'!$C$16:$D$125,2,FALSE) -> 38.05704807 | F78: 186.6630122 | G78: 175.4624165 | H78: 155.7655625 | I78: 41.79535273 | J78: 195.1393716 | K78: 267.8860825 | M78: 7103.84323 | O78: BELL | P78: EXIT63 | Q78: 184.0265989 | R78: -37.60657683 | S78: 179.2972027 | T78: 141.6906259 | U78: 42.33597297 | V78: 1792.334608
C79: ='Input-Network'!C77 -> EXIT69 | D79: ='Input-Network'!D77 -> EXIT69 | E79: =VLOOKUP(D79,'Input-Throughput and bookings'!$C$16:$D$125,2,FALSE) -> 584.8294928 | F79: 207.0067335 | G79: 181.7305714 | H79: 232.3962435 | I79: 48.07116105 | J79: 201.4075265 | K79: 274.1618908 | M79: 121063.643 | O79: BELL | P79: EXIT64 | Q79: 187.2104236 | R79: -37.60657683 | S79: 208.4034836 | T79: 170.7969067 | U79: 16.41351683 | V79: 269.4035346
C80: ='Input-Network'!C78 -> EXIT70 | D80: ='Input-Network'!D78 -> EXIT70 | E80: =VLOOKUP(D80,'Input-Throughput and bookings'!$C$16:$D$125,2,FALSE) -> 2445.407742 | F80: 197.3459674 | G80: 176.9548344 | H80: 48.23647502 | I80: 216.316398 | J80: 5.548732966 | K80: 442.4071277 | M80: =E80*F80 -> 482591.3565 | O80: BELL | P80: EXIT65 | Q80: 183.4449386 | R80: -37.60657683 | S80: 205.4235459 | T80: 167.816969 | U80: =Q80-T80 -> 15.62796954 | V80: 244.2334318
C81: ='Input-Network'!C79 -> EXIT71 | D81: ='Input-Network'!D79 -> EXIT71 | E81: =VLOOKUP(D81,'Input-Throughput and bookings'!$C$16:$D$125,2,FALSE) -> 17.87797328 | F81: 201.6107632 | G81: 179.0212591 | H81: 50.3044304 | I81: 218.3904761 | J81: 18.59016879 | K81: 444.4812059 | M81: 3604.391839 | O81: BELL | P81: EXIT66 | Q81: 167.9391 | R81: -37.60657683 | S81: 183.1027919 | T81: 145.4962151 | U81: 22.4428849 | V81: 503.6830828
C82: ='Input-Network'!C80 -> EXIT72 | D82: ='Input-Network'!D80 -> EXIT72 | E82: =VLOOKUP(D82,'Input-Throughput and bookings'!$C$16:$D$125,2,FALSE) -> 595.9857787 | F82: 216.7149499 | G82: 207.974165 | H82: 182.2693725 | I82: 74.3071012 | J82: 221.3600049 | K82: 300.3978309 | M82: 129159.0282 | O82: BELL | P82: EXIT67 | Q82: 146.1268393 | R82: -37.60657683 | S82: 171.714955 | T82: 134.1083782 | U82: 12.01846114 | V82: 144.4434081
C83: ='Input-Network'!C81 -> EXIT73 | D83: ='Input-Network'!D81 -> EXIT73 | E83: =VLOOKUP(D83,'Input-Throughput and bookings'!$C$16:$D$125,2,FALSE) -> 149.8120623 | F83: 190.9545937 | G83: 24.07767436 | H83: 149.7782883 | I83: 129.3734925 | J83: 198.8130155 | K83: 355.4642222 | M83: 28607.30149 | O83: BELL | P83: EXIT68 | Q83: 175.4624165 | R83: -37.60657683 | S83: 186.6630122 | T83: 149.0564354 | U83: 26.40598113 | V83: 697.2758394
C84: ='Input-Network'!C82 -> EXIT74 | D84: ='Input-Network'!D82 -> EXIT74 | E84: =VLOOKUP(D84,'Input-Throughput and bookings'!$C$16:$D$125,2,FALSE) -> 2932.104076 | F84: 180.2808196 | G84: 164.7782355 | H84: 155.9607248 | I84: 31.11117173 | J84: 195.0857977 | K84: 257.2019015 | M84: 528602.126 | O84: BELL | P84: =D79 -> EXIT69 | Q84: =INDEX($D$12:$K$123,MATCH(P84,$D$12:$D$123,0),MATCH(O84,$D$12:$K$12,0)) -> 181.7305714 | R84: -37.60657683 | S84: =INDEX($D$15:$F$123,MATCH(P84,$D$15:$D$123,0),3) -> 207.0067335 | T84: 169.4001567 | U84: 12.33041473 | V84: 152.0391273
C85: ='Input-Network'!C83 -> EXIT75 | D85: ='Input-Network'!D83 -> EXIT75 | E85: =VLOOKUP(D85,'Input-Throughput and bookings'!$C$16:$D$125,2,FALSE) -> 360.7961523 | F85: 181.5639942 | G85: 169.2861027 | H85: 152.4194852 | I85: 35.62669236 | J85: 191.5039949 | K85: 261.7174221 | M85: 65507.5905 | O85: BELL | P85: EXIT70 | Q85: 176.9548344 | R85: =INDEX($G$12:$K$14,3,MATCH(O85,$G$12:$K$12,0)) -> -37.60657683 | S85: 197.3459674 | T85: 159.7393906 | U85: 17.21544379 | V85: 296.371505
C86: ='Input-Network'!C84 -> EXIT76 | D86: ='Input-Network'!D84 -> EXIT76 | E86: =VLOOKUP(D86,'Input-Throughput and bookings'!$C$16:$D$125,2,FALSE) -> 7327.004757 | F86: 202.6537678 | G86: 180.1310056 | H86: 51.08048767 | I86: 219.5002227 | J86: 19.69991539 | K86: 445.5909524 | M86: 1484845.121 | O86: BELL | P86: EXIT71 | Q86: 179.0212591 | R86: -37.60657683 | S86: 201.6107632 | T86: 164.0041864 | U86: 15.01707264 | V86: 225.5124706
C87: ='Input-Network'!C85 -> EXIT77 | D87: ='Input-Network'!D85 -> EXIT77 | E87: =VLOOKUP(D87,'Input-Throughput and bookings'!$C$16:$D$125,2,FALSE) -> 45.37485174 | F87: 179.091326 | G87: 163.5154204 | H87: 155.0721622 | I87: 29.84835665 | J87: 193.8153292 | K87: 255.9390864 | M87: 8126.242365 | O87: BELL | P87: EXIT72 | Q87: 207.974165 | R87: -37.60657683 | S87: 216.7149499 | T87: 179.1083731 | U87: 28.8657919 | V87: 833.2339422
C88: ='Input-Network'!C86 -> EXIT78 | D88: ='Input-Network'!D86 -> EXIT78 | E88: =VLOOKUP(D88,'Input-Throughput and bookings'!$C$16:$D$125,2,FALSE) -> 11124.7114 | F88: 204.1073041 | G88: 75.0494834 | H88: 58.04204285 | I88: 228.5083037 | J88: 107.0714127 | K88: 454.5990334 | M88: 2270634.853 | O88: BELL | P88: EXIT73 | Q88: 24.07767436 | R88: -37.60657683 | S88: 190.9545937 | T88: 153.3480169 | U88: -129.2703425 | V88: 16710.82145
C89: ='Input-Network'!C87 -> EXIT79 | D89: ='Input-Network'!D87 -> EXIT79 | E89: =VLOOKUP(D89,'Input-Throughput and bookings'!$C$16:$D$125,2,FALSE) -> 2938.438187 | F89: 185.926292 | G89: 178.9217645 | H89: 148.8751842 | I89: 45.25470073 | J89: 187.9681126 | K89: 271.3454305 | M89: 546332.9163 | O89: BELL | P89: EXIT74 | Q89: 164.7782355 | R89: -37.60657683 | S89: 180.2808196 | T89: 142.6742428 | U89: 22.10399277 | V89: 488.5864963
C90: ='Input-Network'!C88 -> EXIT80 | D90: ='Input-Network'!D88 -> EXIT80 | E90: =VLOOKUP(D90,'Input-Throughput and bookings'!$C$16:$D$125,2,FALSE) -> 160.8613341 | F90: 189.550037 | G90: 171.7351987 | H90: 46.10805759 | I90: 160.6759999 | J90: 85.19792466 | K90: 386.7667296 | M90: 30491.27183 | O90: BELL | P90: EXIT75 | Q90: 169.2861027 | R90: -37.60657683 | S90: 181.5639942 | T90: 143.9574173 | U90: 25.32868538 | V90: 641.5423033
C91: ='Input-Network'!C89 -> EXIT81 | D91: ='Input-Network'!D89 -> EXIT81 | E91: =VLOOKUP(D91,'Input-Throughput and bookings'!$C$16:$D$125,2,FALSE) -> 534.7023371 | F91: 199.70904 | G91: 67.84761068 | H91: 193.5505207 | I91: 85.60355618 | J91: 242.5829519 | K91: 311.6942859 | M91: 106784.8905 | O91: BELL | P91: EXIT76 | Q91: 180.1310056 | R91: -37.60657683 | S91: 202.6537678 | T91: 165.047191 | U91: 15.08381464 | V91: 227.5214641
C92: ='Input-Network'!C90 -> EXIT82 | D92: ='Input-Network'!D90 -> EXIT82 | E92: =VLOOKUP(D92,'Input-Throughput and bookings'!$C$16:$D$125,2,FALSE) -> 1890.168218 | F92: 213.3596877 | G92: 195.9047141 | H92: 68.47825289 | I92: 184.8455153 | J92: 109.3674401 | K92: 410.936245 | M92: 403285.7007 | O92: BELL | P92: EXIT77 | Q92: 163.5154204 | R92: -37.60657683 | S92: 179.091326 | T92: 141.4847492 | U92: 22.03067129 | V92: 485.3504776
C93: ='Input-Network'!C91 -> EXIT83 | D93: ='Input-Network'!D91 -> EXIT83 | E93: =VLOOKUP(D93,'Input-Throughput and bookings'!$C$16:$D$125,2,FALSE) -> 1645.32246 | F93: 197.7716513 | G93: 203.8566225 | H93: 78.23101208 | I93: 133.0471364 | J93: 117.3193485 | K93: 359.1378661 | M93: 325398.1398 | O93: BELL | P93: EXIT78 | Q93: 75.0494834 | R93: -37.60657683 | S93: 204.1073041 | T93: 166.5007273 | U93: -91.45124388 | V93: 8363.330008
C94: ='Input-Network'!C92 -> EXIT84 | D94: ='Input-Network'!D92 -> EXIT84 | E94: =VLOOKUP(D94,'Input-Throughput and bookings'!$C$16:$D$125,2,FALSE) -> 3034.58284 | F94: 179.3216924 | G94: 172.3857398 | H94: 142.0039394 | I94: 38.71867597 | J94: 181.4244344 | K94: 264.8094057 | M94: 544166.5306 | O94: BELL | P94: EXIT79 | Q94: 178.9217645 | R94: -37.60657683 | S94: 185.926292 | T94: 148.3197152 | U94: 30.60204938 | V94: 936.4854261
C95: ='Input-Network'!C93 -> EXIT86 | D95: ='Input-Network'!D93 -> EXIT86 | E95: =VLOOKUP(D95,'Input-Throughput and bookings'!$C$16:$D$125,2,FALSE) -> 8040.6445 | F95: 232.2878284 | G95: 209.7650664 | H95: 80.71454843 | I95: 249.1342835 | J95: 49.33397614 | K95: 475.2250132 | M95: 1867743.85 | O95: BELL | P95: EXIT80 | Q95: 171.7351987 | R95: -37.60657683 | S95: 189.550037 | T95: 151.9434602 | U95: 19.79173844 | V95: 391.7129105
C96: ='Input-Network'!C94 -> EXIT87 | D96: ='Input-Network'!D94 -> EXIT87 | E96: =VLOOKUP(D96,'Input-Throughput and bookings'!$C$16:$D$125,2,FALSE) -> 636.0066559 | F96: 175.7320844 | G96: 149.8999778 | H96: 173.4357896 | I96: 10.71479469 | J96: 210.5380623 | K96: 236.8055244 | M96: 111766.7754 | O96: BELL | P96: EXIT81 | Q96: 67.84761068 | R96: -37.60657683 | S96: 199.70904 | T96: 162.1024632 | U96: -94.25485253 | V96: 8883.977225
C97: ='Input-Network'!C95 -> EXIT88 | D97: ='Input-Network'!D95 -> EXIT88 | E97: =VLOOKUP(D97,'Input-Throughput and bookings'!$C$16:$D$125,2,FALSE) -> 1148.16001 | F97: 177.4083371 | G97: 168.5972945 | H97: 143.0677655 | I97: 34.9302307 | J97: 182.1591632 | K97: 261.0209604 | M97: 203693.158 | O97: BELL | P97: EXIT82 | Q97: 195.9047141 | R97: -37.60657683 | S97: 213.3596877 | T97: 175.7531109 | U97: 20.15160323 | V97: 406.0871126
C98: ='Input-Network'!C96 -> EXIT89 | D98: ='Input-Network'!D96 -> EXIT89 | E98: =VLOOKUP(D98,'Input-Throughput and bookings'!$C$16:$D$125,2,FALSE) -> 7049.145771 | F98: 182.8212951 | G98: 169.9289904 | H98: 154.6037726 | I98: 36.26192661 | J98: 193.6928744 | K98: 262.3526563 | M98: 1288733.96 | O98: BELL | P98: EXIT83 | Q98: 203.8566225 | R98: -37.60657683 | S98: 197.7716513 | T98: 160.1650745 | U98: 43.691548 | V98: 1908.951366
C99: ='Input-Network'!C97 -> EXIT90 | D99: ='Input-Network'!D97 -> EXIT90 | E99: =VLOOKUP(D99,'Input-Throughput and bookings'!$C$16:$D$125,2,FALSE) -> 981.8147991 | F99: 249.0335261 | G99: 226.5107598 | H99: 97.46024185 | I99: 265.8799769 | J99: 66.07966956 | K99: 491.9707066 | M99: 244504.8014 | O99: BELL | P99: EXIT84 | Q99: 172.3857398 | R99: -37.60657683 | S99: 179.3216924 | T99: 141.7151156 | U99: 30.67062421 | V99: 940.6871895
C100: ='Input-Network'!C98 -> EXIT91 | D100: ='Input-Network'!D98 -> EXIT91 | E100: =VLOOKUP(D100,'Input-Throughput and bookings'!$C$16:$D$125,2,FALSE) -> 130.6891663 | F100: 194.6326765 | G100: 172.0413357 | H100: 43.32603769 | I100: 211.4105527 | J100: 11.61789882 | K100: 437.5012825 | M100: 25436.38223 | O100: BELL | P100: EXIT86 | Q100: 209.7650664 | R100: -37.60657683 | S100: 232.2878284 | T100: 194.6812516 | U100: 15.08381478 | V100: 227.5214684
C101: ='Input-Network'!C99 -> EXIT92 | D101: ='Input-Network'!D99 -> EXIT92 | E101: =VLOOKUP(D101,'Input-Throughput and bookings'!$C$16:$D$125,2,FALSE) -> 1188.595125 | F101: 210.5669532 | G101: 188.0446469 | H101: 58.99183287 | I101: 227.4138639 | J101: 27.61355661 | K101: 453.5045937 | M101: 250278.8542 | O101: BELL | P101: EXIT87 | Q101: 149.8999778 | R101: -37.60657683 | S101: 175.7320844 | T101: 138.1255076 | U101: 11.77447014 | V101: 138.6381471
C102: ='Input-Network'!C100 -> EXIT93 | D102: ='Input-Network'!D100 -> EXIT93 | E102: =VLOOKUP(D102,'Input-Throughput and bookings'!$C$16:$D$125,2,FALSE) -> 1065.845863 | F102: 205.6871297 | G102: 124.3298856 | H102: 45.46057786 | I102: 220.3956734 | J102: 94.49683577 | K102: 446.4864031 | M102: 219230.7763 | O102: BELL | P102: EXIT88 | Q102: 168.5972945 | R102: -37.60657683 | S102: 177.4083371 | T102: 139.8017602 | U102: 28.79553428 | V102: 829.1827944
C103: ='Input-Network'!C101 -> EXIT94 | D103: ='Input-Network'!D101 -> EXIT94 | E103: =VLOOKUP(D103,'Input-Throughput and bookings'!$C$16:$D$125,2,FALSE) -> 0.09358787961 | F103: 188.9278136 | G103: 218.0001515 | H103: 92.37683711 | I103: 89.72109871 | J103: 131.4628775 | K103: 315.8118284 | M103: 17.68135347 | O103: BELL | P103: EXIT89 | Q103: 169.9289904 | R103: -37.60657683 | S103: 182.8212951 | T103: 145.2147183 | U103: 24.71427209 | V103: 610.7952451
C104: ='Input-Network'!C102 -> EXIT95 | D104: ='Input-Network'!D102 -> EXIT95 | E104: =VLOOKUP(D104,'Input-Throughput and bookings'!$C$16:$D$125,2,FALSE) -> 3669.454085 | F104: 190.5298265 | G104: 162.7194643 | H104: 185.0873635 | I104: 29.06005389 | J104: 223.3652022 | K104: 255.1507836 | M104: 699140.4502 | O104: BELL | P104: EXIT90 | Q104: 226.5107598 | R104: -37.60657683 | S104: 249.0335261 | T104: 211.4269493 | U104: 15.08381057 | V104: 227.5213412
C105: ='Input-Network'!C103 -> EXIT96 | D105: ='Input-Network'!D103 -> EXIT96 | E105: =VLOOKUP(D105,'Input-Throughput and bookings'!$C$16:$D$125,2,FALSE) -> 129.0492602 | F105: 187.4200889 | G105: 178.6768549 | H105: 152.9766545 | I105: 45.00979114 | J105: 192.0703483 | K105: 271.1005209 | M105: 24186.42381 | O105: BELL | P105: EXIT91 | Q105: 172.0413357 | R105: -37.60657683 | S105: 194.6326765 | T105: 157.0260997 | U105: 15.01523594 | V105: 225.4573103
C106: ='Input-Network'!C104 -> EXIT97 | D106: ='Input-Network'!D104 -> EXIT97 | E106: =VLOOKUP(D106,'Input-Throughput and bookings'!$C$16:$D$125,2,FALSE) -> 181.9148198 | F106: 179.5153255 | G106: 141.5347845 | H106: 15.90228601 | I106: 180.8963481 | J106: 54.98985705 | K106: 406.9870778 | M106: 32656.49809 | O106: BELL | P106: EXIT92 | Q106: 188.0446469 | R106: -37.60657683 | S106: 210.5669532 | T106: 172.9603764 | U106: 15.08427047 | V106: 227.5352157
C107: ='Input-Network'!C105 -> EXIT98 | D107: ='Input-Network'!D105 -> EXIT98 | E107: =VLOOKUP(D107,'Input-Throughput and bookings'!$C$16:$D$125,2,FALSE) -> 379.801115 | F107: 216.0657864 | G107: 193.5474593 | H107: 64.47474638 | I107: 232.9166764 | J107: 33.11636903 | K107: 459.0074061 | M107: 82062.02661 | O107: BELL | P107: EXIT93 | Q107: 124.3298856 | R107: -37.60657683 | S107: 205.6871297 | T107: =S107+R107 -> 168.0805529 | U107: -43.75066731 | V107: =U107^2 -> 1914.12089
C108: ='Input-Network'!C106 -> EXIT99 | D108: ='Input-Network'!D106 -> EXIT99 | E108: =VLOOKUP(D108,'Input-Throughput and bookings'!$C$16:$D$125,2,FALSE) -> 843.2242754 | F108: 207.5499736 | G108: 185.0291975 | H108: 55.96873008 | I108: 224.3984146 | J108: 24.59810725 | K108: 450.4891443 | M108: 175011.1761 | O108: BELL | P108: EXIT94 | Q108: 218.0001515 | R108: -37.60657683 | S108: 188.9278136 | T108: 151.3212368 | U108: 66.67891471 | V108: 4446.077667
C109: ='Input-Network'!C107 -> EXIT100 | D109: ='Input-Network'!D107 -> EXIT100 | E109: =VLOOKUP(D109,'Input-Throughput and bookings'!$C$16:$D$125,2,FALSE) -> 156.2091997 | F109: 204.2766041 | G109: 181.5621961 | H109: 203.9285647 | I109: 47.9027857 | J109: 216.7296829 | K109: 273.9935154 | M109: 31909.88485 | O109: BELL | P109: EXIT95 | Q109: 162.7194643 | R109: -37.60657683 | S109: 190.5298265 | T109: 152.9232497 | U109: 9.796214583 | V109: 95.96582016
C110: ='Input-Network'!C108 -> EXIT101 | D110: ='Input-Network'!D108 -> EXIT101 | E110: =VLOOKUP(D110,'Input-Throughput and bookings'!$C$16:$D$125,2,FALSE) -> 2130.622942 | F110: 175.3383913 | G110: 164.2424958 | H110: 144.427779 | I110: 30.575432 | J110: 183.5138194 | K110: 256.6661617 | M110: 373579.9991 | O110: BELL | P110: EXIT96 | Q110: 178.6768549 | R110: -37.60657683 | S110: 187.4200889 | T110: 149.8135121 | U110: 28.86334287 | V110: 833.0925617
C111: ='Input-Network'!C109 -> EXIT102 | D111: ='Input-Network'!D109 -> EXIT102 | E111: =VLOOKUP(D111,'Input-Throughput and bookings'!$C$16:$D$125,2,FALSE) -> 153.224477 | F111: 200.5391307 | G111: 175.2634275 | H111: 225.9268035 | I111: 41.60401711 | J111: 194.9403826 | K111: 267.6947468 | M111: 30727.50341 | O111: BELL | P111: EXIT97 | Q111: 141.5347845 | R111: -37.60657683 | S111: 179.5153255 | T111: 141.9087487 | U111: -0.3739641929 | V111: 0.1398492176
C112: ='Input-Network'!C110 -> EXIT103 | D112: ='Input-Network'!D110 -> EXIT103 | E112: =VLOOKUP(D112,'Input-Throughput and bookings'!$C$16:$D$125,2,FALSE) -> 19164.59095 | F112: 200.4168182 | G112: 177.5441481 | H112: 48.80435914 | I112: 216.9133651 | J112: 18.55190167 | K112: 443.0040949 | M112: 3840906.34 | O112: BELL | P112: EXIT98 | Q112: 193.5474593 | R112: -37.60657683 | S112: 216.0657864 | T112: 178.4592096 | U112: =Q112-T112 -> 15.08824968 | V112: 227.6552783
C113: ='Input-Network'!C111 -> EXIT104 | D113: ='Input-Network'!D111 -> EXIT104 | E113: =VLOOKUP(D113,'Input-Throughput and bookings'!$C$16:$D$125,2,FALSE) -> 14.79104316 | F113: 201.6846953 | G113: 175.8450878 | H113: 196.0508945 | I113: 42.17802397 | J113: 228.8144407 | K113: 268.2687537 | M113: 2983.127032 | O113: BELL | P113: EXIT99 | Q113: 185.0291975 | R113: -37.60657683 | S113: 207.5499736 | T113: 169.9433968 | U113: 15.08580069 | V113: 227.5813826
C114: ='Input-Network'!C112 -> EXIT105 | D114: ='Input-Network'!D112 -> EXIT105 | E114: =VLOOKUP(D114,'Input-Throughput and bookings'!$C$16:$D$125,2,FALSE) -> 668.4000182 | F114: 196.587514 | G114: 52.24227756 | H114: 177.9428915 | I114: 101.2088893 | J114: 226.9776187 | K114: 327.299619 | M114: 131399.0979 | O114: BELL | P114: EXIT100 | Q114: 181.5621961 | R114: -37.60657683 | S114: 204.2766041 | T114: 166.6700273 | U114: 14.89216879 | V114: 221.7766912
C115: ='Input-Network'!C113 -> EXIT106 | D115: ='Input-Network'!D113 -> EXIT106 | E115: =VLOOKUP(D115,'Input-Throughput and bookings'!$C$16:$D$125,2,FALSE) -> 269.9850445 | F115: 272.3674414 | G115: 86.23113701 | H115: 211.9256282 | I115: 239.6823039 | J115: 260.9588248 | K115: 465.7730336 | M115: 73535.13579 | O115: BELL | P115: EXIT101 | Q115: 164.2424958 | R115: -37.60657683 | S115: 175.3383913 | T115: 137.7318145 | U115: 26.51068129 | V115: 702.8162224
C116: ='Input-Network'!C114 -> EXIT107 | D116: ='Input-Network'!D114 -> EXIT107 | E116: =VLOOKUP(D116,'Input-Throughput and bookings'!$C$16:$D$125,2,FALSE) -> 2387.412955 | F116: 198.0638587 | G116: 189.3227688 | H116: 163.619507 | I116: 55.65570501 | J116: 202.7086087 | K116: 281.7464347 | M116: 472860.2223 | O116: BELL | P116: =D111 -> EXIT102 | Q116: =INDEX($D$12:$K$123,MATCH(P116,$D$12:$D$123,0),MATCH(O116,$D$12:$K$12,0)) -> 175.2634275 | R116: -37.60657683 | S116: =INDEX($D$15:$F$123,MATCH(P116,$D$15:$D$123,0),3) -> 200.5391307 | T116: 162.9325538 | U116: 12.33087366 | V116: 152.0504453
C117: ='Input-Network'!C115 -> EXIT108 | D117: ='Input-Network'!D115 -> EXIT108 | E117: =VLOOKUP(D117,'Input-Throughput and bookings'!$C$16:$D$125,2,FALSE) -> 1376.113779 | F117: 199.3344807 | G117: 117.977543 | H117: 39.1067046 | I117: 214.0433309 | J117: 88.1444932 | K117: 440.1340606 | M117: 274306.9256 | O117: BELL | P117: EXIT103 | Q117: 177.5441481 | R117: -37.60657683 | S117: 200.4168182 | T117: 162.8102413 | U117: 14.73390672 | V117: 217.0880072
C118: ='Input-Network'!C116 -> EXIT109 | D118: ='Input-Network'!D116 -> EXIT109 | E118: =VLOOKUP(D118,'Input-Throughput and bookings'!$C$16:$D$125,2,FALSE) -> 14.43308143 | F118: 208.6341581 | G118: 182.3658057 | H118: 204.7153367 | I118: 48.69874188 | J118: 235.3351586 | K118: 274.7894716 | M118: 3011.233794 | O118: BELL | P118: EXIT104 | Q118: 175.8450878 | R118: -37.60657683 | S118: 201.6846953 | T118: 164.0781185 | U118: 11.7669693 | V118: 138.4615664
C119: ='Input-Network'!C117 -> EXIT110 | D119: ='Input-Network'!D117 -> EXIT110 | E119: =VLOOKUP(D119,'Input-Throughput and bookings'!$C$16:$D$125,2,FALSE) -> 4722.852203 | F119: 212.3410154 | G119: 218.4287432 | H119: 92.80466355 | I119: 147.6116038 | J119: 131.8914693 | K119: 373.7023335 | M119: 1002855.232 | O119: BELL | P119: EXIT105 | Q119: 52.24227756 | R119: -37.60657683 | S119: 196.587514 | T119: 158.9809372 | U119: -106.7386596 | V119: 11393.14146
C120: ='Input-Network'!C118 -> EXIT111 | D120: ='Input-Network'!D118 -> EXIT111 | E120: =VLOOKUP(D120,'Input-Throughput and bookings'!$C$16:$D$125,2,FALSE) -> 2361.426102 | F120: 215.171253 | G120: 221.2589797 | H120: 95.63490004 | I120: 150.4418402 | J120: 134.7217057 | K120: 376.53257 | M120: 508111.0132 | O120: BELL | P120: EXIT106 | Q120: 86.23113701 | R120: -37.60657683 | S120: 272.3674414 | T120: 234.7608645 | U120: -148.5297275 | V120: 22061.07996
C121: ='Input-Network'!C119 -> EXIT112 | D121: ='Input-Network'!D119 -> EXIT112 | E121: =VLOOKUP(D121,'Input-Throughput and bookings'!$C$16:$D$125,2,FALSE) -> 4722.852203 | F121: 205.8720345 | G121: 124.5150984 | H121: 45.64426005 | I121: 220.5808863 | J121: 94.68204865 | K121: 446.671616 | M121: 972303.1919 | O121: BELL | P121: EXIT107 | Q121: 189.3227688 | R121: -37.60657683 | S121: 198.0638587 | T121: 160.4572819 | U121: 28.86548691 | V121: 833.2163344
C122: ='Input-Network'!C120 -> EXIT113 | D122: ='Input-Network'!D120 -> EXIT113 | E122: =VLOOKUP(D122,'Input-Throughput and bookings'!$C$16:$D$125,2,FALSE) -> 5903.565254 | F122: 208.4305737 | G122: 127.0736384 | H122: 48.20279996 | I122: 223.1394262 | J122: 97.24058855 | K122: 449.2301559 | M122: 1230483.493 | O122: BELL | P122: EXIT108 | Q122: 117.977543 | R122: -37.60657683 | S122: 199.3344807 | T122: 161.7279039 | U122: -43.7503609 | V122: 1914.094079
C123: ='Input-Network'!C121 -> Moffat VRF | D123: ='Input-Network'!D121 -> MVRF | E123: =VLOOKUP(D123,'Input-Throughput and bookings'!$C$16:$D$125,2,FALSE) -> 0 | F123: 309.0932519 | G123: 379.54955 | H123: 402.3720627 | I123: 226.0907297 | J123: 440.1876345 | K123: 0 | M123: 0 | O123: BELL | P123: =D118 -> EXIT109 | Q123: =INDEX($D$12:$K$123,MATCH(P123,$D$12:$D$123,0),MATCH(O123,$D$12:$K$12,0)) -> 182.3658057 | R123: =INDEX($G$12:$K$14,3,MATCH(O123,$G$12:$K$12,0)) -> -37.60657683 | S123: =INDEX($D$15:$F$123,MATCH(P123,$D$15:$D$123,0),3) -> 208.6341581 | T123: 171.0275813 | U123: 11.33822437 | V123: 128.555332
M124: =SUM(M15:M123) -> 55912802.16 | O124: BELL | P124: EXIT110 | Q124: =INDEX($D$12:$K$123,MATCH(P124,$D$12:$D$123,0),MATCH(O124,$D$12:$K$12,0)) -> 218.4287432 | R124: =INDEX($G$12:$K$14,3,MATCH(O124,$G$12:$K$12,0)) -> -37.60657683 | S124: =INDEX($D$15:$F$123,MATCH(P124,$D$15:$D$123,0),3) -> 212.3410154 | T124: 174.7344385 | U124: 43.69430473 | V124: 1909.192266
E125: PRIMARY ENTRY CAPACITY REVENUE | G125: =G13*G14 -> -1175010.553 | H125: =H13*H14 -> -36033.71008 | I125: =I13*I14 -> 0 | J125: =J13*J14 -> 0 | K125: =K13*K14 -> 28750185.62 | M125: =SUM(G125:K125) -> 27539141.36 | O125: BELL | P125: EXIT111 | Q125: =INDEX($D$12:$K$123,MATCH(P125,$D$12:$D$123,0),MATCH(O125,$D$12:$K$12,0)) -> 221.2589797 | R125: =INDEX($G$12:$K$14,3,MATCH(O125,$G$12:$K$12,0)) -> -37.60657683 | S125: =INDEX($D$15:$F$123,MATCH(P125,$D$15:$D$123,0),3) -> 215.171253 | T125: 177.5646762 | U125: 43.69430357 | V125: 1909.192164
O126: BELL | P126: EXIT112 | Q126: =INDEX($D$12:$K$123,MATCH(P126,$D$12:$D$123,0),MATCH(O126,$D$12:$K$12,0)) -> 124.5150984 | R126: =INDEX($G$12:$K$14,3,MATCH(O126,$G$12:$K$12,0)) -> -37.60657683 | S126: =INDEX($D$15:$F$123,MATCH(P126,$D$15:$D$123,0),3) -> 205.8720345 | T126: 168.2654577 | U126: -43.75035924 | V126: 1914.093934
O127: BELL | P127: EXIT113 | Q127: =INDEX($D$12:$K$123,MATCH(P127,$D$12:$D$123,0),MATCH(O127,$D$12:$K$12,0)) -> 127.0736384 | R127: =INDEX($G$12:$K$14,3,MATCH(O127,$G$12:$K$12,0)) -> -37.60657683 | S127: =INDEX($D$15:$F$123,MATCH(P127,$D$15:$D$123,0),3) -> 208.4305737 | T127: 170.8239969 | U127: -43.75035851 | V127: 1914.093869
O128: BELL | P128: MVRF | Q128: =INDEX($D$12:$K$123,MATCH(P128,$D$12:$D$123,0),MATCH(O128,$D$12:$K$12,0)) -> 379.54955 | R128: -37.60657683 | S128: =INDEX($D$15:$F$123,MATCH(P128,$D$15:$D$123,0),3) -> 309.0932519 | T128: 271.4866751 | U128: 108.0628749 | V128: 11677.58493
O129: =$H$12 -> CORR | P129: =P20 -> GMTN | Q129: 177.0038163 | R129: -76.46909144 | S129: 173.5802478 | T129: =S129+R129 -> 97.11115638 | U129: =Q129-T129 -> 79.8926599 | V129: =U129^2 -> 6382.837107
O130: =$H$12 -> CORR | P130: =P21 -> EXIT1 | Q130: 145.8352439 | R130: -76.46909144 | S130: 182.8738001 | T130: 106.4047086 | U130: 39.43053525 | V130: 1554.76711
O131: CORR | P131: EXIT2 | Q131: 152.7049579 | R131: -76.46909144 | S131: 184.012019 | T131: 107.5429276 | U131: 45.16203039 | V131: 2039.608989
O132: CORR | P132: EXIT3 | Q132: 148.7611482 | R132: -76.46909144 | S132: 184.1983028 | T132: 107.7292113 | U132: 41.03193684 | V132: 1683.619841
O133: CORR | P133: EXIT5 | Q133: 152.8656799 | R133: -76.46909144 | S133: 202.1766488 | T133: 125.7075574 | U133: 27.1581225 | V133: 737.5636175
O134: CORR | P134: EXIT6 | Q134: 64.92476776 | R134: -76.46909144 | S134: 182.111826 | T134: 105.6427346 | U134: -40.71796683 | V134: 1657.952823
O135: CORR | P135: EXIT7 | Q135: 155.2566098 | R135: -76.46909144 | S135: 185.7101608 | T135: 109.2410694 | U135: 46.01554038 | V135: 2117.429957
O136: CORR | P136: EXIT8 | Q136: 95.37621428 | R136: -76.46909144 | S136: 214.9125578 | T136: 138.4434664 | U136: -43.06725211 | V136: 1854.788204
O137: CORR | P137: EXIT9 | Q137: 34.33326357 | R137: -76.46909144 | S137: 194.5622647 | T137: 118.0931733 | U137: -83.75990973 | V137: 7015.722478
O138: CORR | P138: EXIT10 | Q138: 44.05081701 | R138: -76.46909144 | S138: 187.491572 | T138: 111.0224806 | U138: -66.97166354 | V138: 4485.203718
O139: CORR | P139: EXIT11 | Q139: 153.2958023 | R139: -76.46909144 | S139: 177.6155918 | T139: 101.1465004 | U139: 52.14930196 | V139: 2719.549695
O140: CORR | P140: EXIT12 | Q140: 85.74284851 | R140: -76.46909144 | S140: 185.0968149 | T140: 108.6277235 | U140: -22.88487498 | V140: 523.7175026
O141: CORR | P141: EXIT13 | Q141: 154.1774769 | R141: -76.46909144 | S141: 173.8550046 | T141: 97.38591315 | U141: 56.79156372 | V141: 3225.28171
O142: CORR | P142: EXIT14 | Q142: 2.104691815 | R142: -76.46909144 | S142: 171.6953613 | T142: 95.22626989 | U142: -93.12157807 | V142: 8671.628303
O143: CORR | P143: EXIT16 | Q143: 154.1698234 | R143: -76.46909144 | S143: 181.2283141 | T143: 104.7592226 | U143: 49.41060084 | V143: 2441.407475
O144: CORR | P144: EXIT17 | Q144: 155.4976926 | R144: -76.46909144 | S144: 175.6803305 | T144: 99.21123909 | U144: 56.28645355 | V144: 3168.164853
O145: CORR | P145: EXIT18 | Q145: 149.9244687 | R145: -76.46909144 | S145: 174.2335441 | T145: 97.76445261 | U145: 52.16001611 | V145: 2720.66728
O146: CORR | P146: EXIT19 | Q146: 147.1684705 | R146: -76.46909144 | S146: 182.6062378 | T146: 106.1371464 | U146: 41.03132411 | V146: 1683.569558
O147: CORR | P147: EXIT20 | Q147: 68.34508329 | R147: -76.46909144 | S147: 219.9195915 | T147: 143.4505 | U147: -75.10541672 | V147: 5640.823621
O148: CORR | P148: EXIT21 | Q148: 231.1456739 | R148: -76.46909144 | S148: 211.6946084 | T148: 135.2255169 | U148: 95.92015693 | V148: 9200.676506
O149: CORR | P149: EXIT22 | Q149: 192.9834019 | R149: -76.46909144 | S149: 253.4252144 | T149: 176.956123 | U149: 16.02727892 | V149: 256.8736697
O150: CORR | P150: EXIT23 | Q150: 209.455868 | R150: -76.46909144 | S150: 202.8901096 | T150: 126.4210181 | U150: 83.0348499 | V150: 6894.786298
O151: CORR | P151: EXIT24 | Q151: 146.9342757 | R151: -76.46909144 | S151: 174.8355601 | T151: 98.36646868 | U151: 48.56780698 | V151: 2358.831874
O152: CORR | P152: EXIT25 | Q152: 154.8027617 | R152: -76.46909144 | S152: 182.7064964 | T152: 106.2374049 | U152: 48.56535673 | V152: 2358.593874
O153: CORR | P153: EXIT26 | Q153: 80.874505 | R153: -76.46909144 | S153: 195.1042804 | T153: 118.635189 | U153: -37.76068396 | V153: 1425.869253
O154: CORR | P154: EXIT27 | Q154: 160.6185992 | R154: =INDEX($G$12:$K$14,3,MATCH(O154,$G$12:$K$12,0)) -> -76.46909144 | S154: 184.9441962 | T154: 108.4751048 | U154: 52.14349441 | V154: 2718.94401
O155: CORR | P155: EXIT28 | Q155: 209.4711749 | R155: -76.46909144 | S155: 213.3921386 | T155: 136.9230472 | U155: 72.54812773 | V155: 5263.230837
O156: CORR | P156: EXIT29 | Q156: 201.3631367 | R156: -76.46909144 | S156: 206.8049889 | T156: 130.3358975 | U156: 71.0272392 | V156: 5044.868708
O157: CORR | P157: EXIT30 | Q157: 2.566958672 | R157: -76.46909144 | S157: 172.3373313 | T157: 95.86823984 | U157: -93.30128117 | V157: 8705.129068
O158: CORR | P158: EXIT33 | Q158: 152.9988495 | R158: -76.46909144 | S158: 171.418154 | T158: 94.94906259 | U158: 58.04978687 | V158: 3369.777756
O159: CORR | P159: EXIT34 | Q159: 167.1102341 | R159: -76.46909144 | S159: 171.6030612 | T159: 95.1339698 | U159: 71.97626426 | V159: 5180.582617
O160: CORR | P160: EXIT35 | Q160: =INDEX($D$12:$K$123,MATCH(P160,$D$12:$D$123,0),MATCH(O160,$D$12:$K$12,0)) -> 54.04083238 | R160: -76.46909144 | S160: =INDEX($D$15:$F$123,MATCH(P160,$D$15:$D$123,0),3) -> 214.2667727 | T160: 137.7976812 | U160: -83.75684885 | V160: 7015.20973
O161: CORR | P161: EXIT36 | Q161: 177.6796137 | R161: -76.46909144 | S161: 238.1189774 | T161: 161.6498859 | U161: 16.02972774 | V161: 256.9521715
O162: CORR | P162: EXIT37 | Q162: 53.42167031 | R162: -76.46909144 | S162: 202.4209543 | T162: 125.9518629 | U162: -72.53019255 | V162: 5260.628831
O163: CORR | P163: EXIT38 | Q163: 52.97471031 | R163: -76.46909144 | S163: 213.2024875 | T163: 136.7333961 | U163: -83.75868578 | V163: 7015.517443
O164: CORR | P164: EXIT39 | Q164: 157.9100521 | R164: -76.46909144 | S164: 218.350028 | T164: 141.8809365 | U164: 16.02911562 | V164: 256.9325474
O165: CORR | P165: EXIT40 | Q165: 41.88642848 | R165: -76.46909144 | S165: 193.1936788 | T165: 116.7245874 | U165: -74.83815888 | V165: 5600.750024
O166: CORR | P166: EXIT41 | Q166: 47.05631692 | R166: -76.46909144 | S166: 198.6589802 | T166: 122.1898888 | U166: -75.13357187 | V166: 5645.053622
O167: CORR | P167: EXIT42 | Q167: 161.5592051 | R167: -76.46909144 | S167: 185.880823 | T167: 109.4117315 | U167: 52.14747356 | V167: 2719.358999
O168: CORR | P168: EXIT43 | Q168: 42.78723658 | R168: -76.46909144 | S168: 186.2286037 | T168: 109.7595123 | U168: -66.97227567 | V168: 4485.285709
O169: CORR | P169: EXIT44 | Q169: 42.07240671 | R169: -76.46909144 | S169: 202.3017121 | T169: 125.8326207 | U169: -83.760214 | V169: 7015.773449
O170: CORR | P170: EXIT45 | Q170: 67.23457136 | R170: -76.46909144 | S170: 211.9491619 | T170: 135.4800705 | U170: -68.2454991 | V170: 4657.448147
O171: CORR | P171: EXIT46 | Q171: 129.6245248 | R171: -76.46909144 | S171: 184.2818774 | T171: 107.812786 | U171: 21.81173886 | V171: 475.7519519
O172: CORR | P172: EXIT47 | Q172: 47.62113967 | R172: -76.46909144 | S172: 196.7300211 | T172: 120.2609297 | U172: -72.63979002 | V172: 5276.539094
O173: CORR | P173: EXIT48 | Q173: 62.5851158 | R173: -76.46909144 | S173: 214.1770741 | T173: 137.7079827 | U173: -75.12286685 | V173: 5643.445124
O174: CORR | P174: EXIT49 | Q174: 100.4335974 | R174: -76.46909144 | S174: 189.9406667 | T174: 113.4715753 | U174: -13.03797793 | V174: 169.9888685
O175: CORR | P175: EXIT50 | Q175: 150.8987497 | R175: -76.46909144 | S175: 175.2212935 | T175: 98.75220205 | U175: 52.14654764 | V175: 2719.262431
O176: CORR | P176: EXIT51 | Q176: 61.00162222 | R176: -76.46909144 | S176: 212.5929685 | T176: 136.123877 | U176: -75.1222548 | V176: 5643.353167
O177: CORR | P177: EXIT52 | Q177: 208.6667999 | R177: -76.46909144 | S177: 196.5391447 | T177: 120.0700533 | U177: 88.59674666 | V177: 7849.383518
O178: CORR | P178: EXIT53 | Q178: 139.3106992 | R178: -76.46909144 | S178: 176.3630324 | T178: 99.89394097 | U178: 39.41675827 | V178: 1553.680832
O179: CORR | P179: EXIT54 | Q179: 74.59946203 | R179: -76.46909144 | S179: 226.2125432 | T179: 149.7434518 | U179: -75.14398976 | V179: 5646.619198
O180: CORR | P180: EXIT55 | Q180: 59.16633095 | R180: -76.46909144 | S180: 210.7916568 | T180: 134.3225654 | U180: -75.15623441 | V180: 5648.459571
O181: CORR | P181: EXIT57 | Q181: 152.3926982 | R181: -76.46909144 | S181: 180.295821 | T181: 103.8267296 | U181: 48.56596862 | V181: 2358.653308
O182: CORR | P182: EXIT58 | Q182: 148.1963254 | R182: -76.46909144 | S182: 204.7679532 | T182: 128.2988618 | U182: 19.89746361 | V182: 395.909058
O183: CORR | P183: EXIT59 | Q183: 56.02766145 | R183: -76.46909144 | S183: 207.6551317 | T183: 131.1860402 | U183: -75.15837879 | V183: 5648.781903
O184: CORR | P184: EXIT60 | Q184: 88.83100541 | R184: -76.46909144 | S184: 185.3807568 | T184: 108.9116654 | U184: -20.08065996 | V184: 403.2329046
O185: CORR | P185: EXIT61 | Q185: 195.026101 | R185: -76.46909144 | S185: 198.9342074 | T185: 122.4651159 | U185: 72.56098504 | V185: 5265.096549
O186: CORR | P186: EXIT62 | Q186: 13.19067761 | R186: -76.46909144 | S186: 177.5066074 | T186: 101.037516 | U186: -87.84683836 | V186: 7717.067011
O187: CORR | P187: EXIT63 | Q187: 124.6383186 | R187: -76.46909144 | S187: 179.2972027 | T187: 102.8281113 | U187: 21.81020731 | V187: 475.6851431
O188: CORR | P188: EXIT64 | Q188: 217.4758919 | R188: -76.46909144 | S188: 208.4034836 | T188: 131.9343921 | U188: 85.54149974 | V188: 7317.348177
O189: CORR | P189: EXIT65 | Q189: 217.6228376 | R189: -76.46909144 | S189: 205.4235459 | T189: 128.9544544 | U189: 88.66838319 | V189: 7862.082178
O190: CORR | P190: EXIT66 | Q190: 157.6337635 | R190: -76.46909144 | S190: 183.1027919 | T190: 106.6337005 | U190: 51.00006305 | V190: 2601.006431
O191: CORR | P191: EXIT67 | Q191: 20.49434088 | R191: -76.46909144 | S191: 171.714955 | T191: 95.24586359 | U191: -74.75152271 | V191: 5587.790148
O192: CORR | P192: EXIT68 | Q192: =INDEX($D$12:$K$123,MATCH(P192,$D$12:$D$123,0),MATCH(O192,$D$12:$K$12,0)) -> 155.7655625 | R192: -76.46909144 | S192: =INDEX($D$15:$F$123,MATCH(P192,$D$15:$D$123,0),3) -> 186.6630122 | T192: 110.1939208 | U192: 45.57164173 | V192: 2076.77453
O193: CORR | P193: EXIT69 | Q193: 232.3962435 | R193: -76.46909144 | S193: 207.0067335 | T193: =S193+R193 -> 130.5376421 | U193: =Q193-T193 -> 101.8586014 | V193: =U193^2 -> 10375.17468
O194: =$H$12 -> CORR | P194: =P85 -> EXIT70 | Q194: 48.23647502 | R194: -76.46909144 | S194: 197.3459674 | T194: 120.876876 | U194: -72.64040093 | V194: 5276.627847
O195: CORR | P195: EXIT71 | Q195: 50.3044304 | R195: -76.46909144 | S195: 201.6107632 | T195: 125.1416718 | U195: -74.8372414 | V195: 5600.6127
O196: CORR | P196: EXIT72 | Q196: 182.2693725 | R196: -76.46909144 | S196: 216.7149499 | T196: 140.2458585 | U196: 42.02351405 | V196: 1765.975733
O197: CORR | P197: EXIT73 | Q197: 149.7782883 | R197: -76.46909144 | S197: 190.9545937 | T197: 114.4855022 | U197: 35.29278606 | V197: 1245.580748
O198: CORR | P198: EXIT74 | Q198: 155.9607248 | R198: -76.46909144 | S198: 180.2808196 | T198: 103.8117282 | U198: 52.14899669 | V198: 2719.517856
O199: CORR | P199: EXIT75 | Q199: 152.4194852 | R199: -76.46909144 | S199: 181.5639942 | T199: 105.0949027 | U199: 47.32458247 | V199: 2239.616106
O200: CORR | P200: EXIT76 | Q200: 51.08048767 | R200: -76.46909144 | S200: 202.6537678 | T200: 126.1846764 | U200: -75.10418872 | V200: 5640.639163
O201: CORR | P201: EXIT77 | Q201: 155.0721622 | R201: -76.46909144 | S201: 179.091326 | T201: 102.6222345 | U201: 52.44992769 | V201: 2750.994914
... 363 more rows

Sheet Calc-Cap-Tariffs (hidden)
B1: Calculations-Capacity-Tariffs
B2: The Primary Tariffs will not ensure that the Capacity Revenue Requirement is recovered. Therefore a value ('Adder') is added/subtracted to all Primary Tariffs to form the Secondary Tariffs such that all revenue is recovered.
B3: After any relevant Tariff discounts are applied to the Secondary Tariffs, the Post-Discount Tariffs will not ensure the Capacity Revenue Requirement is recovered. Therefore a value ('Post-Discount Adder') is added/subtracted
B4: to all Post-Discount Tariffs to form the Tertiary Tariffs such that all revenue is recovered.
B5: The Final Tariffs are the sum of the Primary Tariffs, the Adder, the Discounts and the Post-Discount Adder.
B6: The Linkline element is added to Bellanaboy.
B7: Domestic exit points are equalized.
B9: Entry tariffs
D11: Bookings (MWh) | F11: Primary Tariff | G11: Primary Revenue | H11: Adder | I11: Secondary Tariff | J11: Secondary Revenue | L11: Discount | M11: Post-Discount Tariff | N11: Post-Discount Revenue | O11: Post-Discount Adder | P11: Tertiary Tariff | Q11: Tertiary Revenue | R11: NTS element | S11: Final tariff | T11: Final Revenue
B12: ='Calc-Cap-Paths'!G12 -> BELL | C12: ='Calc-Cap-Paths'!G11 -> Bellanaboy | D12: =VLOOKUP(B12,'Input-Throughput and bookings'!$C$9:$D$13,2,FALSE) -> 31244.81547 | F12: =HLOOKUP(B12,'Calc-Cap-Paths'!$G$12:$K$14,3,FALSE) -> -37.60657683 | G12: =D12*F12 -> -1175010.553 | H12: =$G$20 -> 254.6564842 | I12: =F12+H12 -> 217.0499073 | J12: =D12*I12 -> 6781684.302 | L12: 0 | M12: =I12*(1-L12) -> 217.0499073 | N12: =D12*M12 -> 6781684.302 | O12: =$N$20*(1-L12) -> 0 | P12: =O12+M12 -> 217.0499073 | Q12: =D12*P12 -> 6781684.302 | R12: =IF(C12="Bellanaboy",Home!$C$22,0) -> 587.6451924 | S12: =R12+P12 -> 804.6950998 | T12: =D12*S12 -> 25142549.9
B13: BIOG | C13: Biogas | D13: =VLOOKUP(B13,'Input-Throughput and bookings'!$C$9:$D$13,2,FALSE) -> 471.2192783 | F13: =AVERAGE('Calc-Cap-Paths'!G14,'Calc-Cap-Paths'!H14,'Calc-Cap-Paths'!I14) -> -63.72372497 | G13: =D13*F13 -> -30027.84769 | H13: =$G$20 -> 254.6564842 | I13: =F13+H13 -> 190.9327592 | J13: =D13*I13 -> 89971.19699 | L13: 0 | M13: =I13*(1-L13) -> 190.9327592 | N13: =D13*M13 -> 89971.19699 | O13: =$N$20*(1-L13) -> 0 | P13: =O13+M13 -> 190.9327592 | Q13: =D13*P13 -> 89971.19699 | R13: =IF(C13="Bellanaboy",Home!$C$22,0) -> 0 | S13: =R13+P13 -> 190.9327592 | T13: =D13*S13 -> 89971.19699 | U13: as per CRU/19/060 decision 12
B14: ='Calc-Cap-Paths'!I12 -> GVRF | C14: ='Calc-Cap-Paths'!I11 -> Gormanston VRF | D14: =VLOOKUP(B14,'Input-Throughput and bookings'!$C$9:$D$13,2,FALSE) -> 0 | F14: =HLOOKUP(B14,'Calc-Cap-Paths'!$G$12:$K$14,3,FALSE) -> -77.09550662 | G14: =D14*F14 -> 0 | H14: =$G$20 -> 254.6564842 | I14: =F14+H14 -> 177.5609775 | J14: =D14*I14 -> 0 | L14: =Home!C26 -> 0.18 | M14: =I14*(1-L14) -> 145.6000016 | N14: =D14*M14 -> 0 | O14: =$N$20*(1-L14) -> 0 | P14: =O14+M14 -> 145.6000016 | Q14: =D14*P14 -> 0 | R14: =IF(C14="Bellanaboy",Home!$C$22,0) -> 0 | S14: =R14+P14 -> 145.6000016 | T14: =D14*S14 -> 0 | U14: as per CRU/19/060 decision 14
B15: ='Calc-Cap-Paths'!J12 -> INCH | C15: ='Calc-Cap-Paths'!J11 -> Inch | D15: =VLOOKUP(B15,'Input-Throughput and bookings'!$C$9:$D$13,2,FALSE) -> 0 | F15: =HLOOKUP(B15,'Calc-Cap-Paths'!$G$12:$K$14,3,FALSE) -> -50.94185971 | G15: =D15*F15 -> 0 | H15: =$G$20 -> 254.6564842 | I15: =F15+H15 -> 203.7146245 | J15: =D15*I15 -> 0 | L15: 0 | M15: =I15*(1-L15) -> 203.7146245 | N15: =D15*M15 -> 0 | O15: =$N$20*(1-L15) -> 0 | P15: =O15+M15 -> 203.7146245 | Q15: =D15*P15 -> 0 | R15: =IF(C15="Bellanaboy",Home!$C$22,0) -> 0 | S15: =R15+P15 -> 203.7146245 | T15: =D15*S15 -> 0
B16: ='Calc-Cap-Paths'!K12 -> MOFF | C16: ='Calc-Cap-Paths'!K11 -> Moffat | D16: =VLOOKUP(B16,'Input-Throughput and bookings'!$C$9:$D$13,2,FALSE) -> 198486.9026 | F16: =HLOOKUP(B16,'Calc-Cap-Paths'!$G$12:$K$14,3,FALSE) -> 144.8467644 | G16: =D16*F16 -> 28750185.62 | H16: =$G$20 -> 254.6564842 | I16: =F16+H16 -> 399.5032486 | J16: =D16*I16 -> 79296162.38 | L16: 0 | M16: =I16*(1-L16) -> 399.5032486 | N16: =D16*M16 -> 79296162.38 | O16: =$N$20*(1-L16) -> 0 | P16: =O16+M16 -> 399.5032486 | Q16: =D16*P16 -> 79296162.38 | R16: =IF(C16="Bellanaboy",Home!$C$22,0) -> 0 | S16: =R16+P16 -> 399.5032486 | T16: =D16*S16 -> 79296162.38
F17: Total Primary revenue: | G17: =SUM(G12:G16) -> 27545147.22 | I17: Total Secondary Revenue: | J17: =SUM(J12:J16) -> 86167817.88 | M17: Total Post-Discount Revenue: | N17: =SUM(N12:N16) -> 86167817.88 | P17: Total Tertiary Revenue: | Q17: =SUM(Q12:Q16) -> 86167817.88 | S17: Total Final Revenue: | T17: =SUM(T12:T16) -> 104528683.5
F19: Primary Revenue Shortage: | G19: ='Calc-Budget'!C9-G17 -> 58622670.66 | M19: Post-Discount Revenue Shortage: | N19: ='Calc-Budget'!C9-N17 -> 0
F20: Adder: | G20: =G19/SUM(D12:D16) -> 254.6564842 | H20: as per CER/15/140 decision 5 | M20: Post-Discount Adder: | N20: =N19/(SUMPRODUCT(D12:D16,1-L12:L16)) -> 0 | O20: as per CER/15/140 decision 5
F21: Secondary Revenue Shortage: | G21: ='Calc-Budget'!C9-J17 -> 0 | M21: Tertiary Revenue Shortage: | N21: ='Calc-Budget'!C9-Q17 -> 0
B24: Exit tariffs
R25: as per CER/15/140 decision 10
D26: Bookings (MWh) | F26: Primary Tariff | G26: Primary Revenue | H26: Adder | I26: Secondary Tariff | J26: Secondary Revenue | L26: Discount | M26: Post-Discount Tariff | N26: Post-Discount Revenue | O26: Post-Discount Adder | P26: Tertiary Tariff | Q26: Tertiary Revenue | R26: Excluded from equalization | S26: Final tariff | T26: Final Revenue
B27: ='Input-Network'!D13 -> GMTN | C27: ='Calc-Cap-Paths'!C15 -> Gormanston | D27: =VLOOKUP(B27,'Input-Throughput and bookings'!$C$17:$D$125,2,FALSE) -> 0 | F27: =VLOOKUP(B27,'Calc-Cap-Paths'!$D$15:$F$123,3,FALSE) -> 173.5802478 | G27: =D27*F27 -> 0 | H27: =$G$139 -> 416.8063461 | I27: =F27+H27 -> 590.3865939 | J27: =D27*I27 -> 0 | L27: 0 | M27: =I27*(1-L27) -> 590.3865939 | N27: =D27*M27 -> 0 | O27: =$N$139*(1-L27) -> 0 | P27: =O27+M27 -> 590.3865939 | Q27: =D27*P27 -> 0 | R27: =INDEX('Input-Network'!$AN$13:$AO$121,MATCH('Calc-Cap-Tariffs'!B27,'Input-Network'!$AN$13:$AN$121,0),2) -> Non-Domestic | S27: =IF(R27="Non-Domestic",P27,SUMIF($R$27:$R$135,"domestic",$N$27:$N$135)/SUMIF($R$27:$R$135,"domestic",$D$27:$D$135)) -> 590.3865939 | T27: =D27*S27 -> 0
B28: ='Input-Network'!D14 -> EXIT1 | C28: ='Calc-Cap-Paths'!C16 -> EXIT1 | D28: =VLOOKUP(B28,'Input-Throughput and bookings'!$C$17:$D$125,2,FALSE) -> 2748.216653 | F28: =VLOOKUP(B28,'Calc-Cap-Paths'!$D$15:$F$123,3,FALSE) -> 182.8738001 | G28: =D28*F28 -> 502576.8227 | H28: 416.8063461 | I28: =F28+H28 -> 599.6801461 | J28: =I28*D28 -> 1648050.964 | L28: 0 | M28: =I28*(1-L28) -> 599.6801461 | N28: =D28*M28 -> 1648050.964 | O28: 0 | P28: =O28+M28 -> 599.6801461 | Q28: =D28*P28 -> 1648050.964 | R28: =INDEX('Input-Network'!$AN$13:$AO$121,MATCH('Calc-Cap-Tariffs'!B28,'Input-Network'!$AN$13:$AN$121,0),2) -> Domestic | S28: =IF(R28="Non-Domestic",P28,SUMIF($R$27:$R$135,"domestic",$N$27:$N$135)/SUMIF($R$27:$R$135,"domestic",$D$27:$D$135)) -> 612.5891877 | T28: =D28*S28 -> 1683527.807
B29: ='Input-Network'!D15 -> EXIT2 | C29: ='Calc-Cap-Paths'!C17 -> EXIT2 | D29: =VLOOKUP(B29,'Input-Throughput and bookings'!$C$17:$D$125,2,FALSE) -> 50.22405992 | F29: =VLOOKUP(B29,'Calc-Cap-Paths'!$D$15:$F$123,3,FALSE) -> 184.012019 | G29: 9241.830668 | H29: 416.8063461 | I29: 600.8183651 | J29: 30175.53757 | L29: 0 | M29: =I29*(1-L29) -> 600.8183651 | N29: 30175.53757 | O29: 0 | P29: 600.8183651 | Q29: 30175.53757 | R29: =INDEX('Input-Network'!$AN$13:$AO$121,MATCH('Calc-Cap-Tariffs'!B29,'Input-Network'!$AN$13:$AN$121,0),2) -> Domestic | S29: =IF(R29="Non-Domestic",P29,SUMIF($R$27:$R$135,"domestic",$N$27:$N$135)/SUMIF($R$27:$R$135,"domestic",$D$27:$D$135)) -> 612.5891877 | T29: 30766.71607
B30: ='Input-Network'!D16 -> EXIT3 | C30: ='Calc-Cap-Paths'!C18 -> EXIT3 | D30: =VLOOKUP(B30,'Input-Throughput and bookings'!$C$17:$D$125,2,FALSE) -> 907.0699397 | F30: =VLOOKUP(B30,'Calc-Cap-Paths'!$D$15:$F$123,3,FALSE) -> 184.1983028 | G30: 167080.7434 | H30: 416.8063461 | I30: 601.0046488 | J30: 545153.2506 | L30: 0 | M30: 601.0046488 | N30: 545153.2506 | O30: 0 | P30: 601.0046488 | Q30: 545153.2506 | R30: =INDEX('Input-Network'!$AN$13:$AO$121,MATCH('Calc-Cap-Tariffs'!B30,'Input-Network'!$AN$13:$AN$121,0),2) -> Domestic | S30: =IF(R30="Non-Domestic",P30,SUMIF($R$27:$R$135,"domestic",$N$27:$N$135)/SUMIF($R$27:$R$135,"domestic",$D$27:$D$135)) -> 612.5891877 | T30: 555661.2375
B31: ='Input-Network'!D17 -> EXIT5 | C31: ='Calc-Cap-Paths'!C19 -> EXIT5 | D31: =VLOOKUP(B31,'Input-Throughput and bookings'!$C$17:$D$125,2,FALSE) -> 15494.42615 | F31: =VLOOKUP(B31,'Calc-Cap-Paths'!$D$15:$F$123,3,FALSE) -> 202.1766488 | G31: 3132611.154 | H31: 416.8063461 | I31: 618.9829949 | J31: 9590786.303 | L31: 0 | M31: 618.9829949 | N31: 9590786.303 | O31: 0 | P31: 618.9829949 | Q31: 9590786.303 | R31: =INDEX('Input-Network'!$AN$13:$AO$121,MATCH('Calc-Cap-Tariffs'!B31,'Input-Network'!$AN$13:$AN$121,0),2) -> Domestic | S31: =IF(R31="Non-Domestic",P31,SUMIF($R$27:$R$135,"domestic",$N$27:$N$135)/SUMIF($R$27:$R$135,"domestic",$D$27:$D$135)) -> 612.5891877 | T31: 9491717.929
B32: ='Input-Network'!D18 -> EXIT6 | C32: ='Calc-Cap-Paths'!C20 -> EXIT6 | D32: =VLOOKUP(B32,'Input-Throughput and bookings'!$C$17:$D$125,2,FALSE) -> 1133.290941 | F32: =VLOOKUP(B32,'Calc-Cap-Paths'!$D$15:$F$123,3,FALSE) -> 182.111826 | G32: 206385.6827 | H32: 416.8063461 | I32: 598.9181721 | J32: 678748.5388 | L32: 0 | M32: 598.9181721 | N32: 678748.5388 | O32: 0 | P32: 598.9181721 | Q32: 678748.5388 | R32: =INDEX('Input-Network'!$AN$13:$AO$121,MATCH('Calc-Cap-Tariffs'!B32,'Input-Network'!$AN$13:$AN$121,0),2) -> Domestic | S32: =IF(R32="Non-Domestic",P32,SUMIF($R$27:$R$135,"domestic",$N$27:$N$135)/SUMIF($R$27:$R$135,"domestic",$D$27:$D$135)) -> 612.5891877 | T32: 694241.7769
B33: ='Input-Network'!D19 -> EXIT7 | C33: ='Calc-Cap-Paths'!C21 -> EXIT7 | D33: =VLOOKUP(B33,'Input-Throughput and bookings'!$C$17:$D$125,2,FALSE) -> 62.12677899 | F33: =VLOOKUP(B33,'Calc-Cap-Paths'!$D$15:$F$123,3,FALSE) -> 185.7101608 | G33: 11537.57412 | H33: 416.8063461 | I33: 602.5165069 | J33: 37432.40986 | L33: 0 | M33: 602.5165069 | N33: 37432.40986 | O33: 0 | P33: 602.5165069 | Q33: 37432.40986 | R33: =INDEX('Input-Network'!$AN$13:$AO$121,MATCH('Calc-Cap-Tariffs'!B33,'Input-Network'!$AN$13:$AN$121,0),2) -> Domestic | S33: 612.5891877 | T33: 38058.19307
B34: ='Input-Network'!D20 -> EXIT8 | C34: ='Calc-Cap-Paths'!C22 -> EXIT8 | D34: =VLOOKUP(B34,'Input-Throughput and bookings'!$C$17:$D$125,2,FALSE) -> 19312.78071 | F34: =VLOOKUP(B34,'Calc-Cap-Paths'!$D$15:$F$123,3,FALSE) -> 214.9125578 | G34: 4150559.101 | H34: 416.8063461 | I34: 631.7189039 | J34: 12200248.66 | L34: 0 | M34: 631.7189039 | N34: 12200248.66 | O34: 0 | P34: 631.7189039 | Q34: 12200248.66 | R34: =INDEX('Input-Network'!$AN$13:$AO$121,MATCH('Calc-Cap-Tariffs'!B34,'Input-Network'!$AN$13:$AN$121,0),2) -> Domestic | S34: 612.5891877 | T34: 11830800.65
B35: ='Input-Network'!D21 -> EXIT9 | C35: ='Calc-Cap-Paths'!C23 -> EXIT9 | D35: =VLOOKUP(B35,'Input-Throughput and bookings'!$C$17:$D$125,2,FALSE) -> 905.4433674 | F35: =VLOOKUP(B35,'Calc-Cap-Paths'!$D$15:$F$123,3,FALSE) -> 194.5622647 | G35: 176165.1121 | H35: 416.8063461 | I35: 611.3686108 | J35: 553559.6537 | L35: 0 | M35: 611.3686108 | N35: 553559.6537 | O35: 0 | P35: 611.3686108 | Q35: 553559.6537 | R35: =INDEX('Input-Network'!$AN$13:$AO$121,MATCH('Calc-Cap-Tariffs'!B35,'Input-Network'!$AN$13:$AN$121,0),2) -> Domestic | S35: 612.5891877 | T35: 554664.8169
B36: ='Input-Network'!D22 -> EXIT10 | C36: ='Calc-Cap-Paths'!C24 -> EXIT10 | D36: =VLOOKUP(B36,'Input-Throughput and bookings'!$C$17:$D$125,2,FALSE) -> 3.807693368 | F36: =VLOOKUP(B36,'Calc-Cap-Paths'!$D$15:$F$123,3,FALSE) -> 187.491572 | G36: 713.9104152 | H36: 416.8063461 | I36: 604.2979181 | J36: 2300.981175 | L36: 0 | M36: 604.2979181 | N36: 2300.981175 | O36: 0 | P36: 604.2979181 | Q36: 2300.981175 | R36: =INDEX('Input-Network'!$AN$13:$AO$121,MATCH('Calc-Cap-Tariffs'!B36,'Input-Network'!$AN$13:$AN$121,0),2) -> Domestic | S36: 612.5891877 | T36: 2332.551787
B37: ='Input-Network'!D23 -> EXIT11 | C37: ='Calc-Cap-Paths'!C25 -> EXIT11 | D37: =VLOOKUP(B37,'Input-Throughput and bookings'!$C$17:$D$125,2,FALSE) -> 1575.437602 | F37: =VLOOKUP(B37,'Calc-Cap-Paths'!$D$15:$F$123,3,FALSE) -> 177.6155918 | G37: 279822.282 | H37: 416.8063461 | I37: 594.4219379 | J37: 936474.6723 | L37: 0 | M37: 594.4219379 | N37: 936474.6723 | O37: 0 | P37: 594.4219379 | Q37: 936474.6723 | R37: =INDEX('Input-Network'!$AN$13:$AO$121,MATCH('Calc-Cap-Tariffs'!B37,'Input-Network'!$AN$13:$AN$121,0),2) -> Domestic | S37: 612.5891877 | T37: 965096.0407
B38: ='Input-Network'!D24 -> EXIT12 | C38: ='Calc-Cap-Paths'!C26 -> EXIT12 | D38: =VLOOKUP(B38,'Input-Throughput and bookings'!$C$17:$D$125,2,FALSE) -> 619.7155896 | F38: =VLOOKUP(B38,'Calc-Cap-Paths'!$D$15:$F$123,3,FALSE) -> 185.0968149 | G38: 114707.3818 | H38: 416.8063461 | I38: 601.903161 | J38: 373008.7723 | L38: 0 | M38: 601.903161 | N38: 373008.7723 | O38: 0 | P38: 601.903161 | Q38: 373008.7723 | R38: =INDEX('Input-Network'!$AN$13:$AO$121,MATCH('Calc-Cap-Tariffs'!B38,'Input-Network'!$AN$13:$AN$121,0),2) -> Domestic | S38: 612.5891877 | T38: 379631.0696
B39: ='Input-Network'!D25 -> EXIT13 | C39: ='Calc-Cap-Paths'!C27 -> EXIT13 | D39: =VLOOKUP(B39,'Input-Throughput and bookings'!$C$17:$D$125,2,FALSE) -> 1925.04952 | F39: =VLOOKUP(B39,'Calc-Cap-Paths'!$D$15:$F$123,3,FALSE) -> 173.8550046 | G39: 334679.4931 | H39: 416.8063461 | I39: 590.6613507 | J39: 1137052.35 | L39: 0 | M39: 590.6613507 | N39: 1137052.35 | O39: 0 | P39: 590.6613507 | Q39: 1137052.35 | R39: =INDEX('Input-Network'!$AN$13:$AO$121,MATCH('Calc-Cap-Tariffs'!B39,'Input-Network'!$AN$13:$AN$121,0),2) -> Domestic | S39: 612.5891877 | T39: 1179264.522
B40: ='Input-Network'!D26 -> EXIT14 | C40: ='Calc-Cap-Paths'!C28 -> EXIT14 | D40: =VLOOKUP(B40,'Input-Throughput and bookings'!$C$17:$D$125,2,FALSE) -> 1376.113779 | F40: =VLOOKUP(B40,'Calc-Cap-Paths'!$D$15:$F$123,3,FALSE) -> 171.6953613 | G40: 236272.3525 | H40: 416.8063461 | I40: 588.5017074 | J40: 809845.3085 | L40: 0 | M40: 588.5017074 | N40: 809845.3085 | O40: 0 | P40: 588.5017074 | Q40: 809845.3085 | R40: =INDEX('Input-Network'!$AN$13:$AO$121,MATCH('Calc-Cap-Tariffs'!B40,'Input-Network'!$AN$13:$AN$121,0),2) -> Domestic | S40: 612.5891877 | T40: 842992.422
B41: ='Input-Network'!D27 -> EXIT16 | C41: ='Calc-Cap-Paths'!C29 -> EXIT16 | D41: =VLOOKUP(B41,'Input-Throughput and bookings'!$C$17:$D$125,2,FALSE) -> 1953.683671 | F41: =VLOOKUP(B41,'Calc-Cap-Paths'!$D$15:$F$123,3,FALSE) -> 181.2283141 | G41: 354062.7979 | H41: 416.8063461 | I41: 598.0346601 | J41: 1168370.55 | L41: 0 | M41: 598.0346601 | N41: 1168370.55 | O41: 0 | P41: 598.0346601 | Q41: 1168370.55 | R41: =INDEX('Input-Network'!$AN$13:$AO$121,MATCH('Calc-Cap-Tariffs'!B41,'Input-Network'!$AN$13:$AN$121,0),2) -> Domestic | S41: 612.5891877 | T41: 1196805.493
B42: ='Input-Network'!D28 -> EXIT17 | C42: ='Calc-Cap-Paths'!C30 -> EXIT17 | D42: =VLOOKUP(B42,'Input-Throughput and bookings'!$C$17:$D$125,2,FALSE) -> 30217.82713 | F42: =VLOOKUP(B42,'Calc-Cap-Paths'!$D$15:$F$123,3,FALSE) -> 175.6803305 | G42: 5308677.858 | H42: 416.8063461 | I42: 592.4866766 | J42: 17903659.97 | L42: 0 | M42: 592.4866766 | N42: 17903659.97 | O42: 0 | P42: 592.4866766 | Q42: 17903659.97 | R42: =INDEX('Input-Network'!$AN$13:$AO$121,MATCH('Calc-Cap-Tariffs'!B42,'Input-Network'!$AN$13:$AN$121,0),2) -> Domestic | S42: 612.5891877 | T42: 18511114.17
B43: ='Input-Network'!D29 -> EXIT18 | C43: ='Calc-Cap-Paths'!C31 -> EXIT18 | D43: =VLOOKUP(B43,'Input-Throughput and bookings'!$C$17:$D$125,2,FALSE) -> 21.49432025 | F43: =VLOOKUP(B43,'Calc-Cap-Paths'!$D$15:$F$123,3,FALSE) -> 174.2335441 | G43: 3745.031595 | H43: 416.8063461 | I43: 591.0398901 | J43: 12704.00068 | L43: 0 | M43: 591.0398901 | N43: 12704.00068 | O43: 0 | P43: 591.0398901 | Q43: 12704.00068 | R43: =INDEX('Input-Network'!$AN$13:$AO$121,MATCH('Calc-Cap-Tariffs'!B43,'Input-Network'!$AN$13:$AN$121,0),2) -> Domestic | S43: 612.5891877 | T43: 13167.18818
B44: ='Input-Network'!D30 -> EXIT19 | C44: ='Calc-Cap-Paths'!C32 -> EXIT19 | D44: =VLOOKUP(B44,'Input-Throughput and bookings'!$C$17:$D$125,2,FALSE) -> 207.7515876 | F44: =VLOOKUP(B44,'Calc-Cap-Paths'!$D$15:$F$123,3,FALSE) -> 182.6062378 | G44: 37936.7358 | H44: 416.8063461 | I44: 599.4125839 | J44: 124528.9159 | L44: 0 | M44: 599.4125839 | N44: 124528.9159 | O44: 0 | P44: 599.4125839 | Q44: 124528.9159 | R44: =INDEX('Input-Network'!$AN$13:$AO$121,MATCH('Calc-Cap-Tariffs'!B44,'Input-Network'!$AN$13:$AN$121,0),2) -> Domestic | S44: 612.5891877 | T44: 127266.3763
B45: ='Input-Network'!D31 -> EXIT20 | C45: ='Calc-Cap-Paths'!C33 -> EXIT20 | D45: =VLOOKUP(B45,'Input-Throughput and bookings'!$C$17:$D$125,2,FALSE) -> 1751.859042 | F45: =VLOOKUP(B45,'Calc-Cap-Paths'!$D$15:$F$123,3,FALSE) -> 219.9195915 | G45: 385268.1248 | H45: 416.8063461 | I45: 636.7259375 | J45: 1115454.091 | L45: 0 | M45: 636.7259375 | N45: 1115454.091 | O45: 0 | P45: 636.7259375 | Q45: 1115454.091 | R45: =INDEX('Input-Network'!$AN$13:$AO$121,MATCH('Calc-Cap-Tariffs'!B45,'Input-Network'!$AN$13:$AN$121,0),2) -> Domestic | S45: 612.5891877 | T45: 1073169.907
B46: ='Input-Network'!D32 -> EXIT21 | C46: ='Calc-Cap-Paths'!C34 -> EXIT21 | D46: =VLOOKUP(B46,'Input-Throughput and bookings'!$C$17:$D$125,2,FALSE) -> 2357.136013 | F46: =VLOOKUP(B46,'Calc-Cap-Paths'!$D$15:$F$123,3,FALSE) -> 211.6946084 | G46: 498992.9852 | H46: 416.8063461 | I46: 628.5009545 | J46: 1481462.234 | L46: 0 | M46: 628.5009545 | N46: 1481462.234 | O46: 0 | P46: 628.5009545 | Q46: 1481462.234 | R46: =INDEX('Input-Network'!$AN$13:$AO$121,MATCH('Calc-Cap-Tariffs'!B46,'Input-Network'!$AN$13:$AN$121,0),2) -> Domestic | S46: 612.5891877 | T46: 1443956.036
B47: ='Input-Network'!D33 -> EXIT22 | C47: ='Calc-Cap-Paths'!C35 -> EXIT22 | D47: =VLOOKUP(B47,'Input-Throughput and bookings'!$C$17:$D$125,2,FALSE) -> 778.7591555 | F47: =VLOOKUP(B47,'Calc-Cap-Paths'!$D$15:$F$123,3,FALSE) -> 253.4252144 | G47: 197357.2059 | H47: 416.8063461 | I47: 670.2315605 | J47: 521948.964 | L47: 0 | M47: 670.2315605 | N47: 521948.964 | O47: 0 | P47: 670.2315605 | Q47: 521948.964 | R47: =INDEX('Input-Network'!$AN$13:$AO$121,MATCH('Calc-Cap-Tariffs'!B47,'Input-Network'!$AN$13:$AN$121,0),2) -> Domestic | S47: 612.5891877 | T47: 477059.4384
B48: ='Input-Network'!D34 -> EXIT23 | C48: ='Calc-Cap-Paths'!C36 -> EXIT23 | D48: =VLOOKUP(B48,'Input-Throughput and bookings'!$C$17:$D$125,2,FALSE) -> 315.4115526 | F48: =VLOOKUP(B48,'Calc-Cap-Paths'!$D$15:$F$123,3,FALSE) -> 202.8901096 | G48: 63993.88447 | H48: 416.8063461 | I48: 619.6964557 | J48: 195459.4212 | L48: 0 | M48: 619.6964557 | N48: 195459.4212 | O48: 0 | P48: 619.6964557 | Q48: 195459.4212 | R48: =INDEX('Input-Network'!$AN$13:$AO$121,MATCH('Calc-Cap-Tariffs'!B48,'Input-Network'!$AN$13:$AN$121,0),2) -> Domestic | S48: 612.5891877 | T48: 193217.7068
B49: ='Input-Network'!D35 -> EXIT24 | C49: ='Calc-Cap-Paths'!C37 -> EXIT24 | D49: =VLOOKUP(B49,'Input-Throughput and bookings'!$C$17:$D$125,2,FALSE) -> 4310.76608 | F49: =VLOOKUP(B49,'Calc-Cap-Paths'!$D$15:$F$123,3,FALSE) -> 174.8355601 | G49: 753675.2021 | H49: 416.8063461 | I49: 591.6419062 | J49: 2550429.861 | L49: 0 | M49: 591.6419062 | N49: 2550429.861 | O49: 0 | P49: 591.6419062 | Q49: 2550429.861 | R49: =INDEX('Input-Network'!$AN$13:$AO$121,MATCH('Calc-Cap-Tariffs'!B49,'Input-Network'!$AN$13:$AN$121,0),2) -> Domestic | S49: 612.5891877 | T49: 2640728.691
B50: ='Input-Network'!D36 -> EXIT25 | C50: ='Calc-Cap-Paths'!C38 -> EXIT25 | D50: =VLOOKUP(B50,'Input-Throughput and bookings'!$C$17:$D$125,2,FALSE) -> 2479.658963 | F50: =VLOOKUP(B50,'Calc-Cap-Paths'!$D$15:$F$123,3,FALSE) -> 182.7064964 | G50: 453049.8014 | H50: 416.8063461 | I50: 599.5128425 | J50: 1486587.393 | L50: 0 | M50: 599.5128425 | N50: 1486587.393 | O50: 0 | P50: 599.5128425 | Q50: 1486587.393 | R50: =INDEX('Input-Network'!$AN$13:$AO$121,MATCH('Calc-Cap-Tariffs'!B50,'Input-Network'!$AN$13:$AN$121,0),2) -> Domestic | S50: 612.5891877 | T50: 1519012.27
B51: ='Input-Network'!D37 -> EXIT26 | C51: ='Calc-Cap-Paths'!C39 -> EXIT26 | D51: =VLOOKUP(B51,'Input-Throughput and bookings'!$C$17:$D$125,2,FALSE) -> 453.1280758 | F51: =VLOOKUP(B51,'Calc-Cap-Paths'!$D$15:$F$123,3,FALSE) -> 195.1042804 | G51: 88407.22716 | H51: 416.8063461 | I51: 611.9106265 | J51: 277273.8847 | L51: 0 | M51: 611.9106265 | N51: 277273.8847 | O51: 0 | P51: 611.9106265 | Q51: 277273.8847 | R51: =INDEX('Input-Network'!$AN$13:$AO$121,MATCH('Calc-Cap-Tariffs'!B51,'Input-Network'!$AN$13:$AN$121,0),2) -> Domestic | S51: 612.5891877 | T51: 277581.3599
B52: ='Input-Network'!D38 -> EXIT27 | C52: ='Calc-Cap-Paths'!C40 -> EXIT27 | D52: =VLOOKUP(B52,'Input-Throughput and bookings'!$C$17:$D$125,2,FALSE) -> 17682.77429 | F52: =VLOOKUP(B52,'Calc-Cap-Paths'!$D$15:$F$123,3,FALSE) -> 184.9441962 | G52: 3270326.478 | H52: 416.8063461 | I52: 601.7505423 | J52: 10640619.02 | L52: 0 | M52: 601.7505423 | N52: 10640619.02 | O52: 0 | P52: 601.7505423 | Q52: 10640619.02 | R52: =INDEX('Input-Network'!$AN$13:$AO$121,MATCH('Calc-Cap-Tariffs'!B52,'Input-Network'!$AN$13:$AN$121,0),2) -> Domestic | S52: 612.5891877 | T52: 10832276.34
B53: ='Input-Network'!D39 -> EXIT28 | C53: ='Calc-Cap-Paths'!C41 -> EXIT28 | D53: =VLOOKUP(B53,'Input-Throughput and bookings'!$C$17:$D$125,2,FALSE) -> 1452.717108 | F53: =VLOOKUP(B53,'Calc-Cap-Paths'!$D$15:$F$123,3,FALSE) -> 213.3921386 | G53: 309998.4105 | H53: 416.8063461 | I53: 630.1984847 | J53: 915500.1203 | L53: 0 | M53: 630.1984847 | N53: 915500.1203 | O53: 0 | P53: 630.1984847 | Q53: 915500.1203 | R53: =INDEX('Input-Network'!$AN$13:$AO$121,MATCH('Calc-Cap-Tariffs'!B53,'Input-Network'!$AN$13:$AN$121,0),2) -> Domestic | S53: 612.5891877 | T53: 889918.7932
B54: ='Input-Network'!D40 -> EXIT29 | C54: ='Calc-Cap-Paths'!C42 -> EXIT29 | D54: =VLOOKUP(B54,'Input-Throughput and bookings'!$C$17:$D$125,2,FALSE) -> 1162.95092 | F54: =VLOOKUP(B54,'Calc-Cap-Paths'!$D$15:$F$123,3,FALSE) -> 206.8049889 | G54: 240504.0521 | H54: 416.8063461 | I54: 623.611335 | J54: 725229.3758 | L54: 0 | M54: 623.611335 | N54: 725229.3758 | O54: 0 | P54: 623.611335 | Q54: 725229.3758 | R54: =INDEX('Input-Network'!$AN$13:$AO$121,MATCH('Calc-Cap-Tariffs'!B54,'Input-Network'!$AN$13:$AN$121,0),2) -> Domestic | S54: 612.5891877 | T54: 712411.1594
B55: ='Input-Network'!D41 -> EXIT30 | C55: ='Calc-Cap-Paths'!C43 -> EXIT30 | D55: =VLOOKUP(B55,'Input-Throughput and bookings'!$C$17:$D$125,2,FALSE) -> 333.8585795 | F55: =VLOOKUP(B55,'Calc-Cap-Paths'!$D$15:$F$123,3,FALSE) -> 172.3373313 | G55: 57536.29662 | H55: 416.8063461 | I55: 589.1436774 | J55: 196690.6712 | L55: 0 | M55: 589.1436774 | N55: 196690.6712 | O55: 0 | P55: 589.1436774 | Q55: 196690.6712 | R55: =INDEX('Input-Network'!$AN$13:$AO$121,MATCH('Calc-Cap-Tariffs'!B55,'Input-Network'!$AN$13:$AN$121,0),2) -> Domestic | S55: 612.5891877 | T55: 204518.156
B56: ='Input-Network'!D42 -> EXIT33 | C56: ='Calc-Cap-Paths'!C44 -> EXIT33 | D56: =VLOOKUP(B56,'Input-Throughput and bookings'!$C$17:$D$125,2,FALSE) -> 1870.015494 | F56: =VLOOKUP(B56,'Calc-Cap-Paths'!$D$15:$F$123,3,FALSE) -> 171.418154 | G56: 320554.6039 | H56: 416.8063461 | I56: 588.2245001 | J56: 1099988.929 | L56: 0 | M56: 588.2245001 | N56: 1099988.929 | O56: 0 | P56: 588.2245001 | Q56: 1099988.929 | R56: =INDEX('Input-Network'!$AN$13:$AO$121,MATCH('Calc-Cap-Tariffs'!B56,'Input-Network'!$AN$13:$AN$121,0),2) -> Domestic | S56: 612.5891877 | T56: 1145551.272
B57: ='Input-Network'!D43 -> EXIT34 | C57: ='Calc-Cap-Paths'!C45 -> EXIT34 | D57: =VLOOKUP(B57,'Input-Throughput and bookings'!$C$17:$D$125,2,FALSE) -> 1136.871232 | F57: =VLOOKUP(B57,'Calc-Cap-Paths'!$D$15:$F$123,3,FALSE) -> 171.6030612 | G57: 195090.5837 | H57: 416.8063461 | I57: 588.4094073 | J57: 668945.7281 | L57: 0 | M57: 588.4094073 | N57: 668945.7281 | O57: 0 | P57: 588.4094073 | Q57: 668945.7281 | R57: =INDEX('Input-Network'!$AN$13:$AO$121,MATCH('Calc-Cap-Tariffs'!B57,'Input-Network'!$AN$13:$AN$121,0),2) -> Domestic | S57: 612.5891877 | T57: 696435.0248
B58: ='Input-Network'!D44 -> EXIT35 | C58: ='Calc-Cap-Paths'!C46 -> EXIT35 | D58: =VLOOKUP(B58,'Input-Throughput and bookings'!$C$17:$D$125,2,FALSE) -> 302.7709867 | F58: =VLOOKUP(B58,'Calc-Cap-Paths'!$D$15:$F$123,3,FALSE) -> 214.2667727 | G58: 64873.76219 | H58: 416.8063461 | I58: 631.0731188 | J58: 191070.6309 | L58: 0 | M58: 631.0731188 | N58: 191070.6309 | O58: 0 | P58: 631.0731188 | Q58: 191070.6309 | R58: =INDEX('Input-Network'!$AN$13:$AO$121,MATCH('Calc-Cap-Tariffs'!B58,'Input-Network'!$AN$13:$AN$121,0),2) -> Domestic | S58: 612.5891877 | T58: 185474.2328
B59: ='Input-Network'!D45 -> EXIT36 | C59: ='Calc-Cap-Paths'!C47 -> EXIT36 | D59: =VLOOKUP(B59,'Input-Throughput and bookings'!$C$17:$D$125,2,FALSE) -> 126.7928819 | F59: =VLOOKUP(B59,'Calc-Cap-Paths'!$D$15:$F$123,3,FALSE) -> 238.1189774 | G59: 30191.79138 | H59: 416.8063461 | I59: =F59+H59 -> 654.9253235 | J59: 83039.86919 | L59: 0 | M59: 654.9253235 | N59: 83039.86919 | O59: 0 | P59: 654.9253235 | Q59: 83039.86919 | R59: =INDEX('Input-Network'!$AN$13:$AO$121,MATCH('Calc-Cap-Tariffs'!B59,'Input-Network'!$AN$13:$AN$121,0),2) -> Domestic | S59: 612.5891877 | T59: 77671.94852
B60: ='Input-Network'!D46 -> EXIT37 | C60: ='Calc-Cap-Paths'!C48 -> EXIT37 | D60: =VLOOKUP(B60,'Input-Throughput and bookings'!$C$17:$D$125,2,FALSE) -> 804.5117481 | F60: =VLOOKUP(B60,'Calc-Cap-Paths'!$D$15:$F$123,3,FALSE) -> 202.4209543 | G60: 162850.0358 | H60: 416.8063461 | I60: 619.2273004 | J60: 498175.6379 | L60: 0 | M60: 619.2273004 | N60: 498175.6379 | O60: 0 | P60: 619.2273004 | Q60: 498175.6379 | R60: =INDEX('Input-Network'!$AN$13:$AO$121,MATCH('Calc-Cap-Tariffs'!B60,'Input-Network'!$AN$13:$AN$121,0),2) -> Domestic | S60: 612.5891877 | T60: 492835.1982
B61: ='Input-Network'!D47 -> EXIT38 | C61: ='Calc-Cap-Paths'!C49 -> EXIT38 | D61: =VLOOKUP(B61,'Input-Throughput and bookings'!$C$17:$D$125,2,FALSE) -> 3.216561599 | F61: =VLOOKUP(B61,'Calc-Cap-Paths'!$D$15:$F$123,3,FALSE) -> 213.2024875 | G61: 685.7789342 | H61: 416.8063461 | I61: 630.0088336 | J61: 2026.462221 | L61: 0 | M61: 630.0088336 | N61: 2026.462221 | O61: 0 | P61: 630.0088336 | Q61: 2026.462221 | R61: =INDEX('Input-Network'!$AN$13:$AO$121,MATCH('Calc-Cap-Tariffs'!B61,'Input-Network'!$AN$13:$AN$121,0),2) -> Domestic | S61: 612.5891877 | T61: 1970.430857
B62: ='Input-Network'!D48 -> EXIT39 | C62: ='Calc-Cap-Paths'!C50 -> EXIT39 | D62: =VLOOKUP(B62,'Input-Throughput and bookings'!$C$17:$D$125,2,FALSE) -> 80.37947199 | F62: =VLOOKUP(B62,'Calc-Cap-Paths'!$D$15:$F$123,3,FALSE) -> 218.350028 | G62: 17550.85996 | H62: 416.8063461 | I62: 635.156374 | J62: 51053.53397 | L62: 0 | M62: 635.156374 | N62: 51053.53397 | O62: 0 | P62: 635.156374 | Q62: 51053.53397 | R62: =INDEX('Input-Network'!$AN$13:$AO$121,MATCH('Calc-Cap-Tariffs'!B62,'Input-Network'!$AN$13:$AN$121,0),2) -> Domestic | S62: 612.5891877 | T62: 49239.59545
B63: ='Input-Network'!D49 -> EXIT40 | C63: ='Calc-Cap-Paths'!C51 -> EXIT40 | D63: =VLOOKUP(B63,'Input-Throughput and bookings'!$C$17:$D$125,2,FALSE) -> 1701.64381 | F63: =VLOOKUP(B63,'Calc-Cap-Paths'!$D$15:$F$123,3,FALSE) -> 193.1936788 | G63: 328746.8277 | H63: 416.8063461 | I63: 610.0000249 | J63: 1038002.767 | L63: 0 | M63: 610.0000249 | N63: 1038002.767 | O63: 0 | P63: 610.0000249 | Q63: 1038002.767 | R63: =INDEX('Input-Network'!$AN$13:$AO$121,MATCH('Calc-Cap-Tariffs'!B63,'Input-Network'!$AN$13:$AN$121,0),2) -> Domestic | S63: 612.5891877 | T63: 1042408.599
B64: ='Input-Network'!D50 -> EXIT41 | C64: ='Calc-Cap-Paths'!C52 -> EXIT41 | D64: =VLOOKUP(B64,'Input-Throughput and bookings'!$C$17:$D$125,2,FALSE) -> 17804.75757 | F64: =VLOOKUP(B64,'Calc-Cap-Paths'!$D$15:$F$123,3,FALSE) -> 198.6589802 | G64: 3537074.982 | H64: 416.8063461 | I64: 615.4653263 | J64: 10958210.93 | L64: 0 | M64: 615.4653263 | N64: 10958210.93 | O64: 0 | P64: 615.4653263 | Q64: 10958210.93 | R64: =INDEX('Input-Network'!$AN$13:$AO$121,MATCH('Calc-Cap-Tariffs'!B64,'Input-Network'!$AN$13:$AN$121,0),2) -> Domestic | S64: 612.5891877 | T64: 10907001.98
B65: ='Input-Network'!D51 -> EXIT42 | C65: ='Calc-Cap-Paths'!C53 -> EXIT42 | D65: =VLOOKUP(B65,'Input-Throughput and bookings'!$C$17:$D$125,2,FALSE) -> 16130.45666 | F65: =VLOOKUP(B65,'Calc-Cap-Paths'!$D$15:$F$123,3,FALSE) -> 185.880823 | G65: 2998342.558 | H65: 416.8063461 | I65: 602.687169 | J65: 9721619.259 | L65: 0 | M65: 602.687169 | N65: 9721619.259 | O65: 0 | P65: 602.687169 | Q65: 9721619.259 | R65: =INDEX('Input-Network'!$AN$13:$AO$121,MATCH('Calc-Cap-Tariffs'!B65,'Input-Network'!$AN$13:$AN$121,0),2) -> Domestic | S65: 612.5891877 | T65: 9881343.341
B66: ='Input-Network'!D52 -> EXIT43 | C66: ='Calc-Cap-Paths'!C54 -> EXIT43 | D66: =VLOOKUP(B66,'Input-Throughput and bookings'!$C$17:$D$125,2,FALSE) -> 257.3177563 | F66: =VLOOKUP(B66,'Calc-Cap-Paths'!$D$15:$F$123,3,FALSE) -> 186.2286037 | G66: 47919.92646 | H66: 416.8063461 | I66: 603.0349498 | J66: 155171.6003 | L66: 0 | M66: 603.0349498 | N66: 155171.6003 | O66: 0 | P66: 603.0349498 | Q66: 155171.6003 | R66: =INDEX('Input-Network'!$AN$13:$AO$121,MATCH('Calc-Cap-Tariffs'!B66,'Input-Network'!$AN$13:$AN$121,0),2) -> Domestic | S66: 612.5891877 | T66: 157630.0753
B67: ='Input-Network'!D53 -> EXIT44 | C67: ='Calc-Cap-Paths'!C55 -> EXIT44 | D67: =VLOOKUP(B67,'Input-Throughput and bookings'!$C$17:$D$125,2,FALSE) -> 4011.332002 | F67: =VLOOKUP(B67,'Calc-Cap-Paths'!$D$15:$F$123,3,FALSE) -> 202.3017121 | G67: 811499.332 | H67: 416.8063461 | I67: 619.1080582 | J67: 2483447.967 | L67: 0 | M67: 619.1080582 | N67: 2483447.967 | O67: 0 | P67: 619.1080582 | Q67: 2483447.967 | R67: =INDEX('Input-Network'!$AN$13:$AO$121,MATCH('Calc-Cap-Tariffs'!B67,'Input-Network'!$AN$13:$AN$121,0),2) -> Domestic | S67: 612.5891877 | T67: 2457298.613
B68: ='Input-Network'!D54 -> EXIT45 | C68: ='Calc-Cap-Paths'!C56 -> EXIT45 | D68: =VLOOKUP(B68,'Input-Throughput and bookings'!$C$17:$D$125,2,FALSE) -> 1264.331448 | F68: =VLOOKUP(B68,'Calc-Cap-Paths'!$D$15:$F$123,3,FALSE) -> 211.9491619 | G68: 267973.9908 | H68: 416.8063461 | I68: 628.755508 | J68: 794955.362 | L68: 0 | M68: 628.755508 | N68: 794955.362 | O68: 0 | P68: 628.755508 | Q68: 794955.362 | R68: =INDEX('Input-Network'!$AN$13:$AO$121,MATCH('Calc-Cap-Tariffs'!B68,'Input-Network'!$AN$13:$AN$121,0),2) -> Domestic | S68: 612.5891877 | T68: 774515.7748
B69: ='Input-Network'!D55 -> EXIT46 | C69: ='Calc-Cap-Paths'!C57 -> EXIT46 | D69: =VLOOKUP(B69,'Input-Throughput and bookings'!$C$17:$D$125,2,FALSE) -> 2342.113771 | F69: =VLOOKUP(B69,'Calc-Cap-Paths'!$D$15:$F$123,3,FALSE) -> 184.2818774 | G69: 431609.1228 | H69: 416.8063461 | I69: 601.0882235 | J69: 1407817.006 | L69: 0 | M69: 601.0882235 | N69: 1407817.006 | O69: 0 | P69: 601.0882235 | Q69: 1407817.006 | R69: =INDEX('Input-Network'!$AN$13:$AO$121,MATCH('Calc-Cap-Tariffs'!B69,'Input-Network'!$AN$13:$AN$121,0),2) -> Domestic | S69: 612.5891877 | T69: 1434753.572
B70: ='Input-Network'!D56 -> EXIT47 | C70: ='Calc-Cap-Paths'!C58 -> EXIT47 | D70: =VLOOKUP(B70,'Input-Throughput and bookings'!$C$17:$D$125,2,FALSE) -> 21.30091815 | F70: =VLOOKUP(B70,'Calc-Cap-Paths'!$D$15:$F$123,3,FALSE) -> 196.7300211 | G70: 4190.530077 | H70: 416.8063461 | I70: 613.5363672 | J70: 13068.88794 | L70: 0 | M70: 613.5363672 | N70: 13068.88794 | O70: 0 | P70: 613.5363672 | Q70: 13068.88794 | R70: =INDEX('Input-Network'!$AN$13:$AO$121,MATCH('Calc-Cap-Tariffs'!B70,'Input-Network'!$AN$13:$AN$121,0),2) -> Domestic | S70: 612.5891877 | T70: 13048.71214
B71: ='Input-Network'!D57 -> EXIT48 | C71: ='Calc-Cap-Paths'!C59 -> EXIT48 | D71: =VLOOKUP(B71,'Input-Throughput and bookings'!$C$17:$D$125,2,FALSE) -> 627.6306757 | F71: =VLOOKUP(B71,'Calc-Cap-Paths'!$D$15:$F$123,3,FALSE) -> 214.1770741 | G71: 134424.1017 | H71: 416.8063461 | I71: 630.9834202 | J71: 396024.5504 | L71: 0 | M71: 630.9834202 | N71: 396024.5504 | O71: 0 | P71: 630.9834202 | Q71: 396024.5504 | R71: =INDEX('Input-Network'!$AN$13:$AO$121,MATCH('Calc-Cap-Tariffs'!B71,'Input-Network'!$AN$13:$AN$121,0),2) -> Domestic | S71: 612.5891877 | T71: 384479.7658
B72: ='Input-Network'!D58 -> EXIT49 | C72: ='Calc-Cap-Paths'!C60 -> EXIT49 | D72: =VLOOKUP(B72,'Input-Throughput and bookings'!$C$17:$D$125,2,FALSE) -> 1997.705147 | F72: =VLOOKUP(B72,'Calc-Cap-Paths'!$D$15:$F$123,3,FALSE) -> 189.9406667 | G72: 379445.4475 | H72: 416.8063461 | I72: 606.7470128 | J72: 1212101.63 | L72: 0 | M72: 606.7470128 | N72: 1212101.63 | O72: 0 | P72: 606.7470128 | Q72: 1212101.63 | R72: =INDEX('Input-Network'!$AN$13:$AO$121,MATCH('Calc-Cap-Tariffs'!B72,'Input-Network'!$AN$13:$AN$121,0),2) -> Domestic | S72: 612.5891877 | T72: 1223772.573
B73: ='Input-Network'!D59 -> EXIT50 | C73: ='Calc-Cap-Paths'!C61 -> EXIT50 | D73: =VLOOKUP(B73,'Input-Throughput and bookings'!$C$17:$D$125,2,FALSE) -> 2829.094913 | F73: =VLOOKUP(B73,'Calc-Cap-Paths'!$D$15:$F$123,3,FALSE) -> 175.2212935 | G73: 495717.6701 | H73: 416.8063461 | I73: 592.0276396 | J73: 1674902.384 | L73: 0 | M73: 592.0276396 | N73: 1674902.384 | O73: 0 | P73: 592.0276396 | Q73: 1674902.384 | R73: =INDEX('Input-Network'!$AN$13:$AO$121,MATCH('Calc-Cap-Tariffs'!B73,'Input-Network'!$AN$13:$AN$121,0),2) -> Domestic | S73: 612.5891877 | T73: 1733072.955
B74: ='Input-Network'!D60 -> EXIT51 | C74: ='Calc-Cap-Paths'!C62 -> EXIT51 | D74: =VLOOKUP(B74,'Input-Throughput and bookings'!$C$17:$D$125,2,FALSE) -> 492.3513862 | F74: =VLOOKUP(B74,'Calc-Cap-Paths'!$D$15:$F$123,3,FALSE) -> 212.5929685 | G74: 104670.4427 | H74: 416.8063461 | I74: 629.3993145 | J74: 309885.625 | L74: 0 | M74: 629.3993145 | N74: 309885.625 | O74: 0 | P74: 629.3993145 | Q74: 309885.625 | R74: =INDEX('Input-Network'!$AN$13:$AO$121,MATCH('Calc-Cap-Tariffs'!B74,'Input-Network'!$AN$13:$AN$121,0),2) -> Domestic | S74: 612.5891877 | T74: 301609.1357
B75: ='Input-Network'!D61 -> EXIT52 | C75: ='Calc-Cap-Paths'!C63 -> EXIT52 | D75: =VLOOKUP(B75,'Input-Throughput and bookings'!$C$17:$D$125,2,FALSE) -> 168.7939483 | F75: =VLOOKUP(B75,'Calc-Cap-Paths'!$D$15:$F$123,3,FALSE) -> 196.5391447 | G75: 33174.61823 | H75: 416.8063461 | I75: 613.3454908 | J75: 103529.0071 | L75: 0 | M75: 613.3454908 | N75: 103529.0071 | O75: 0 | P75: 613.3454908 | Q75: 103529.0071 | R75: =INDEX('Input-Network'!$AN$13:$AO$121,MATCH('Calc-Cap-Tariffs'!B75,'Input-Network'!$AN$13:$AN$121,0),2) -> Domestic | S75: 612.5891877 | T75: 103401.3477
B76: ='Input-Network'!D62 -> EXIT53 | C76: ='Calc-Cap-Paths'!C64 -> EXIT53 | D76: =VLOOKUP(B76,'Input-Throughput and bookings'!$C$17:$D$125,2,FALSE) -> 1399.144965 | F76: =VLOOKUP(B76,'Calc-Cap-Paths'!$D$15:$F$123,3,FALSE) -> 176.3630324 | G76: 246757.4489 | H76: 416.8063461 | I76: 593.1693785 | J76: 829929.9495 | L76: 0 | M76: 593.1693785 | N76: 829929.9495 | O76: 0 | P76: 593.1693785 | Q76: 829929.9495 | R76: =INDEX('Input-Network'!$AN$13:$AO$121,MATCH('Calc-Cap-Tariffs'!B76,'Input-Network'!$AN$13:$AN$121,0),2) -> Domestic | S76: 612.5891877 | T76: 857101.0777
B77: ='Input-Network'!D63 -> EXIT54 | C77: ='Calc-Cap-Paths'!C65 -> EXIT54 | D77: =VLOOKUP(B77,'Input-Throughput and bookings'!$C$17:$D$125,2,FALSE) -> 1836.262351 | F77: =VLOOKUP(B77,'Calc-Cap-Paths'!$D$15:$F$123,3,FALSE) -> 226.2125432 | G77: 415385.5764 | H77: 416.8063461 | I77: 643.0188893 | J77: 1180751.377 | L77: 0 | M77: 643.0188893 | N77: 1180751.377 | O77: 0 | P77: 643.0188893 | Q77: 1180751.377 | R77: =INDEX('Input-Network'!$AN$13:$AO$121,MATCH('Calc-Cap-Tariffs'!B77,'Input-Network'!$AN$13:$AN$121,0),2) -> Domestic | S77: 612.5891877 | T77: 1124874.462
B78: ='Input-Network'!D64 -> EXIT55 | C78: ='Calc-Cap-Paths'!C66 -> EXIT55 | D78: =VLOOKUP(B78,'Input-Throughput and bookings'!$C$17:$D$125,2,FALSE) -> 3357.981977 | F78: =VLOOKUP(B78,'Calc-Cap-Paths'!$D$15:$F$123,3,FALSE) -> 210.7916568 | G78: 707834.5844 | H78: 416.8063461 | I78: 627.5980029 | J78: 2107462.782 | L78: 0 | M78: 627.5980029 | N78: 2107462.782 | O78: 0 | P78: 627.5980029 | Q78: 2107462.782 | R78: =INDEX('Input-Network'!$AN$13:$AO$121,MATCH('Calc-Cap-Tariffs'!B78,'Input-Network'!$AN$13:$AN$121,0),2) -> Domestic | S78: 612.5891877 | T78: 2057063.451
B79: ='Input-Network'!D65 -> EXIT57 | C79: ='Calc-Cap-Paths'!C67 -> EXIT57 | D79: =VLOOKUP(B79,'Input-Throughput and bookings'!$C$17:$D$125,2,FALSE) -> 1725.769271 | F79: =VLOOKUP(B79,'Calc-Cap-Paths'!$D$15:$F$123,3,FALSE) -> 180.295821 | G79: 311148.9877 | H79: 416.8063461 | I79: 597.1021671 | J79: 1030460.572 | L79: 0 | M79: 597.1021671 | N79: 1030460.572 | O79: 0 | P79: 597.1021671 | Q79: 1030460.572 | R79: =INDEX('Input-Network'!$AN$13:$AO$121,MATCH('Calc-Cap-Tariffs'!B79,'Input-Network'!$AN$13:$AN$121,0),2) -> Domestic | S79: 612.5891877 | T79: 1057187.596
B80: ='Input-Network'!D66 -> EXIT58 | C80: ='Calc-Cap-Paths'!C68 -> EXIT58 | D80: =VLOOKUP(B80,'Input-Throughput and bookings'!$C$17:$D$125,2,FALSE) -> 1674.751354 | F80: =VLOOKUP(B80,'Calc-Cap-Paths'!$D$15:$F$123,3,FALSE) -> 204.7679532 | G80: 342935.4069 | H80: 416.8063461 | I80: 621.5742993 | J80: 1040982.399 | L80: 0 | M80: 621.5742993 | N80: 1040982.399 | O80: 0 | P80: 621.5742993 | Q80: 1040982.399 | R80: =INDEX('Input-Network'!$AN$13:$AO$121,MATCH('Calc-Cap-Tariffs'!B80,'Input-Network'!$AN$13:$AN$121,0),2) -> Domestic | S80: 612.5891877 | T80: 1025934.571
B81: ='Input-Network'!D67 -> EXIT59 | C81: ='Calc-Cap-Paths'!C69 -> EXIT59 | D81: =VLOOKUP(B81,'Input-Throughput and bookings'!$C$17:$D$125,2,FALSE) -> 623.1715425 | F81: =VLOOKUP(B81,'Calc-Cap-Paths'!$D$15:$F$123,3,FALSE) -> 207.6551317 | G81: 129404.7687 | H81: 416.8063461 | I81: 624.4614778 | J81: 389146.6223 | L81: 0 | M81: 624.4614778 | N81: 389146.6223 | O81: 0 | P81: 624.4614778 | Q81: 389146.6223 | R81: =INDEX('Input-Network'!$AN$13:$AO$121,MATCH('Calc-Cap-Tariffs'!B81,'Input-Network'!$AN$13:$AN$121,0),2) -> Domestic | S81: 612.5891877 | T81: 381748.149
B82: ='Input-Network'!D68 -> EXIT60 | C82: ='Calc-Cap-Paths'!C70 -> EXIT60 | D82: =VLOOKUP(B82,'Input-Throughput and bookings'!$C$17:$D$125,2,FALSE) -> 997.7854222 | F82: =VLOOKUP(B82,'Calc-Cap-Paths'!$D$15:$F$123,3,FALSE) -> 185.3807568 | G82: 184970.2167 | H82: 416.8063461 | I82: 602.1871029 | J82: 600853.5127 | L82: 0 | M82: 602.1871029 | N82: 600853.5127 | O82: 0 | P82: 602.1871029 | Q82: 600853.5127 | R82: =INDEX('Input-Network'!$AN$13:$AO$121,MATCH('Calc-Cap-Tariffs'!B82,'Input-Network'!$AN$13:$AN$121,0),2) -> Domestic | S82: 612.5891877 | T82: 611232.5612
B83: ='Input-Network'!D69 -> EXIT61 | C83: ='Calc-Cap-Paths'!C71 -> EXIT61 | D83: =VLOOKUP(B83,'Input-Throughput and bookings'!$C$17:$D$125,2,FALSE) -> 98.14367214 | F83: =VLOOKUP(B83,'Calc-Cap-Paths'!$D$15:$F$123,3,FALSE) -> 198.9342074 | G83: 19524.13362 | H83: 416.8063461 | I83: 615.7405534 | J83: 60431.039 | L83: 0 | M83: 615.7405534 | N83: 60431.039 | O83: 0 | P83: 615.7405534 | Q83: 60431.039 | R83: =INDEX('Input-Network'!$AN$13:$AO$121,MATCH('Calc-Cap-Tariffs'!B83,'Input-Network'!$AN$13:$AN$121,0),2) -> Domestic | S83: 612.5891877 | T83: 60121.75239
B84: ='Input-Network'!D70 -> EXIT62 | C84: ='Calc-Cap-Paths'!C72 -> EXIT62 | D84: =VLOOKUP(B84,'Input-Throughput and bookings'!$C$17:$D$125,2,FALSE) -> 382.5312566 | F84: =VLOOKUP(B84,'Calc-Cap-Paths'!$D$15:$F$123,3,FALSE) -> 177.5066074 | G84: 67901.8256 | H84: 416.8063461 | I84: 594.3129535 | J84: 227343.2809 | L84: 0 | M84: 594.3129535 | N84: 227343.2809 | O84: 0 | P84: 594.3129535 | Q84: 227343.2809 | R84: =INDEX('Input-Network'!$AN$13:$AO$121,MATCH('Calc-Cap-Tariffs'!B84,'Input-Network'!$AN$13:$AN$121,0),2) -> Domestic | S84: 612.5891877 | T84: 234334.5118
B85: ='Input-Network'!D71 -> EXIT63 | C85: ='Calc-Cap-Paths'!C73 -> EXIT63 | D85: =VLOOKUP(B85,'Input-Throughput and bookings'!$C$17:$D$125,2,FALSE) -> 479.8541399 | F85: =VLOOKUP(B85,'Calc-Cap-Paths'!$D$15:$F$123,3,FALSE) -> 179.2972027 | G85: 86036.505 | H85: 416.8063461 | I85: 596.1035488 | J85: 286042.7557 | L85: 0 | M85: 596.1035488 | N85: 286042.7557 | O85: 0 | P85: 596.1035488 | Q85: 286042.7557 | R85: =INDEX('Input-Network'!$AN$13:$AO$121,MATCH('Calc-Cap-Tariffs'!B85,'Input-Network'!$AN$13:$AN$121,0),2) -> Domestic | S85: 612.5891877 | T85: 293953.4578
B86: ='Input-Network'!D72 -> EXIT64 | C86: ='Calc-Cap-Paths'!C74 -> EXIT64 | D86: =VLOOKUP(B86,'Input-Throughput and bookings'!$C$17:$D$125,2,FALSE) -> 641.2404406 | F86: =VLOOKUP(B86,'Calc-Cap-Paths'!$D$15:$F$123,3,FALSE) -> 208.4034836 | G86: 133636.7416 | H86: 416.8063461 | I86: 625.2098297 | J86: 400909.8267 | L86: 0 | M86: 625.2098297 | N86: 400909.8267 | O86: 0 | P86: 625.2098297 | Q86: 400909.8267 | R86: =INDEX('Input-Network'!$AN$13:$AO$121,MATCH('Calc-Cap-Tariffs'!B86,'Input-Network'!$AN$13:$AN$121,0),2) -> Domestic | S86: 612.5891877 | T86: 392816.9606
B87: ='Input-Network'!D73 -> EXIT65 | C87: ='Calc-Cap-Paths'!C75 -> EXIT65 | D87: =VLOOKUP(B87,'Input-Throughput and bookings'!$C$17:$D$125,2,FALSE) -> 1041.324739 | F87: =VLOOKUP(B87,'Calc-Cap-Paths'!$D$15:$F$123,3,FALSE) -> 205.4235459 | G87: 213912.6204 | H87: 416.8063461 | I87: 622.229892 | J87: 647943.3801 | L87: 0 | M87: 622.229892 | N87: 647943.3801 | O87: 0 | P87: 622.229892 | Q87: 647943.3801 | R87: =INDEX('Input-Network'!$AN$13:$AO$121,MATCH('Calc-Cap-Tariffs'!B87,'Input-Network'!$AN$13:$AN$121,0),2) -> Domestic | S87: 612.5891877 | T87: 637904.2762
B88: ='Input-Network'!D74 -> EXIT66 | C88: ='Calc-Cap-Paths'!C76 -> EXIT66 | D88: =VLOOKUP(B88,'Input-Throughput and bookings'!$C$17:$D$125,2,FALSE) -> 429.7631874 | F88: =VLOOKUP(B88,'Calc-Cap-Paths'!$D$15:$F$123,3,FALSE) -> 183.1027919 | G88: 78690.83947 | H88: 416.8063461 | I88: 599.909138 | J88: 257818.8633 | L88: 0 | M88: 599.909138 | N88: 257818.8633 | O88: 0 | P88: 599.909138 | Q88: 257818.8633 | R88: =INDEX('Input-Network'!$AN$13:$AO$121,MATCH('Calc-Cap-Tariffs'!B88,'Input-Network'!$AN$13:$AN$121,0),2) -> Domestic | S88: 612.5891877 | T88: 263268.2819
B89: ='Input-Network'!D75 -> EXIT67 | C89: ='Calc-Cap-Paths'!C77 -> EXIT67 | D89: =VLOOKUP(B89,'Input-Throughput and bookings'!$C$17:$D$125,2,FALSE) -> 14.26694936 | F89: =VLOOKUP(B89,'Calc-Cap-Paths'!$D$15:$F$123,3,FALSE) -> 171.714955 | G89: 2449.848569 | H89: 416.8063461 | I89: 588.5213011 | J89: 8396.403603 | L89: 0 | M89: 588.5213011 | N89: 8396.403603 | O89: 0 | P89: 588.5213011 | Q89: 8396.403603 | R89: =INDEX('Input-Network'!$AN$13:$AO$121,MATCH('Calc-Cap-Tariffs'!B89,'Input-Network'!$AN$13:$AN$121,0),2) -> Domestic | S89: 612.5891877 | T89: 8739.778922
B90: ='Input-Network'!D76 -> EXIT68 | C90: ='Calc-Cap-Paths'!C78 -> EXIT68 | D90: =VLOOKUP(B90,'Input-Throughput and bookings'!$C$17:$D$125,2,FALSE) -> 38.05704807 | F90: =VLOOKUP(B90,'Calc-Cap-Paths'!$D$15:$F$123,3,FALSE) -> 186.6630122 | G90: 7103.84323 | H90: 416.8063461 | I90: 603.4693583 | J90: 22966.26238 | L90: 0 | M90: 603.4693583 | N90: 22966.26238 | O90: 0 | P90: 603.4693583 | Q90: 22966.26238 | R90: =INDEX('Input-Network'!$AN$13:$AO$121,MATCH('Calc-Cap-Tariffs'!B90,'Input-Network'!$AN$13:$AN$121,0),2) -> Domestic | S90: 612.5891877 | T90: 23313.33616
B91: ='Input-Network'!D77 -> EXIT69 | C91: ='Calc-Cap-Paths'!C79 -> EXIT69 | D91: =VLOOKUP(B91,'Input-Throughput and bookings'!$C$17:$D$125,2,FALSE) -> 584.8294928 | F91: =VLOOKUP(B91,'Calc-Cap-Paths'!$D$15:$F$123,3,FALSE) -> 207.0067335 | G91: =D91*F91 -> 121063.643 | H91: =$G$139 -> 416.8063461 | I91: =F91+H91 -> 623.8130796 | J91: =I91*D91 -> 364824.287 | L91: 0 | M91: 623.8130796 | N91: 364824.287 | O91: =$N$139*(1-L91) -> 0 | P91: 623.8130796 | Q91: 364824.287 | R91: =INDEX('Input-Network'!$AN$13:$AO$121,MATCH('Calc-Cap-Tariffs'!B91,'Input-Network'!$AN$13:$AN$121,0),2) -> Domestic | S91: 612.5891877 | T91: 358260.2239
B92: ='Input-Network'!D78 -> EXIT70 | C92: ='Calc-Cap-Paths'!C80 -> EXIT70 | D92: =VLOOKUP(B92,'Input-Throughput and bookings'!$C$17:$D$125,2,FALSE) -> 2445.407742 | F92: =VLOOKUP(B92,'Calc-Cap-Paths'!$D$15:$F$123,3,FALSE) -> 197.3459674 | G92: 482591.3565 | H92: 416.8063461 | I92: 614.1523135 | J92: 1501852.822 | L92: 0 | M92: =I92*(1-L92) -> 614.1523135 | N92: =D92*M92 -> 1501852.822 | O92: 0 | P92: =O92+M92 -> 614.1523135 | Q92: =D92*P92 -> 1501852.822 | R92: =INDEX('Input-Network'!$AN$13:$AO$121,MATCH('Calc-Cap-Tariffs'!B92,'Input-Network'!$AN$13:$AN$121,0),2) -> Domestic | S92: 612.5891877 | T92: =D92*S92 -> 1498030.342
B93: ='Input-Network'!D79 -> EXIT71 | C93: ='Calc-Cap-Paths'!C81 -> EXIT71 | D93: =VLOOKUP(B93,'Input-Throughput and bookings'!$C$17:$D$125,2,FALSE) -> 17.87797328 | F93: =VLOOKUP(B93,'Calc-Cap-Paths'!$D$15:$F$123,3,FALSE) -> 201.6107632 | G93: 3604.391839 | H93: 416.8063461 | I93: 618.4171093 | J93: 11056.04456 | L93: 0 | M93: 618.4171093 | N93: 11056.04456 | O93: 0 | P93: 618.4171093 | Q93: 11056.04456 | R93: =INDEX('Input-Network'!$AN$13:$AO$121,MATCH('Calc-Cap-Tariffs'!B93,'Input-Network'!$AN$13:$AN$121,0),2) -> Domestic | S93: =IF(R93="Non-Domestic",P93,SUMIF($R$27:$R$135,"domestic",$N$27:$N$135)/SUMIF($R$27:$R$135,"domestic",$D$27:$D$135)) -> 612.5891877 | T93: 10951.85313
B94: ='Input-Network'!D80 -> EXIT72 | C94: ='Calc-Cap-Paths'!C82 -> EXIT72 | D94: =VLOOKUP(B94,'Input-Throughput and bookings'!$C$17:$D$125,2,FALSE) -> 595.9857787 | F94: =VLOOKUP(B94,'Calc-Cap-Paths'!$D$15:$F$123,3,FALSE) -> 216.7149499 | G94: 129159.0282 | H94: 416.8063461 | I94: 633.521296 | J94: 377569.6829 | L94: 0 | M94: 633.521296 | N94: 377569.6829 | O94: 0 | P94: 633.521296 | Q94: 377569.6829 | R94: =INDEX('Input-Network'!$AN$13:$AO$121,MATCH('Calc-Cap-Tariffs'!B94,'Input-Network'!$AN$13:$AN$121,0),2) -> Domestic | S94: 612.5891877 | T94: 365094.4441
B95: ='Input-Network'!D81 -> EXIT73 | C95: ='Calc-Cap-Paths'!C83 -> EXIT73 | D95: =VLOOKUP(B95,'Input-Throughput and bookings'!$C$17:$D$125,2,FALSE) -> 149.8120623 | F95: =VLOOKUP(B95,'Calc-Cap-Paths'!$D$15:$F$123,3,FALSE) -> 190.9545937 | G95: 28607.30149 | H95: 416.8063461 | I95: 607.7609398 | J95: 91049.9198 | L95: 0 | M95: 607.7609398 | N95: 91049.9198 | O95: 0 | P95: 607.7609398 | Q95: 91049.9198 | R95: =INDEX('Input-Network'!$AN$13:$AO$121,MATCH('Calc-Cap-Tariffs'!B95,'Input-Network'!$AN$13:$AN$121,0),2) -> Domestic | S95: 612.5891877 | T95: 91773.24957
B96: ='Input-Network'!D82 -> EXIT74 | C96: ='Calc-Cap-Paths'!C84 -> EXIT74 | D96: =VLOOKUP(B96,'Input-Throughput and bookings'!$C$17:$D$125,2,FALSE) -> 2932.104076 | F96: =VLOOKUP(B96,'Calc-Cap-Paths'!$D$15:$F$123,3,FALSE) -> 180.2808196 | G96: 528602.126 | H96: 416.8063461 | I96: 597.0871657 | J96: 1750721.712 | L96: 0 | M96: 597.0871657 | N96: 1750721.712 | O96: 0 | P96: 597.0871657 | Q96: 1750721.712 | R96: =INDEX('Input-Network'!$AN$13:$AO$121,MATCH('Calc-Cap-Tariffs'!B96,'Input-Network'!$AN$13:$AN$121,0),2) -> Domestic | S96: 612.5891877 | T96: 1796175.254
B97: ='Input-Network'!D83 -> EXIT75 | C97: ='Calc-Cap-Paths'!C85 -> EXIT75 | D97: =VLOOKUP(B97,'Input-Throughput and bookings'!$C$17:$D$125,2,FALSE) -> 360.7961523 | F97: =VLOOKUP(B97,'Calc-Cap-Paths'!$D$15:$F$123,3,FALSE) -> 181.5639942 | G97: 65507.5905 | H97: 416.8063461 | I97: 598.3703403 | J97: 215889.7164 | L97: 0 | M97: 598.3703403 | N97: 215889.7164 | O97: 0 | P97: 598.3703403 | Q97: 215889.7164 | R97: =INDEX('Input-Network'!$AN$13:$AO$121,MATCH('Calc-Cap-Tariffs'!B97,'Input-Network'!$AN$13:$AN$121,0),2) -> Domestic | S97: 612.5891877 | T97: 221019.8218
B98: ='Input-Network'!D84 -> EXIT76 | C98: ='Calc-Cap-Paths'!C86 -> EXIT76 | D98: =VLOOKUP(B98,'Input-Throughput and bookings'!$C$17:$D$125,2,FALSE) -> 7327.004757 | F98: =VLOOKUP(B98,'Calc-Cap-Paths'!$D$15:$F$123,3,FALSE) -> 202.6537678 | G98: 1484845.121 | H98: 416.8063461 | I98: 619.4601139 | J98: 4538787.202 | L98: 0 | M98: 619.4601139 | N98: 4538787.202 | O98: 0 | P98: 619.4601139 | Q98: 4538787.202 | R98: =INDEX('Input-Network'!$AN$13:$AO$121,MATCH('Calc-Cap-Tariffs'!B98,'Input-Network'!$AN$13:$AN$121,0),2) -> Domestic | S98: 612.5891877 | T98: 4488443.892
B99: ='Input-Network'!D85 -> EXIT77 | C99: ='Calc-Cap-Paths'!C87 -> EXIT77 | D99: =VLOOKUP(B99,'Input-Throughput and bookings'!$C$17:$D$125,2,FALSE) -> 45.37485174 | F99: =VLOOKUP(B99,'Calc-Cap-Paths'!$D$15:$F$123,3,FALSE) -> 179.091326 | G99: 8126.242365 | H99: 416.8063461 | I99: 595.8976721 | J99: 27038.76852 | L99: 0 | M99: 595.8976721 | N99: 27038.76852 | O99: 0 | P99: 595.8976721 | Q99: 27038.76852 | R99: =INDEX('Input-Network'!$AN$13:$AO$121,MATCH('Calc-Cap-Tariffs'!B99,'Input-Network'!$AN$13:$AN$121,0),2) -> Domestic | S99: 612.5891877 | T99: 27796.14357
B100: ='Input-Network'!D86 -> EXIT78 | C100: ='Calc-Cap-Paths'!C88 -> EXIT78 | D100: =VLOOKUP(B100,'Input-Throughput and bookings'!$C$17:$D$125,2,FALSE) -> 11124.7114 | F100: =VLOOKUP(B100,'Calc-Cap-Paths'!$D$15:$F$123,3,FALSE) -> 204.1073041 | G100: 2270634.853 | H100: 416.8063461 | I100: 620.9136502 | J100: 6907485.164 | L100: 0 | M100: 620.9136502 | N100: 6907485.164 | O100: 0 | P100: 620.9136502 | Q100: 6907485.164 | R100: =INDEX('Input-Network'!$AN$13:$AO$121,MATCH('Calc-Cap-Tariffs'!B100,'Input-Network'!$AN$13:$AN$121,0),2) -> Domestic | S100: 612.5891877 | T100: 6814877.921
B101: ='Input-Network'!D87 -> EXIT79 | C101: ='Calc-Cap-Paths'!C89 -> EXIT79 | D101: =VLOOKUP(B101,'Input-Throughput and bookings'!$C$17:$D$125,2,FALSE) -> 2938.438187 | F101: =VLOOKUP(B101,'Calc-Cap-Paths'!$D$15:$F$123,3,FALSE) -> 185.926292 | G101: 546332.9163 | H101: 416.8063461 | I101: 602.7326381 | J101: 1771092.6 | L101: 0 | M101: 602.7326381 | N101: 1771092.6 | O101: 0 | P101: 602.7326381 | Q101: 1771092.6 | R101: =INDEX('Input-Network'!$AN$13:$AO$121,MATCH('Calc-Cap-Tariffs'!B101,'Input-Network'!$AN$13:$AN$121,0),2) -> Domestic | S101: 612.5891877 | T101: 1800055.462
B102: ='Input-Network'!D88 -> EXIT80 | C102: ='Calc-Cap-Paths'!C90 -> EXIT80 | D102: =VLOOKUP(B102,'Input-Throughput and bookings'!$C$17:$D$125,2,FALSE) -> 160.8613341 | F102: =VLOOKUP(B102,'Calc-Cap-Paths'!$D$15:$F$123,3,FALSE) -> 189.550037 | G102: 30491.27183 | H102: 416.8063461 | I102: 606.3563831 | J102: 97539.29671 | L102: 0 | M102: 606.3563831 | N102: 97539.29671 | O102: 0 | P102: 606.3563831 | Q102: 97539.29671 | R102: =INDEX('Input-Network'!$AN$13:$AO$121,MATCH('Calc-Cap-Tariffs'!B102,'Input-Network'!$AN$13:$AN$121,0),2) -> Domestic | S102: 612.5891877 | T102: 98541.91396
B103: ='Input-Network'!D89 -> EXIT81 | C103: ='Calc-Cap-Paths'!C91 -> EXIT81 | D103: =VLOOKUP(B103,'Input-Throughput and bookings'!$C$17:$D$125,2,FALSE) -> 534.7023371 | F103: =VLOOKUP(B103,'Calc-Cap-Paths'!$D$15:$F$123,3,FALSE) -> 199.70904 | G103: 106784.8905 | H103: 416.8063461 | I103: 616.5153861 | J103: 329652.2178 | L103: 0 | M103: 616.5153861 | N103: 329652.2178 | O103: 0 | P103: 616.5153861 | Q103: 329652.2178 | R103: =INDEX('Input-Network'!$AN$13:$AO$121,MATCH('Calc-Cap-Tariffs'!B103,'Input-Network'!$AN$13:$AN$121,0),2) -> Domestic | S103: 612.5891877 | T103: 327552.8703
B104: ='Input-Network'!D90 -> EXIT82 | C104: ='Calc-Cap-Paths'!C92 -> EXIT82 | D104: =VLOOKUP(B104,'Input-Throughput and bookings'!$C$17:$D$125,2,FALSE) -> 1890.168218 | F104: =VLOOKUP(B104,'Calc-Cap-Paths'!$D$15:$F$123,3,FALSE) -> 213.3596877 | G104: 403285.7007 | H104: 416.8063461 | I104: 630.1660338 | J104: 1191119.809 | L104: 0 | M104: 630.1660338 | N104: 1191119.809 | O104: 0 | P104: 630.1660338 | Q104: 1191119.809 | R104: =INDEX('Input-Network'!$AN$13:$AO$121,MATCH('Calc-Cap-Tariffs'!B104,'Input-Network'!$AN$13:$AN$121,0),2) -> Domestic | S104: 612.5891877 | T104: 1157896.613
B105: ='Input-Network'!D91 -> EXIT83 | C105: ='Calc-Cap-Paths'!C93 -> EXIT83 | D105: =VLOOKUP(B105,'Input-Throughput and bookings'!$C$17:$D$125,2,FALSE) -> 1645.32246 | F105: =VLOOKUP(B105,'Calc-Cap-Paths'!$D$15:$F$123,3,FALSE) -> 197.7716513 | G105: 325398.1398 | H105: 416.8063461 | I105: 614.5779974 | J105: 1011178.982 | L105: 0 | M105: 614.5779974 | N105: 1011178.982 | O105: 0 | P105: 614.5779974 | Q105: 1011178.982 | R105: =INDEX('Input-Network'!$AN$13:$AO$121,MATCH('Calc-Cap-Tariffs'!B105,'Input-Network'!$AN$13:$AN$121,0),2) -> Domestic | S105: 612.5891877 | T105: 1007906.749
B106: ='Input-Network'!D92 -> EXIT84 | C106: ='Calc-Cap-Paths'!C94 -> EXIT84 | D106: =VLOOKUP(B106,'Input-Throughput and bookings'!$C$17:$D$125,2,FALSE) -> 3034.58284 | F106: =VLOOKUP(B106,'Calc-Cap-Paths'!$D$15:$F$123,3,FALSE) -> 179.3216924 | G106: 544166.5306 | H106: 416.8063461 | I106: 596.1280385 | J106: 1808999.916 | L106: 0 | M106: 596.1280385 | N106: 1808999.916 | O106: 0 | P106: 596.1280385 | Q106: 1808999.916 | R106: =INDEX('Input-Network'!$AN$13:$AO$121,MATCH('Calc-Cap-Tariffs'!B106,'Input-Network'!$AN$13:$AN$121,0),2) -> Domestic | S106: 612.5891877 | T106: 1858952.637
B107: ='Input-Network'!D93 -> EXIT86 | C107: ='Calc-Cap-Paths'!C95 -> EXIT86 | D107: =VLOOKUP(B107,'Input-Throughput and bookings'!$C$17:$D$125,2,FALSE) -> 8040.6445 | F107: =VLOOKUP(B107,'Calc-Cap-Paths'!$D$15:$F$123,3,FALSE) -> 232.2878284 | G107: 1867743.85 | H107: 416.8063461 | I107: 649.0941745 | J107: 5219135.504 | L107: 0 | M107: 649.0941745 | N107: 5219135.504 | O107: 0 | P107: 649.0941745 | Q107: 5219135.504 | R107: =INDEX('Input-Network'!$AN$13:$AO$121,MATCH('Calc-Cap-Tariffs'!B107,'Input-Network'!$AN$13:$AN$121,0),2) -> Domestic | S107: 612.5891877 | T107: 4925611.882
B108: ='Input-Network'!D94 -> EXIT87 | C108: ='Calc-Cap-Paths'!C96 -> EXIT87 | D108: =VLOOKUP(B108,'Input-Throughput and bookings'!$C$17:$D$125,2,FALSE) -> 636.0066559 | F108: =VLOOKUP(B108,'Calc-Cap-Paths'!$D$15:$F$123,3,FALSE) -> 175.7320844 | G108: 111766.7754 | H108: 416.8063461 | I108: 592.5384305 | J108: 376858.3857 | L108: 0 | M108: 592.5384305 | N108: 376858.3857 | O108: 0 | P108: 592.5384305 | Q108: 376858.3857 | R108: =INDEX('Input-Network'!$AN$13:$AO$121,MATCH('Calc-Cap-Tariffs'!B108,'Input-Network'!$AN$13:$AN$121,0),2) -> Domestic | S108: 612.5891877 | T108: 389610.8007
B109: ='Input-Network'!D95 -> EXIT88 | C109: ='Calc-Cap-Paths'!C97 -> EXIT88 | D109: =VLOOKUP(B109,'Input-Throughput and bookings'!$C$17:$D$125,2,FALSE) -> 1148.16001 | F109: =VLOOKUP(B109,'Calc-Cap-Paths'!$D$15:$F$123,3,FALSE) -> 177.4083371 | G109: 203693.158 | H109: 416.8063461 | I109: 594.2146831 | J109: 682253.5364 | L109: 0 | M109: 594.2146831 | N109: 682253.5364 | O109: 0 | P109: 594.2146831 | Q109: 682253.5364 | R109: =INDEX('Input-Network'!$AN$13:$AO$121,MATCH('Calc-Cap-Tariffs'!B109,'Input-Network'!$AN$13:$AN$121,0),2) -> Domestic | S109: 612.5891877 | T109: 703350.4077
B110: ='Input-Network'!D96 -> EXIT89 | C110: ='Calc-Cap-Paths'!C98 -> EXIT89 | D110: =VLOOKUP(B110,'Input-Throughput and bookings'!$C$17:$D$125,2,FALSE) -> 7049.145771 | F110: =VLOOKUP(B110,'Calc-Cap-Paths'!$D$15:$F$123,3,FALSE) -> 182.8212951 | G110: 1288733.96 | H110: 416.8063461 | I110: 599.6276412 | J110: 4226862.652 | L110: 0 | M110: 599.6276412 | N110: 4226862.652 | O110: 0 | P110: 599.6276412 | Q110: 4226862.652 | R110: =INDEX('Input-Network'!$AN$13:$AO$121,MATCH('Calc-Cap-Tariffs'!B110,'Input-Network'!$AN$13:$AN$121,0),2) -> Domestic | S110: 612.5891877 | T110: 4318230.482
B111: ='Input-Network'!D97 -> EXIT90 | C111: ='Calc-Cap-Paths'!C99 -> EXIT90 | D111: =VLOOKUP(B111,'Input-Throughput and bookings'!$C$17:$D$125,2,FALSE) -> 981.8147991 | F111: =VLOOKUP(B111,'Calc-Cap-Paths'!$D$15:$F$123,3,FALSE) -> 249.0335261 | G111: 244504.8014 | H111: 416.8063461 | I111: 665.8398722 | J111: 653731.4403 | L111: 0 | M111: 665.8398722 | N111: 653731.4403 | O111: 0 | P111: 665.8398722 | Q111: 653731.4403 | R111: =INDEX('Input-Network'!$AN$13:$AO$121,MATCH('Calc-Cap-Tariffs'!B111,'Input-Network'!$AN$13:$AN$121,0),2) -> Domestic | S111: 612.5891877 | T111: 601449.1302
B112: ='Input-Network'!D98 -> EXIT91 | C112: ='Calc-Cap-Paths'!C100 -> EXIT91 | D112: =VLOOKUP(B112,'Input-Throughput and bookings'!$C$17:$D$125,2,FALSE) -> 130.6891663 | F112: =VLOOKUP(B112,'Calc-Cap-Paths'!$D$15:$F$123,3,FALSE) -> 194.6326765 | G112: 25436.38223 | H112: 416.8063461 | I112: 611.4390226 | J112: 79908.45611 | L112: 0 | M112: 611.4390226 | N112: 79908.45611 | O112: 0 | P112: 611.4390226 | Q112: 79908.45611 | R112: =INDEX('Input-Network'!$AN$13:$AO$121,MATCH('Calc-Cap-Tariffs'!B112,'Input-Network'!$AN$13:$AN$121,0),2) -> Domestic | S112: 612.5891877 | T112: 80058.77022
B113: ='Input-Network'!D99 -> EXIT92 | C113: ='Calc-Cap-Paths'!C101 -> EXIT92 | D113: =VLOOKUP(B113,'Input-Throughput and bookings'!$C$17:$D$125,2,FALSE) -> 1188.595125 | F113: =VLOOKUP(B113,'Calc-Cap-Paths'!$D$15:$F$123,3,FALSE) -> 210.5669532 | G113: 250278.8542 | H113: 416.8063461 | I113: 627.3732993 | J113: 745692.8453 | L113: 0 | M113: 627.3732993 | N113: 745692.8453 | O113: 0 | P113: 627.3732993 | Q113: 745692.8453 | R113: =INDEX('Input-Network'!$AN$13:$AO$121,MATCH('Calc-Cap-Tariffs'!B113,'Input-Network'!$AN$13:$AN$121,0),2) -> Domestic | S113: 612.5891877 | T113: 728120.5223
B114: ='Input-Network'!D100 -> EXIT93 | C114: ='Calc-Cap-Paths'!C102 -> EXIT93 | D114: =VLOOKUP(B114,'Input-Throughput and bookings'!$C$17:$D$125,2,FALSE) -> 1065.845863 | F114: =VLOOKUP(B114,'Calc-Cap-Paths'!$D$15:$F$123,3,FALSE) -> 205.6871297 | G114: 219230.7763 | H114: 416.8063461 | I114: 622.4934758 | J114: 663482.0959 | L114: 0 | M114: 622.4934758 | N114: 663482.0959 | O114: 0 | P114: 622.4934758 | Q114: 663482.0959 | R114: =INDEX('Input-Network'!$AN$13:$AO$121,MATCH('Calc-Cap-Tariffs'!B114,'Input-Network'!$AN$13:$AN$121,0),2) -> Domestic | S114: 612.5891877 | T114: 652925.6514
B115: ='Input-Network'!D101 -> EXIT94 | C115: ='Calc-Cap-Paths'!C103 -> EXIT94 | D115: =VLOOKUP(B115,'Input-Throughput and bookings'!$C$17:$D$125,2,FALSE) -> 0.09358787961 | F115: =VLOOKUP(B115,'Calc-Cap-Paths'!$D$15:$F$123,3,FALSE) -> 188.9278136 | G115: 17.68135347 | H115: 416.8063461 | I115: 605.7341597 | J115: 56.68937561 | L115: 0 | M115: 605.7341597 | N115: 56.68937561 | O115: 0 | P115: 605.7341597 | Q115: 56.68937561 | R115: =INDEX('Input-Network'!$AN$13:$AO$121,MATCH('Calc-Cap-Tariffs'!B115,'Input-Network'!$AN$13:$AN$121,0),2) -> Domestic | S115: 612.5891877 | T115: 57.33092314
B116: ='Input-Network'!D102 -> EXIT95 | C116: ='Calc-Cap-Paths'!C104 -> EXIT95 | D116: =VLOOKUP(B116,'Input-Throughput and bookings'!$C$17:$D$125,2,FALSE) -> 3669.454085 | F116: =VLOOKUP(B116,'Calc-Cap-Paths'!$D$15:$F$123,3,FALSE) -> 190.5298265 | G116: 699140.4502 | H116: 416.8063461 | I116: 607.3361726 | J116: 2228592.199 | L116: 0 | M116: 607.3361726 | N116: 2228592.199 | O116: 0 | P116: 607.3361726 | Q116: 2228592.199 | R116: =INDEX('Input-Network'!$AN$13:$AO$121,MATCH('Calc-Cap-Tariffs'!B116,'Input-Network'!$AN$13:$AN$121,0),2) -> Domestic | S116: 612.5891877 | T116: 2247867.897
B117: ='Input-Network'!D103 -> EXIT96 | C117: ='Calc-Cap-Paths'!C105 -> EXIT96 | D117: =VLOOKUP(B117,'Input-Throughput and bookings'!$C$17:$D$125,2,FALSE) -> 129.0492602 | F117: =VLOOKUP(B117,'Calc-Cap-Paths'!$D$15:$F$123,3,FALSE) -> 187.4200889 | G117: 24186.42381 | H117: 416.8063461 | I117: 604.226435 | J117: 77974.97441 | L117: 0 | M117: 604.226435 | N117: 77974.97441 | O117: 0 | P117: 604.226435 | Q117: 77974.97441 | R117: =INDEX('Input-Network'!$AN$13:$AO$121,MATCH('Calc-Cap-Tariffs'!B117,'Input-Network'!$AN$13:$AN$121,0),2) -> Domestic | S117: 612.5891877 | T117: 79054.18146
B118: ='Input-Network'!D104 -> EXIT97 | C118: ='Calc-Cap-Paths'!C106 -> EXIT97 | D118: =VLOOKUP(B118,'Input-Throughput and bookings'!$C$17:$D$125,2,FALSE) -> 181.9148198 | F118: =VLOOKUP(B118,'Calc-Cap-Paths'!$D$15:$F$123,3,FALSE) -> 179.5153255 | G118: 32656.49809 | H118: 416.8063461 | I118: 596.3216716 | J118: 108479.7494 | L118: 0 | M118: 596.3216716 | N118: 108479.7494 | O118: 0 | P118: 596.3216716 | Q118: 108479.7494 | R118: =INDEX('Input-Network'!$AN$13:$AO$121,MATCH('Calc-Cap-Tariffs'!B118,'Input-Network'!$AN$13:$AN$121,0),2) -> Domestic | S118: 612.5891877 | T118: 111439.0517
B119: ='Input-Network'!D105 -> EXIT98 | C119: ='Calc-Cap-Paths'!C107 -> EXIT98 | D119: =VLOOKUP(B119,'Input-Throughput and bookings'!$C$17:$D$125,2,FALSE) -> 379.801115 | F119: =VLOOKUP(B119,'Calc-Cap-Paths'!$D$15:$F$123,3,FALSE) -> 216.0657864 | G119: 82062.02661 | H119: 416.8063461 | I119: 632.8721325 | J119: 240365.5416 | L119: 0 | M119: 632.8721325 | N119: 240365.5416 | O119: 0 | P119: 632.8721325 | Q119: 240365.5416 | R119: =INDEX('Input-Network'!$AN$13:$AO$121,MATCH('Calc-Cap-Tariffs'!B119,'Input-Network'!$AN$13:$AN$121,0),2) -> Domestic | S119: 612.5891877 | T119: 232662.0565
B120: ='Input-Network'!D106 -> EXIT99 | C120: ='Calc-Cap-Paths'!C108 -> EXIT99 | D120: =VLOOKUP(B120,'Input-Throughput and bookings'!$C$17:$D$125,2,FALSE) -> 843.2242754 | F120: =VLOOKUP(B120,'Calc-Cap-Paths'!$D$15:$F$123,3,FALSE) -> 207.5499736 | G120: 175011.1761 | H120: 416.8063461 | I120: 624.3563197 | J120: 526472.4053 | L120: 0 | M120: 624.3563197 | N120: 526472.4053 | O120: 0 | P120: 624.3563197 | Q120: 526472.4053 | R120: =INDEX('Input-Network'!$AN$13:$AO$121,MATCH('Calc-Cap-Tariffs'!B120,'Input-Network'!$AN$13:$AN$121,0),2) -> Domestic | S120: 612.5891877 | T120: 516550.0739
B121: ='Input-Network'!D107 -> EXIT100 | C121: ='Calc-Cap-Paths'!C109 -> EXIT100 | D121: =VLOOKUP(B121,'Input-Throughput and bookings'!$C$17:$D$125,2,FALSE) -> 156.2091997 | F121: =VLOOKUP(B121,'Calc-Cap-Paths'!$D$15:$F$123,3,FALSE) -> 204.2766041 | G121: 31909.88485 | H121: 416.8063461 | I121: 621.0829502 | J121: 97018.8706 | L121: 0 | M121: 621.0829502 | N121: 97018.8706 | O121: 0 | P121: 621.0829502 | Q121: 97018.8706 | R121: =INDEX('Input-Network'!$AN$13:$AO$121,MATCH('Calc-Cap-Tariffs'!B121,'Input-Network'!$AN$13:$AN$121,0),2) -> Domestic | S121: 612.5891877 | T121: 95692.06675
B122: ='Input-Network'!D108 -> EXIT101 | C122: ='Calc-Cap-Paths'!C110 -> EXIT101 | D122: =VLOOKUP(B122,'Input-Throughput and bookings'!$C$17:$D$125,2,FALSE) -> 2130.622942 | F122: =VLOOKUP(B122,'Calc-Cap-Paths'!$D$15:$F$123,3,FALSE) -> 175.3383913 | G122: 373579.9991 | H122: 416.8063461 | I122: 592.1447374 | J122: 1261637.162 | L122: 0 | M122: 592.1447374 | N122: 1261637.162 | O122: 0 | P122: 592.1447374 | Q122: 1261637.162 | R122: =INDEX('Input-Network'!$AN$13:$AO$121,MATCH('Calc-Cap-Tariffs'!B122,'Input-Network'!$AN$13:$AN$121,0),2) -> Domestic | S122: 612.5891877 | T122: 1305196.577
B123: ='Input-Network'!D109 -> EXIT102 | C123: ='Calc-Cap-Paths'!C111 -> EXIT102 | D123: =VLOOKUP(B123,'Input-Throughput and bookings'!$C$17:$D$125,2,FALSE) -> 153.224477 | F123: =VLOOKUP(B123,'Calc-Cap-Paths'!$D$15:$F$123,3,FALSE) -> 200.5391307 | G123: 30727.50341 | H123: 416.8063461 | I123: =F123+H123 -> 617.3454767 | J123: 94592.4378 | L123: 0 | M123: 617.3454767 | N123: 94592.4378 | O123: 0 | P123: 617.3454767 | Q123: 94592.4378 | R123: =INDEX('Input-Network'!$AN$13:$AO$121,MATCH('Calc-Cap-Tariffs'!B123,'Input-Network'!$AN$13:$AN$121,0),2) -> Domestic | S123: 612.5891877 | T123: 93863.65789
B124: ='Input-Network'!D110 -> EXIT103 | C124: ='Calc-Cap-Paths'!C112 -> EXIT103 | D124: =VLOOKUP(B124,'Input-Throughput and bookings'!$C$17:$D$125,2,FALSE) -> 19164.59095 | F124: =VLOOKUP(B124,'Calc-Cap-Paths'!$D$15:$F$123,3,FALSE) -> 200.4168182 | G124: 3840906.34 | H124: 416.8063461 | I124: 617.2231643 | J124: 11828829.47 | L124: 0 | M124: 617.2231643 | N124: 11828829.47 | O124: 0 | P124: 617.2231643 | Q124: 11828829.47 | R124: =INDEX('Input-Network'!$AN$13:$AO$121,MATCH('Calc-Cap-Tariffs'!B124,'Input-Network'!$AN$13:$AN$121,0),2) -> Domestic | S124: 612.5891877 | T124: 11740021.2
B125: ='Input-Network'!D111 -> EXIT104 | C125: ='Calc-Cap-Paths'!C113 -> EXIT104 | D125: =VLOOKUP(B125,'Input-Throughput and bookings'!$C$17:$D$125,2,FALSE) -> 14.79104316 | F125: =VLOOKUP(B125,'Calc-Cap-Paths'!$D$15:$F$123,3,FALSE) -> 201.6846953 | G125: 2983.127032 | H125: 416.8063461 | I125: 618.4910414 | J125: 9148.127684 | L125: 0 | M125: 618.4910414 | N125: 9148.127684 | O125: 0 | P125: 618.4910414 | Q125: 9148.127684 | R125: =INDEX('Input-Network'!$AN$13:$AO$121,MATCH('Calc-Cap-Tariffs'!B125,'Input-Network'!$AN$13:$AN$121,0),2) -> Domestic | S125: 612.5891877 | T125: 9060.833111
B126: ='Input-Network'!D112 -> EXIT105 | C126: ='Calc-Cap-Paths'!C114 -> EXIT105 | D126: =VLOOKUP(B126,'Input-Throughput and bookings'!$C$17:$D$125,2,FALSE) -> 668.4000182 | F126: =VLOOKUP(B126,'Calc-Cap-Paths'!$D$15:$F$123,3,FALSE) -> 196.587514 | G126: 131399.0979 | H126: 416.8063461 | I126: 613.3938601 | J126: 409992.4673 | L126: 0 | M126: 613.3938601 | N126: 409992.4673 | O126: 0 | P126: 613.3938601 | Q126: 409992.4673 | R126: =INDEX('Input-Network'!$AN$13:$AO$121,MATCH('Calc-Cap-Tariffs'!B126,'Input-Network'!$AN$13:$AN$121,0),2) -> Domestic | S126: 612.5891877 | T126: 409454.6242
B127: ='Input-Network'!D113 -> EXIT106 | C127: ='Calc-Cap-Paths'!C115 -> EXIT106 | D127: =VLOOKUP(B127,'Input-Throughput and bookings'!$C$17:$D$125,2,FALSE) -> 269.9850445 | F127: =VLOOKUP(B127,'Calc-Cap-Paths'!$D$15:$F$123,3,FALSE) -> 272.3674414 | G127: 73535.13579 | H127: 416.8063461 | I127: 689.1737874 | J127: 186066.6157 | L127: 0 | M127: 689.1737874 | N127: 186066.6157 | O127: 0 | P127: 689.1737874 | Q127: 186066.6157 | R127: =INDEX('Input-Network'!$AN$13:$AO$121,MATCH('Calc-Cap-Tariffs'!B127,'Input-Network'!$AN$13:$AN$121,0),2) -> Domestic | S127: 612.5891877 | T127: 165389.9191
B128: ='Input-Network'!D114 -> EXIT107 | C128: ='Calc-Cap-Paths'!C116 -> EXIT107 | D128: =VLOOKUP(B128,'Input-Throughput and bookings'!$C$17:$D$125,2,FALSE) -> 2387.412955 | F128: =VLOOKUP(B128,'Calc-Cap-Paths'!$D$15:$F$123,3,FALSE) -> 198.0638587 | G128: 472860.2223 | H128: 416.8063461 | I128: 614.8702048 | J128: 1467949.093 | L128: 0 | M128: 614.8702048 | N128: 1467949.093 | O128: 0 | P128: 614.8702048 | Q128: 1467949.093 | R128: =INDEX('Input-Network'!$AN$13:$AO$121,MATCH('Calc-Cap-Tariffs'!B128,'Input-Network'!$AN$13:$AN$121,0),2) -> Domestic | S128: 612.5891877 | T128: 1462503.363
B129: ='Input-Network'!D115 -> EXIT108 | C129: ='Calc-Cap-Paths'!C117 -> EXIT108 | D129: =VLOOKUP(B129,'Input-Throughput and bookings'!$C$17:$D$125,2,FALSE) -> 1376.113779 | F129: =VLOOKUP(B129,'Calc-Cap-Paths'!$D$15:$F$123,3,FALSE) -> 199.3344807 | G129: 274306.9256 | H129: 416.8063461 | I129: 616.1408268 | J129: 847879.8816 | L129: 0 | M129: 616.1408268 | N129: 847879.8816 | O129: 0 | P129: 616.1408268 | Q129: 847879.8816 | R129: =INDEX('Input-Network'!$AN$13:$AO$121,MATCH('Calc-Cap-Tariffs'!B129,'Input-Network'!$AN$13:$AN$121,0),2) -> Domestic | S129: 612.5891877 | T129: 842992.422
B130: ='Input-Network'!D116 -> EXIT109 | C130: ='Calc-Cap-Paths'!C118 -> EXIT109 | D130: =VLOOKUP(B130,'Input-Throughput and bookings'!$C$17:$D$125,2,FALSE) -> 14.43308143 | F130: =VLOOKUP(B130,'Calc-Cap-Paths'!$D$15:$F$123,3,FALSE) -> 208.6341581 | G130: 3011.233794 | H130: 416.8063461 | I130: 625.4405042 | J130: 9027.033729 | L130: 0 | M130: 625.4405042 | N130: 9027.033729 | O130: 0 | P130: 625.4405042 | Q130: 9027.033729 | R130: =INDEX('Input-Network'!$AN$13:$AO$121,MATCH('Calc-Cap-Tariffs'!B130,'Input-Network'!$AN$13:$AN$121,0),2) -> Domestic | S130: 612.5891877 | T130: 8841.549631
B131: ='Input-Network'!D117 -> EXIT110 | C131: ='Calc-Cap-Paths'!C119 -> EXIT110 | D131: =VLOOKUP(B131,'Input-Throughput and bookings'!$C$17:$D$125,2,FALSE) -> 4722.852203 | F131: =VLOOKUP(B131,'Calc-Cap-Paths'!$D$15:$F$123,3,FALSE) -> 212.3410154 | G131: 1002855.232 | H131: 416.8063461 | I131: 629.1473614 | J131: 2971370.002 | L131: 0 | M131: 629.1473614 | N131: 2971370.002 | O131: 0 | P131: 629.1473614 | Q131: 2971370.002 | R131: =INDEX('Input-Network'!$AN$13:$AO$121,MATCH('Calc-Cap-Tariffs'!B131,'Input-Network'!$AN$13:$AN$121,0),2) -> Domestic | S131: 612.5891877 | T131: 2893168.195
B132: ='Input-Network'!D118 -> EXIT111 | C132: ='Calc-Cap-Paths'!C120 -> EXIT111 | D132: =VLOOKUP(B132,'Input-Throughput and bookings'!$C$17:$D$125,2,FALSE) -> 2361.426102 | F132: =VLOOKUP(B132,'Calc-Cap-Paths'!$D$15:$F$123,3,FALSE) -> 215.171253 | G132: 508111.0132 | H132: 416.8063461 | I132: 631.9775991 | J132: 1492368.398 | L132: 0 | M132: 631.9775991 | N132: 1492368.398 | O132: 0 | P132: 631.9775991 | Q132: 1492368.398 | R132: =INDEX('Input-Network'!$AN$13:$AO$121,MATCH('Calc-Cap-Tariffs'!B132,'Input-Network'!$AN$13:$AN$121,0),2) -> Domestic | S132: 612.5891877 | T132: 1446584.097
B133: ='Input-Network'!D119 -> EXIT112 | C133: ='Calc-Cap-Paths'!C121 -> EXIT112 | D133: =VLOOKUP(B133,'Input-Throughput and bookings'!$C$17:$D$125,2,FALSE) -> 4722.852203 | F133: =VLOOKUP(B133,'Calc-Cap-Paths'!$D$15:$F$123,3,FALSE) -> 205.8720345 | G133: 972303.1919 | H133: 416.8063461 | I133: 622.6783806 | J133: 2940817.962 | L133: 0 | M133: 622.6783806 | N133: 2940817.962 | O133: 0 | P133: 622.6783806 | Q133: 2940817.962 | R133: =INDEX('Input-Network'!$AN$13:$AO$121,MATCH('Calc-Cap-Tariffs'!B133,'Input-Network'!$AN$13:$AN$121,0),2) -> Domestic | S133: 612.5891877 | T133: 2893168.195
B134: ='Input-Network'!D120 -> EXIT113 | C134: ='Calc-Cap-Paths'!C122 -> EXIT113 | D134: =VLOOKUP(B134,'Input-Throughput and bookings'!$C$17:$D$125,2,FALSE) -> 5903.565254 | F134: =VLOOKUP(B134,'Calc-Cap-Paths'!$D$15:$F$123,3,FALSE) -> 208.4305737 | G134: 1230483.493 | H134: 416.8063461 | I134: 625.2369198 | J134: =I134*D134 -> 3691126.955 | L134: 0 | M134: 625.2369198 | N134: 3691126.955 | O134: 0 | P134: 625.2369198 | Q134: 3691126.955 | R134: =INDEX('Input-Network'!$AN$13:$AO$121,MATCH('Calc-Cap-Tariffs'!B134,'Input-Network'!$AN$13:$AN$121,0),2) -> Domestic | S134: 612.5891877 | T134: 3616460.243
B135: ='Input-Network'!D121 -> MVRF | C135: ='Calc-Cap-Paths'!C123 -> Moffat VRF | D135: =VLOOKUP(B135,'Input-Throughput and bookings'!$C$17:$D$125,2,FALSE) -> 0 | F135: =VLOOKUP(B135,'Calc-Cap-Paths'!$D$15:$F$123,3,FALSE) -> 309.0932519 | G135: =D135*F135 -> 0 | H135: 416.8063461 | I135: 725.899598 | J135: =I135*D135 -> 0 | L135: =Home!C25 -> 0.48 | M135: =I135*(1-L135) -> 377.467791 | N135: =D135*M135 -> 0 | O135: =$N$139*(1-L135) -> 0 | P135: 377.467791 | Q135: 0 | R135: =INDEX('Input-Network'!$AN$13:$AO$121,MATCH('Calc-Cap-Tariffs'!B135,'Input-Network'!$AN$13:$AN$121,0),2) -> Non-Domestic | S135: =IF(R135="Non-Domestic",P135,SUMIF($R$27:$R$135,"domestic",$Q$27:$Q$135)/SUMIF($R$27:$R$135,"domestic",$D$27:$D$135)) -> 377.467791 | T135: =D135*S135 -> 0 | U135: as per CRU/19/060 decision 14
F136: Total Primary revenue: | G136: =SUM(G27:G135) -> 55912802.16 | I136: Total Secondary Revenue: | J136: =SUM(J27:J135) -> 174946781.8 | M136: Total Post-Discount Revenue: | N136: =SUM(N27:N135) -> 174946781.8 | P136: Total Tertiary Revenue: | Q136: =SUM(Q27:Q135) -> 174946781.8 | S136: Total Final Revenue: | T136: =SUM(T27:T135) -> 174946781.8
F138: Primary Revenue Shortage: | G138: ='Calc-Budget'!C10-G136 -> 119033979.6 | M138: Post-Discount Revenue Shortage: | N138: ='Calc-Budget'!C10-N136 -> 0
F139: Adder: | G139: =G138/SUM(D27:D135) -> 416.8063461 | H139: as per CER/15/140 decision 5 | M139: Post-Discount Adder: | N139: =N138/(SUMPRODUCT(D27:D135,1-L27:L135)) -> 0 | O139: as per CER/15/140 decision 5
F140: Secondary Revenue Shortage: | G140: ='Calc-Budget'!C10-J136 -> 0 | M140: Tertiary Revenue Shortage: | N140: ='Calc-Budget'!C10-Q136 -> 0

Sheet Calc-Com (hidden)
B1: Calculation-Commodity charge
B2: In this sheet the commodity charge is calculated by dividing the total commodity budget for entry and exit by the expected throughput.
B4: as per CER/15/140 decision 9
C5: Commodity charge
C6: Budget | D6: Throughput (MWh) | E6: Commodity charge (€/MWh)
B7: Entry | C7: ='Calc-Budget'!C11 -> 9574201.987 | D7: ='Input-Throughput and bookings'!$D$5 -> 64621281 | E7: =C7/D7 -> 0.1481586536
B8: Exit | C8: ='Calc-Budget'!C12 -> 19438531.31 | D8: ='Input-Throughput and bookings'!$D$6 -> 63014761.13 | E8: =C8/D8 -> 0.308475839

Sheet Data presentation (hidden)
B1: Data presentation | E1: =Home!C5 -> 2023/24
B2: This worksheet is for presentational purposes only.
B4: Presentation of entry capacity tariffs | F4: Entry capacity charges (€/MWh/y)
D5: Required revenue element | E5: Linkline element | F5: Final tariff
B6: 1 | C6: =INDEX('Calc-Cap-Tariffs'!$C$11:$L$16,MATCH('Data presentation'!$F6,'Calc-Cap-Tariffs'!$S$11:$S$16,0),1) -> Bellanaboy | D6: =INDEX('Calc-Cap-Tariffs'!$C$11:$S$16,MATCH('Data presentation'!$F6,'Calc-Cap-Tariffs'!$S$11:$S$16,0),14) -> 217.0499073 | E6: =INDEX('Calc-Cap-Tariffs'!$C$11:$S$16,MATCH('Data presentation'!$F6,'Calc-Cap-Tariffs'!$S$11:$S$16,0),16) -> 587.6451924 | F6: =LARGE('Calc-Cap-Tariffs'!$S$12:$S$16,'Data presentation'!B6) -> 804.6950998
B7: 2 | C7: =INDEX('Calc-Cap-Tariffs'!$C$11:$L$16,MATCH('Data presentation'!$F7,'Calc-Cap-Tariffs'!$S$11:$S$16,0),1) -> Moffat | D7: =INDEX('Calc-Cap-Tariffs'!$C$11:$S$16,MATCH('Data presentation'!$F7,'Calc-Cap-Tariffs'!$S$11:$S$16,0),14) -> 399.5032486 | E7: =INDEX('Calc-Cap-Tariffs'!$C$11:$S$16,MATCH('Data presentation'!$F7,'Calc-Cap-Tariffs'!$S$11:$S$16,0),16) -> 0 | F7: =LARGE('Calc-Cap-Tariffs'!$S$12:$S$16,'Data presentation'!B7) -> 399.5032486
B8: 3 | C8: =INDEX('Calc-Cap-Tariffs'!$C$11:$L$16,MATCH('Data presentation'!$F8,'Calc-Cap-Tariffs'!$S$11:$S$16,0),1) -> Inch | D8: =INDEX('Calc-Cap-Tariffs'!$C$11:$S$16,MATCH('Data presentation'!$F8,'Calc-Cap-Tariffs'!$S$11:$S$16,0),14) -> 203.7146245 | E8: =INDEX('Calc-Cap-Tariffs'!$C$11:$S$16,MATCH('Data presentation'!$F8,'Calc-Cap-Tariffs'!$S$11:$S$16,0),16) -> 0 | F8: =LARGE('Calc-Cap-Tariffs'!$S$12:$S$16,'Data presentation'!B8) -> 203.7146245
B9: 4 | C9: =INDEX('Calc-Cap-Tariffs'!$C$11:$L$16,MATCH('Data presentation'!$F9,'Calc-Cap-Tariffs'!$S$11:$S$16,0),1) -> Biogas | D9: =INDEX('Calc-Cap-Tariffs'!$C$11:$S$16,MATCH('Data presentation'!$F9,'Calc-Cap-Tariffs'!$S$11:$S$16,0),14) -> 190.9327592 | E9: =INDEX('Calc-Cap-Tariffs'!$C$11:$S$16,MATCH('Data presentation'!$F9,'Calc-Cap-Tariffs'!$S$11:$S$16,0),16) -> 0 | F9: =LARGE('Calc-Cap-Tariffs'!$S$12:$S$16,'Data presentation'!B9) -> 190.9327592
B10: 5 | C10: =INDEX('Calc-Cap-Tariffs'!$C$11:$L$16,MATCH('Data presentation'!$F10,'Calc-Cap-Tariffs'!$S$11:$S$16,0),1) -> Gormanston VRF | D10: =INDEX('Calc-Cap-Tariffs'!$C$11:$S$16,MATCH('Data presentation'!$F10,'Calc-Cap-Tariffs'!$S$11:$S$16,0),14) -> 145.6000016 | E10: =INDEX('Calc-Cap-Tariffs'!$C$11:$S$16,MATCH('Data presentation'!$F10,'Calc-Cap-Tariffs'!$S$11:$S$16,0),16) -> 0 | F10: =LARGE('Calc-Cap-Tariffs'!$S$12:$S$16,'Data presentation'!B10) -> 145.6000016
B12: Presentation of exit capacity tariffs 1 | F12: Presentation of exit capacity tariffs 2
B13: Excluded points | C13: Full name | D13: Tariff | H13: Exit capacity charges (€/MWh/y)
A14: 1 | B14: =INDEX($C$25:$F$133,MATCH(A14,$F$25:$F$133,0),2) -> GMTN | C14: =IFERROR(INDEX('Calc-Cap-Tariffs'!$B$26:$S$135,MATCH('Data presentation'!$B14,'Calc-Cap-Tariffs'!$B$26:$B$135,0),2),"") -> Gormanston | D14: =IFERROR(INDEX('Calc-Cap-Tariffs'!$B$26:$S$135,MATCH('Data presentation'!$B14,'Calc-Cap-Tariffs'!$B$26:$B$135,0),18),"") -> 590.3865939 | G14: Equalized exits | H14: =INDEX('Calc-Cap-Tariffs'!$R$26:$S$135,MATCH("domestic",'Calc-Cap-Tariffs'!$R$26:$R$135,0),2) -> 612.5891877
A15: 2 | B15: =INDEX($C$25:$F$133,MATCH(A15,$F$25:$F$133,0),2) -> MVRF | C15: =IFERROR(INDEX('Calc-Cap-Tariffs'!$B$26:$S$135,MATCH('Data presentation'!$B15,'Calc-Cap-Tariffs'!$B$26:$B$135,0),2),"") -> Moffat VRF | D15: =IFERROR(INDEX('Calc-Cap-Tariffs'!$B$26:$S$135,MATCH('Data presentation'!$B15,'Calc-Cap-Tariffs'!$B$26:$B$135,0),18),"") -> 377.467791 | F15: 1 | G15: =INDEX($B$13:$D$15,MATCH(H15,$D$13:$D$15,0),2) -> Gormanston | H15: =LARGE($D$14:$D$15,'Data presentation'!F15) -> 590.3865939
F16: 2 | G16: =INDEX($B$13:$D$15,MATCH(H16,$D$13:$D$15,0),2) -> Moffat VRF | H16: =LARGE($D$14:$D$15,'Data presentation'!F16) -> 377.467791
B18: Presentation of commodity charge
C19: Commodity charge (€/MWh)
B20: Entry | C20: ='Calc-Com'!E7 -> 0.1481586536
B21: Exit | C21: ='Calc-Com'!E8 -> 0.308475839
C24: Name | D24: Code | F24: Help cells
B25: Exit points | C25: ='Input-Network'!C13 -> Gormanston | D25: ='Input-Network'!D13 -> GMTN | E25: ='Input-Network'!AO13 -> Non-Domestic | F25: =IF(E25='Input-Network'!$AP$10,COUNTIF($E$25:E25,'Input-Network'!$AP$10),0) -> 1
C26: ='Input-Network'!C14 -> EXIT1 | D26: ='Input-Network'!D14 -> EXIT1 | E26: ='Input-Network'!AO14 -> Domestic | F26: =IF(E26='Input-Network'!$AP$10,COUNTIF($E$25:E26,'Input-Network'!$AP$10),0) -> 0
C27: ='Input-Network'!C15 -> EXIT2 | D27: ='Input-Network'!D15 -> EXIT2 | E27: ='Input-Network'!AO15 -> Domestic | F27: =IF(E27='Input-Network'!$AP$10,COUNTIF($E$25:E27,'Input-Network'!$AP$10),0) -> 0
C28: ='Input-Network'!C16 -> EXIT3 | D28: ='Input-Network'!D16 -> EXIT3 | E28: ='Input-Network'!AO16 -> Domestic | F28: =IF(E28='Input-Network'!$AP$10,COUNTIF($E$25:E28,'Input-Network'!$AP$10),0) -> 0
C29: ='Input-Network'!C17 -> EXIT5 | D29: ='Input-Network'!D17 -> EXIT5 | E29: ='Input-Network'!AO17 -> Domestic | F29: =IF(E29='Input-Network'!$AP$10,COUNTIF($E$25:E29,'Input-Network'!$AP$10),0) -> 0
C30: ='Input-Network'!C18 -> EXIT6 | D30: ='Input-Network'!D18 -> EXIT6 | E30: ='Input-Network'!AO18 -> Domestic | F30: =IF(E30='Input-Network'!$AP$10,COUNTIF($E$25:E30,'Input-Network'!$AP$10),0) -> 0
C31: ='Input-Network'!C19 -> EXIT7 | D31: ='Input-Network'!D19 -> EXIT7 | E31: ='Input-Network'!AO19 -> Domestic | F31: =IF(E31='Input-Network'!$AP$10,COUNTIF($E$25:E31,'Input-Network'!$AP$10),0) -> 0
C32: ='Input-Network'!C20 -> EXIT8 | D32: ='Input-Network'!D20 -> EXIT8 | E32: ='Input-Network'!AO20 -> Domestic | F32: =IF(E32='Input-Network'!$AP$10,COUNTIF($E$25:E32,'Input-Network'!$AP$10),0) -> 0
C33: ='Input-Network'!C21 -> EXIT9 | D33: ='Input-Network'!D21 -> EXIT9 | E33: ='Input-Network'!AO21 -> Domestic | F33: =IF(E33='Input-Network'!$AP$10,COUNTIF($E$25:E33,'Input-Network'!$AP$10),0) -> 0
C34: ='Input-Network'!C22 -> EXIT10 | D34: ='Input-Network'!D22 -> EXIT10 | E34: ='Input-Network'!AO22 -> Domestic | F34: =IF(E34='Input-Network'!$AP$10,COUNTIF($E$25:E34,'Input-Network'!$AP$10),0) -> 0
C35: ='Input-Network'!C23 -> EXIT11 | D35: ='Input-Network'!D23 -> EXIT11 | E35: ='Input-Network'!AO23 -> Domestic | F35: =IF(E35='Input-Network'!$AP$10,COUNTIF($E$25:E35,'Input-Network'!$AP$10),0) -> 0
C36: ='Input-Network'!C24 -> EXIT12 | D36: ='Input-Network'!D24 -> EXIT12 | E36: ='Input-Network'!AO24 -> Domestic | F36: =IF(E36='Input-Network'!$AP$10,COUNTIF($E$25:E36,'Input-Network'!$AP$10),0) -> 0
C37: ='Input-Network'!C25 -> EXIT13 | D37: ='Input-Network'!D25 -> EXIT13 | E37: ='Input-Network'!AO25 -> Domestic | F37: =IF(E37='Input-Network'!$AP$10,COUNTIF($E$25:E37,'Input-Network'!$AP$10),0) -> 0
C38: ='Input-Network'!C26 -> EXIT14 | D38: ='Input-Network'!D26 -> EXIT14 | E38: ='Input-Network'!AO26 -> Domestic | F38: =IF(E38='Input-Network'!$AP$10,COUNTIF($E$25:E38,'Input-Network'!$AP$10),0) -> 0
C39: ='Input-Network'!C27 -> EXIT16 | D39: ='Input-Network'!D27 -> EXIT16 | E39: ='Input-Network'!AO27 -> Domestic | F39: =IF(E39='Input-Network'!$AP$10,COUNTIF($E$25:E39,'Input-Network'!$AP$10),0) -> 0
C40: ='Input-Network'!C28 -> EXIT17 | D40: ='Input-Network'!D28 -> EXIT17 | E40: ='Input-Network'!AO28 -> Domestic | F40: =IF(E40='Input-Network'!$AP$10,COUNTIF($E$25:E40,'Input-Network'!$AP$10),0) -> 0
C41: ='Input-Network'!C29 -> EXIT18 | D41: ='Input-Network'!D29 -> EXIT18 | E41: ='Input-Network'!AO29 -> Domestic | F41: =IF(E41='Input-Network'!$AP$10,COUNTIF($E$25:E41,'Input-Network'!$AP$10),0) -> 0
C42: ='Input-Network'!C30 -> EXIT19 | D42: ='Input-Network'!D30 -> EXIT19 | E42: ='Input-Network'!AO30 -> Domestic | F42: =IF(E42='Input-Network'!$AP$10,COUNTIF($E$25:E42,'Input-Network'!$AP$10),0) -> 0
C43: ='Input-Network'!C31 -> EXIT20 | D43: ='Input-Network'!D31 -> EXIT20 | E43: ='Input-Network'!AO31 -> Domestic | F43: =IF(E43='Input-Network'!$AP$10,COUNTIF($E$25:E43,'Input-Network'!$AP$10),0) -> 0
C44: ='Input-Network'!C32 -> EXIT21 | D44: ='Input-Network'!D32 -> EXIT21 | E44: ='Input-Network'!AO32 -> Domestic | F44: =IF(E44='Input-Network'!$AP$10,COUNTIF($E$25:E44,'Input-Network'!$AP$10),0) -> 0
C45: ='Input-Network'!C33 -> EXIT22 | D45: ='Input-Network'!D33 -> EXIT22 | E45: ='Input-Network'!AO33 -> Domestic | F45: =IF(E45='Input-Network'!$AP$10,COUNTIF($E$25:E45,'Input-Network'!$AP$10),0) -> 0
C46: ='Input-Network'!C34 -> EXIT23 | D46: ='Input-Network'!D34 -> EXIT23 | E46: ='Input-Network'!AO34 -> Domestic | F46: =IF(E46='Input-Network'!$AP$10,COUNTIF($E$25:E46,'Input-Network'!$AP$10),0) -> 0
C47: ='Input-Network'!C35 -> EXIT24 | D47: ='Input-Network'!D35 -> EXIT24 | E47: ='Input-Network'!AO35 -> Domestic | F47: =IF(E47='Input-Network'!$AP$10,COUNTIF($E$25:E47,'Input-Network'!$AP$10),0) -> 0
C48: ='Input-Network'!C36 -> EXIT25 | D48: ='Input-Network'!D36 -> EXIT25 | E48: ='Input-Network'!AO36 -> Domestic | F48: =IF(E48='Input-Network'!$AP$10,COUNTIF($E$25:E48,'Input-Network'!$AP$10),0) -> 0
C49: ='Input-Network'!C37 -> EXIT26 | D49: ='Input-Network'!D37 -> EXIT26 | E49: ='Input-Network'!AO37 -> Domestic | F49: =IF(E49='Input-Network'!$AP$10,COUNTIF($E$25:E49,'Input-Network'!$AP$10),0) -> 0
C50: ='Input-Network'!C38 -> EXIT27 | D50: ='Input-Network'!D38 -> EXIT27 | E50: ='Input-Network'!AO38 -> Domestic | F50: =IF(E50='Input-Network'!$AP$10,COUNTIF($E$25:E50,'Input-Network'!$AP$10),0) -> 0
C51: ='Input-Network'!C39 -> EXIT28 | D51: ='Input-Network'!D39 -> EXIT28 | E51: ='Input-Network'!AO39 -> Domestic | F51: =IF(E51='Input-Network'!$AP$10,COUNTIF($E$25:E51,'Input-Network'!$AP$10),0) -> 0
C52: ='Input-Network'!C40 -> EXIT29 | D52: ='Input-Network'!D40 -> EXIT29 | E52: ='Input-Network'!AO40 -> Domestic | F52: =IF(E52='Input-Network'!$AP$10,COUNTIF($E$25:E52,'Input-Network'!$AP$10),0) -> 0
C53: ='Input-Network'!C41 -> EXIT30 | D53: ='Input-Network'!D41 -> EXIT30 | E53: ='Input-Network'!AO41 -> Domestic | F53: =IF(E53='Input-Network'!$AP$10,COUNTIF($E$25:E53,'Input-Network'!$AP$10),0) -> 0
C54: ='Input-Network'!C42 -> EXIT33 | D54: ='Input-Network'!D42 -> EXIT33 | E54: ='Input-Network'!AO42 -> Domestic | F54: =IF(E54='Input-Network'!$AP$10,COUNTIF($E$25:E54,'Input-Network'!$AP$10),0) -> 0
C55: ='Input-Network'!C43 -> EXIT34 | D55: ='Input-Network'!D43 -> EXIT34 | E55: ='Input-Network'!AO43 -> Domestic | F55: =IF(E55='Input-Network'!$AP$10,COUNTIF($E$25:E55,'Input-Network'!$AP$10),0) -> 0
C56: ='Input-Network'!C44 -> EXIT35 | D56: ='Input-Network'!D44 -> EXIT35 | E56: ='Input-Network'!AO44 -> Domestic | F56: =IF(E56='Input-Network'!$AP$10,COUNTIF($E$25:E56,'Input-Network'!$AP$10),0) -> 0
C57: ='Input-Network'!C45 -> EXIT36 | D57: ='Input-Network'!D45 -> EXIT36 | E57: ='Input-Network'!AO45 -> Domestic | F57: =IF(E57='Input-Network'!$AP$10,COUNTIF($E$25:E57,'Input-Network'!$AP$10),0) -> 0
C58: ='Input-Network'!C46 -> EXIT37 | D58: ='Input-Network'!D46 -> EXIT37 | E58: ='Input-Network'!AO46 -> Domestic | F58: =IF(E58='Input-Network'!$AP$10,COUNTIF($E$25:E58,'Input-Network'!$AP$10),0) -> 0
C59: ='Input-Network'!C47 -> EXIT38 | D59: ='Input-Network'!D47 -> EXIT38 | E59: ='Input-Network'!AO47 -> Domestic | F59: =IF(E59='Input-Network'!$AP$10,COUNTIF($E$25:E59,'Input-Network'!$AP$10),0) -> 0
C60: ='Input-Network'!C48 -> EXIT39 | D60: ='Input-Network'!D48 -> EXIT39 | E60: ='Input-Network'!AO48 -> Domestic | F60: =IF(E60='Input-Network'!$AP$10,COUNTIF($E$25:E60,'Input-Network'!$AP$10),0) -> 0
C61: ='Input-Network'!C49 -> EXIT40 | D61: ='Input-Network'!D49 -> EXIT40 | E61: ='Input-Network'!AO49 -> Domestic | F61: =IF(E61='Input-Network'!$AP$10,COUNTIF($E$25:E61,'Input-Network'!$AP$10),0) -> 0
C62: ='Input-Network'!C50 -> EXIT41 | D62: ='Input-Network'!D50 -> EXIT41 | E62: ='Input-Network'!AO50 -> Domestic | F62: =IF(E62='Input-Network'!$AP$10,COUNTIF($E$25:E62,'Input-Network'!$AP$10),0) -> 0
C63: ='Input-Network'!C51 -> EXIT42 | D63: ='Input-Network'!D51 -> EXIT42 | E63: ='Input-Network'!AO51 -> Domestic | F63: =IF(E63='Input-Network'!$AP$10,COUNTIF($E$25:E63,'Input-Network'!$AP$10),0) -> 0
C64: ='Input-Network'!C52 -> EXIT43 | D64: ='Input-Network'!D52 -> EXIT43 | E64: ='Input-Network'!AO52 -> Domestic | F64: =IF(E64='Input-Network'!$AP$10,COUNTIF($E$25:E64,'Input-Network'!$AP$10),0) -> 0
C65: ='Input-Network'!C53 -> EXIT44 | D65: ='Input-Network'!D53 -> EXIT44 | E65: ='Input-Network'!AO53 -> Domestic | F65: =IF(E65='Input-Network'!$AP$10,COUNTIF($E$25:E65,'Input-Network'!$AP$10),0) -> 0
C66: ='Input-Network'!C54 -> EXIT45 | D66: ='Input-Network'!D54 -> EXIT45 | E66: ='Input-Network'!AO54 -> Domestic | F66: =IF(E66='Input-Network'!$AP$10,COUNTIF($E$25:E66,'Input-Network'!$AP$10),0) -> 0
C67: ='Input-Network'!C55 -> EXIT46 | D67: ='Input-Network'!D55 -> EXIT46 | E67: ='Input-Network'!AO55 -> Domestic | F67: =IF(E67='Input-Network'!$AP$10,COUNTIF($E$25:E67,'Input-Network'!$AP$10),0) -> 0
C68: ='Input-Network'!C56 -> EXIT47 | D68: ='Input-Network'!D56 -> EXIT47 | E68: ='Input-Network'!AO56 -> Domestic | F68: =IF(E68='Input-Network'!$AP$10,COUNTIF($E$25:E68,'Input-Network'!$AP$10),0) -> 0
C69: ='Input-Network'!C57 -> EXIT48 | D69: ='Input-Network'!D57 -> EXIT48 | E69: ='Input-Network'!AO57 -> Domestic | F69: =IF(E69='Input-Network'!$AP$10,COUNTIF($E$25:E69,'Input-Network'!$AP$10),0) -> 0
C70: ='Input-Network'!C58 -> EXIT49 | D70: ='Input-Network'!D58 -> EXIT49 | E70: ='Input-Network'!AO58 -> Domestic | F70: =IF(E70='Input-Network'!$AP$10,COUNTIF($E$25:E70,'Input-Network'!$AP$10),0) -> 0
C71: ='Input-Network'!C59 -> EXIT50 | D71: ='Input-Network'!D59 -> EXIT50 | E71: ='Input-Network'!AO59 -> Domestic | F71: =IF(E71='Input-Network'!$AP$10,COUNTIF($E$25:E71,'Input-Network'!$AP$10),0) -> 0
C72: ='Input-Network'!C60 -> EXIT51 | D72: ='Input-Network'!D60 -> EXIT51 | E72: ='Input-Network'!AO60 -> Domestic | F72: =IF(E72='Input-Network'!$AP$10,COUNTIF($E$25:E72,'Input-Network'!$AP$10),0) -> 0
C73: ='Input-Network'!C61 -> EXIT52 | D73: ='Input-Network'!D61 -> EXIT52 | E73: ='Input-Network'!AO61 -> Domestic | F73: =IF(E73='Input-Network'!$AP$10,COUNTIF($E$25:E73,'Input-Network'!$AP$10),0) -> 0
C74: ='Input-Network'!C62 -> EXIT53 | D74: ='Input-Network'!D62 -> EXIT53 | E74: ='Input-Network'!AO62 -> Domestic | F74: =IF(E74='Input-Network'!$AP$10,COUNTIF($E$25:E74,'Input-Network'!$AP$10),0) -> 0
C75: ='Input-Network'!C63 -> EXIT54 | D75: ='Input-Network'!D63 -> EXIT54 | E75: ='Input-Network'!AO63 -> Domestic | F75: =IF(E75='Input-Network'!$AP$10,COUNTIF($E$25:E75,'Input-Network'!$AP$10),0) -> 0
C76: ='Input-Network'!C64 -> EXIT55 | D76: ='Input-Network'!D64 -> EXIT55 | E76: ='Input-Network'!AO64 -> Domestic | F76: =IF(E76='Input-Network'!$AP$10,COUNTIF($E$25:E76,'Input-Network'!$AP$10),0) -> 0
C77: ='Input-Network'!C65 -> EXIT57 | D77: ='Input-Network'!D65 -> EXIT57 | E77: ='Input-Network'!AO65 -> Domestic | F77: =IF(E77='Input-Network'!$AP$10,COUNTIF($E$25:E77,'Input-Network'!$AP$10),0) -> 0
C78: ='Input-Network'!C66 -> EXIT58 | D78: ='Input-Network'!D66 -> EXIT58 | E78: ='Input-Network'!AO66 -> Domestic | F78: =IF(E78='Input-Network'!$AP$10,COUNTIF($E$25:E78,'Input-Network'!$AP$10),0) -> 0
C79: ='Input-Network'!C67 -> EXIT59 | D79: ='Input-Network'!D67 -> EXIT59 | E79: ='Input-Network'!AO67 -> Domestic | F79: =IF(E79='Input-Network'!$AP$10,COUNTIF($E$25:E79,'Input-Network'!$AP$10),0) -> 0
C80: ='Input-Network'!C68 -> EXIT60 | D80: ='Input-Network'!D68 -> EXIT60 | E80: ='Input-Network'!AO68 -> Domestic | F80: =IF(E80='Input-Network'!$AP$10,COUNTIF($E$25:E80,'Input-Network'!$AP$10),0) -> 0
C81: ='Input-Network'!C69 -> EXIT61 | D81: ='Input-Network'!D69 -> EXIT61 | E81: ='Input-Network'!AO69 -> Domestic | F81: =IF(E81='Input-Network'!$AP$10,COUNTIF($E$25:E81,'Input-Network'!$AP$10),0) -> 0
C82: ='Input-Network'!C70 -> EXIT62 | D82: ='Input-Network'!D70 -> EXIT62 | E82: ='Input-Network'!AO70 -> Domestic | F82: =IF(E82='Input-Network'!$AP$10,COUNTIF($E$25:E82,'Input-Network'!$AP$10),0) -> 0
C83: ='Input-Network'!C71 -> EXIT63 | D83: ='Input-Network'!D71 -> EXIT63 | E83: ='Input-Network'!AO71 -> Domestic | F83: =IF(E83='Input-Network'!$AP$10,COUNTIF($E$25:E83,'Input-Network'!$AP$10),0) -> 0
C84: ='Input-Network'!C72 -> EXIT64 | D84: ='Input-Network'!D72 -> EXIT64 | E84: ='Input-Network'!AO72 -> Domestic | F84: =IF(E84='Input-Network'!$AP$10,COUNTIF($E$25:E84,'Input-Network'!$AP$10),0) -> 0
C85: ='Input-Network'!C73 -> EXIT65 | D85: ='Input-Network'!D73 -> EXIT65 | E85: ='Input-Network'!AO73 -> Domestic | F85: =IF(E85='Input-Network'!$AP$10,COUNTIF($E$25:E85,'Input-Network'!$AP$10),0) -> 0
C86: ='Input-Network'!C74 -> EXIT66 | D86: ='Input-Network'!D74 -> EXIT66 | E86: ='Input-Network'!AO74 -> Domestic | F86: =IF(E86='Input-Network'!$AP$10,COUNTIF($E$25:E86,'Input-Network'!$AP$10),0) -> 0
C87: ='Input-Network'!C75 -> EXIT67 | D87: ='Input-Network'!D75 -> EXIT67 | E87: ='Input-Network'!AO75 -> Domestic | F87: =IF(E87='Input-Network'!$AP$10,COUNTIF($E$25:E87,'Input-Network'!$AP$10),0) -> 0
C88: ='Input-Network'!C76 -> EXIT68 | D88: ='Input-Network'!D76 -> EXIT68 | E88: ='Input-Network'!AO76 -> Domestic | F88: =IF(E88='Input-Network'!$AP$10,COUNTIF($E$25:E88,'Input-Network'!$AP$10),0) -> 0
C89: ='Input-Network'!C77 -> EXIT69 | D89: ='Input-Network'!D77 -> EXIT69 | E89: ='Input-Network'!AO77 -> Domestic | F89: =IF(E89='Input-Network'!$AP$10,COUNTIF($E$25:E89,'Input-Network'!$AP$10),0) -> 0
C90: ='Input-Network'!C78 -> EXIT70 | D90: ='Input-Network'!D78 -> EXIT70 | E90: ='Input-Network'!AO78 -> Domestic | F90: =IF(E90='Input-Network'!$AP$10,COUNTIF($E$25:E90,'Input-Network'!$AP$10),0) -> 0
C91: ='Input-Network'!C79 -> EXIT71 | D91: ='Input-Network'!D79 -> EXIT71 | E91: ='Input-Network'!AO79 -> Domestic | F91: =IF(E91='Input-Network'!$AP$10,COUNTIF($E$25:E91,'Input-Network'!$AP$10),0) -> 0
C92: ='Input-Network'!C80 -> EXIT72 | D92: ='Input-Network'!D80 -> EXIT72 | E92: ='Input-Network'!AO80 -> Domestic | F92: =IF(E92='Input-Network'!$AP$10,COUNTIF($E$25:E92,'Input-Network'!$AP$10),0) -> 0
C93: ='Input-Network'!C81 -> EXIT73 | D93: ='Input-Network'!D81 -> EXIT73 | E93: ='Input-Network'!AO81 -> Domestic | F93: =IF(E93='Input-Network'!$AP$10,COUNTIF($E$25:E93,'Input-Network'!$AP$10),0) -> 0
C94: ='Input-Network'!C82 -> EXIT74 | D94: ='Input-Network'!D82 -> EXIT74 | E94: ='Input-Network'!AO82 -> Domestic | F94: =IF(E94='Input-Network'!$AP$10,COUNTIF($E$25:E94,'Input-Network'!$AP$10),0) -> 0
C95: ='Input-Network'!C83 -> EXIT75 | D95: ='Input-Network'!D83 -> EXIT75 | E95: ='Input-Network'!AO83 -> Domestic | F95: =IF(E95='Input-Network'!$AP$10,COUNTIF($E$25:E95,'Input-Network'!$AP$10),0) -> 0
C96: ='Input-Network'!C84 -> EXIT76 | D96: ='Input-Network'!D84 -> EXIT76 | E96: ='Input-Network'!AO84 -> Domestic | F96: =IF(E96='Input-Network'!$AP$10,COUNTIF($E$25:E96,'Input-Network'!$AP$10),0) -> 0
C97: ='Input-Network'!C85 -> EXIT77 | D97: ='Input-Network'!D85 -> EXIT77 | E97: ='Input-Network'!AO85 -> Domestic | F97: =IF(E97='Input-Network'!$AP$10,COUNTIF($E$25:E97,'Input-Network'!$AP$10),0) -> 0
C98: ='Input-Network'!C86 -> EXIT78 | D98: ='Input-Network'!D86 -> EXIT78 | E98: ='Input-Network'!AO86 -> Domestic | F98: =IF(E98='Input-Network'!$AP$10,COUNTIF($E$25:E98,'Input-Network'!$AP$10),0) -> 0
C99: ='Input-Network'!C87 -> EXIT79 | D99: ='Input-Network'!D87 -> EXIT79 | E99: ='Input-Network'!AO87 -> Domestic | F99: =IF(E99='Input-Network'!$AP$10,COUNTIF($E$25:E99,'Input-Network'!$AP$10),0) -> 0
C100: ='Input-Network'!C88 -> EXIT80 | D100: ='Input-Network'!D88 -> EXIT80 | E100: ='Input-Network'!AO88 -> Domestic | F100: =IF(E100='Input-Network'!$AP$10,COUNTIF($E$25:E100,'Input-Network'!$AP$10),0) -> 0
C101: ='Input-Network'!C89 -> EXIT81 | D101: ='Input-Network'!D89 -> EXIT81 | E101: ='Input-Network'!AO89 -> Domestic | F101: =IF(E101='Input-Network'!$AP$10,COUNTIF($E$25:E101,'Input-Network'!$AP$10),0) -> 0
C102: ='Input-Network'!C90 -> EXIT82 | D102: ='Input-Network'!D90 -> EXIT82 | E102: ='Input-Network'!AO90 -> Domestic | F102: =IF(E102='Input-Network'!$AP$10,COUNTIF($E$25:E102,'Input-Network'!$AP$10),0) -> 0
C103: ='Input-Network'!C91 -> EXIT83 | D103: ='Input-Network'!D91 -> EXIT83 | E103: ='Input-Network'!AO91 -> Domestic | F103: =IF(E103='Input-Network'!$AP$10,COUNTIF($E$25:E103,'Input-Network'!$AP$10),0) -> 0
C104: ='Input-Network'!C92 -> EXIT84 | D104: ='Input-Network'!D92 -> EXIT84 | E104: ='Input-Network'!AO92 -> Domestic | F104: =IF(E104='Input-Network'!$AP$10,COUNTIF($E$25:E104,'Input-Network'!$AP$10),0) -> 0
C105: ='Input-Network'!C93 -> EXIT86 | D105: ='Input-Network'!D93 -> EXIT86 | E105: ='Input-Network'!AO93 -> Domestic | F105: =IF(E105='Input-Network'!$AP$10,COUNTIF($E$25:E105,'Input-Network'!$AP$10),0) -> 0
C106: ='Input-Network'!C94 -> EXIT87 | D106: ='Input-Network'!D94 -> EXIT87 | E106: ='Input-Network'!AO94 -> Domestic | F106: =IF(E106='Input-Network'!$AP$10,COUNTIF($E$25:E106,'Input-Network'!$AP$10),0) -> 0
C107: ='Input-Network'!C95 -> EXIT88 | D107: ='Input-Network'!D95 -> EXIT88 | E107: ='Input-Network'!AO95 -> Domestic | F107: =IF(E107='Input-Network'!$AP$10,COUNTIF($E$25:E107,'Input-Network'!$AP$10),0) -> 0
C108: ='Input-Network'!C96 -> EXIT89 | D108: ='Input-Network'!D96 -> EXIT89 | E108: ='Input-Network'!AO96 -> Domestic | F108: =IF(E108='Input-Network'!$AP$10,COUNTIF($E$25:E108,'Input-Network'!$AP$10),0) -> 0
C109: ='Input-Network'!C97 -> EXIT90 | D109: ='Input-Network'!D97 -> EXIT90 | E109: ='Input-Network'!AO97 -> Domestic | F109: =IF(E109='Input-Network'!$AP$10,COUNTIF($E$25:E109,'Input-Network'!$AP$10),0) -> 0
C110: ='Input-Network'!C98 -> EXIT91 | D110: ='Input-Network'!D98 -> EXIT91 | E110: ='Input-Network'!AO98 -> Domestic | F110: =IF(E110='Input-Network'!$AP$10,COUNTIF($E$25:E110,'Input-Network'!$AP$10),0) -> 0
C111: ='Input-Network'!C99 -> EXIT92 | D111: ='Input-Network'!D99 -> EXIT92 | E111: ='Input-Network'!AO99 -> Domestic | F111: =IF(E111='Input-Network'!$AP$10,COUNTIF($E$25:E111,'Input-Network'!$AP$10),0) -> 0
C112: ='Input-Network'!C100 -> EXIT93 | D112: ='Input-Network'!D100 -> EXIT93 | E112: ='Input-Network'!AO100 -> Domestic | F112: =IF(E112='Input-Network'!$AP$10,COUNTIF($E$25:E112,'Input-Network'!$AP$10),0) -> 0
C113: ='Input-Network'!C101 -> EXIT94 | D113: ='Input-Network'!D101 -> EXIT94 | E113: ='Input-Network'!AO101 -> Domestic | F113: =IF(E113='Input-Network'!$AP$10,COUNTIF($E$25:E113,'Input-Network'!$AP$10),0) -> 0
C114: ='Input-Network'!C102 -> EXIT95 | D114: ='Input-Network'!D102 -> EXIT95 | E114: ='Input-Network'!AO102 -> Domestic | F114: =IF(E114='Input-Network'!$AP$10,COUNTIF($E$25:E114,'Input-Network'!$AP$10),0) -> 0
C115: ='Input-Network'!C103 -> EXIT96 | D115: ='Input-Network'!D103 -> EXIT96 | E115: ='Input-Network'!AO103 -> Domestic | F115: =IF(E115='Input-Network'!$AP$10,COUNTIF($E$25:E115,'Input-Network'!$AP$10),0) -> 0
C116: ='Input-Network'!C104 -> EXIT97 | D116: ='Input-Network'!D104 -> EXIT97 | E116: ='Input-Network'!AO104 -> Domestic | F116: =IF(E116='Input-Network'!$AP$10,COUNTIF($E$25:E116,'Input-Network'!$AP$10),0) -> 0
C117: ='Input-Network'!C105 -> EXIT98 | D117: ='Input-Network'!D105 -> EXIT98 | E117: ='Input-Network'!AO105 -> Domestic | F117: =IF(E117='Input-Network'!$AP$10,COUNTIF($E$25:E117,'Input-Network'!$AP$10),0) -> 0
C118: ='Input-Network'!C106 -> EXIT99 | D118: ='Input-Network'!D106 -> EXIT99 | E118: ='Input-Network'!AO106 -> Domestic | F118: =IF(E118='Input-Network'!$AP$10,COUNTIF($E$25:E118,'Input-Network'!$AP$10),0) -> 0
C119: ='Input-Network'!C107 -> EXIT100 | D119: ='Input-Network'!D107 -> EXIT100 | E119: ='Input-Network'!AO107 -> Domestic | F119: =IF(E119='Input-Network'!$AP$10,COUNTIF($E$25:E119,'Input-Network'!$AP$10),0) -> 0
C120: ='Input-Network'!C108 -> EXIT101 | D120: ='Input-Network'!D108 -> EXIT101 | E120: ='Input-Network'!AO108 -> Domestic | F120: =IF(E120='Input-Network'!$AP$10,COUNTIF($E$25:E120,'Input-Network'!$AP$10),0) -> 0
C121: ='Input-Network'!C109 -> EXIT102 | D121: ='Input-Network'!D109 -> EXIT102 | E121: ='Input-Network'!AO109 -> Domestic | F121: =IF(E121='Input-Network'!$AP$10,COUNTIF($E$25:E121,'Input-Network'!$AP$10),0) -> 0
C122: ='Input-Network'!C110 -> EXIT103 | D122: ='Input-Network'!D110 -> EXIT103 | E122: ='Input-Network'!AO110 -> Domestic | F122: =IF(E122='Input-Network'!$AP$10,COUNTIF($E$25:E122,'Input-Network'!$AP$10),0) -> 0
C123: ='Input-Network'!C111 -> EXIT104 | D123: ='Input-Network'!D111 -> EXIT104 | E123: ='Input-Network'!AO111 -> Domestic | F123: =IF(E123='Input-Network'!$AP$10,COUNTIF($E$25:E123,'Input-Network'!$AP$10),0) -> 0
C124: ='Input-Network'!C112 -> EXIT105 | D124: ='Input-Network'!D112 -> EXIT105 | E124: ='Input-Network'!AO112 -> Domestic | F124: =IF(E124='Input-Network'!$AP$10,COUNTIF($E$25:E124,'Input-Network'!$AP$10),0) -> 0
C125: ='Input-Network'!C113 -> EXIT106 | D125: ='Input-Network'!D113 -> EXIT106 | E125: ='Input-Network'!AO113 -> Domestic | F125: =IF(E125='Input-Network'!$AP$10,COUNTIF($E$25:E125,'Input-Network'!$AP$10),0) -> 0
C126: ='Input-Network'!C114 -> EXIT107 | D126: ='Input-Network'!D114 -> EXIT107 | E126: ='Input-Network'!AO114 -> Domestic | F126: =IF(E126='Input-Network'!$AP$10,COUNTIF($E$25:E126,'Input-Network'!$AP$10),0) -> 0
C127: ='Input-Network'!C115 -> EXIT108 | D127: ='Input-Network'!D115 -> EXIT108 | E127: ='Input-Network'!AO115 -> Domestic | F127: =IF(E127='Input-Network'!$AP$10,COUNTIF($E$25:E127,'Input-Network'!$AP$10),0) -> 0
C128: ='Input-Network'!C116 -> EXIT109 | D128: ='Input-Network'!D116 -> EXIT109 | E128: ='Input-Network'!AO116 -> Domestic | F128: =IF(E128='Input-Network'!$AP$10,COUNTIF($E$25:E128,'Input-Network'!$AP$10),0) -> 0
C129: ='Input-Network'!C117 -> EXIT110 | D129: ='Input-Network'!D117 -> EXIT110 | E129: ='Input-Network'!AO117 -> Domestic | F129: =IF(E129='Input-Network'!$AP$10,COUNTIF($E$25:E129,'Input-Network'!$AP$10),0) -> 0
C130: ='Input-Network'!C118 -> EXIT111 | D130: ='Input-Network'!D118 -> EXIT111 | E130: ='Input-Network'!AO118 -> Domestic | F130: =IF(E130='Input-Network'!$AP$10,COUNTIF($E$25:E130,'Input-Network'!$AP$10),0) -> 0
C131: ='Input-Network'!C119 -> EXIT112 | D131: ='Input-Network'!D119 -> EXIT112 | E131: ='Input-Network'!AO119 -> Domestic | F131: =IF(E131='Input-Network'!$AP$10,COUNTIF($E$25:E131,'Input-Network'!$AP$10),0) -> 0
C132: ='Input-Network'!C120 -> EXIT113 | D132: ='Input-Network'!D120 -> EXIT113 | E132: ='Input-Network'!AO120 -> Domestic | F132: =IF(E132='Input-Network'!$AP$10,COUNTIF($E$25:E132,'Input-Network'!$AP$10),0) -> 0
C133: ='Input-Network'!C121 -> Moffat VRF | D133: ='Input-Network'!D121 -> MVRF | E133: ='Input-Network'!AO121 -> Non-Domestic | F133: =IF(E133='Input-Network'!$AP$10,COUNTIF($E$25:E133,'Input-Network'!$AP$10),0) -> 2
